{"text_format":"1","workbook":"xlsx","n_sheets":5,"sheets":["راهنما","time","pay","report","sett"],"not_rendered":{"charts":0,"images":3,"macros":1,"external_links":0,"defined_names":0,"comments":1,"pivot_tables":0},"unopened":[],"bounds":{"document_bytes":16777216,"sheet_cells":100000,"rows_first":2000,"rows_last":500,"rows_between":2000,"halvings":0,"cell_chars":16384,"cell_head_chars":4096},"cells_cut":0,"cells_raw":0,"read":"whole","date_system":"1900"}

{"sheet":"راهنما","index":0,"n_rows":39,"n_cols":13,"rows_kept":39,"cut":false,"hidden":false,"merged":[[31,1,31,19],[32,1,32,19],[34,1,34,19],[35,1,35,19],[36,1,36,19],[30,1,30,19],[19,1,19,19],[20,1,20,19],[21,1,21,19],[22,1,22,19],[23,1,23,19],[24,1,24,19],[25,1,25,19],[26,1,26,19],[27,1,27,19],[28,1,28,19],[29,1,29,19],[18,1,18,19],[4,6,6,8],[4,9,6,11],[4,12,6,14],[10,1,10,19],[11,1,11,19],[12,1,12,19],[13,1,13,19],[14,1,14,19],[15,1,15,19],[16,1,16,19],[17,1,17,19]]}
[]
[]
[]
[]
[null,null,null,null,null,null,"كد فايل :   1225",null,null,"نسخه :    1.1",null,null,"ويرايش :  1"]
[]
[]
[]
[]
[]
[null,"توضيحات عمومي"]
[null,"* در ابتدا لازم است اعلام نمائيم كه از انتخاب ما توسط شما بسيار خرسنديم و اميدواريم بتوانيم همراه خوبي برايتان بوده و در ساير موارد نيز افتخار ميزباني سفارشات شما مخاطب گرامي را داشته باشيم."]
[null,"* قبل از شروع به استفاده از برنامه، لطفا فونت هاي ضميمه فايل دريافتي را نصب نمائيد و همچنين يك كپي از فايل خام تهيه كنيد تا در صورت بروز هر گونه مشكل نسخه اوليه و صحيح در اختيار شما باشد."]
[null,"* اين فايل با اكسل 2010 طراحي شده و در آن از ماكروها و زبان VB در اكسل استفاده شده است ! لذا بايد درصورت فعال نبودن اين قابليت آن را بر روي نرم افزار اكسل خود فعال نماييد. بدين منظور توضيحات"]
[null,"لازم از طريق كليد \"سوالات متداول\" در بالاي همين صفحه در دسترس است. در صورت وجود هرگونه ابهام يا سوال يا مشاهده نقصي در برنامه دريافتي مي توانيد از طريق ايميل مستقيم ما كه در بالاي صفحه مشاهده"]
[null,"مي نمائيد ، با ذكر كد فايل و شماره نسخه آن با ما در ارتباط باشيد. در اسرع وقت و در حد توان پاسخگوي شما كاربر گرامي خواهيم بود !"]
[null,"* دقت داشته باشيد كه فايل هاي رايگان محدود بوده و امكان انجام  تغييرات در صفحات موجود و تنظيمات آنها و يا افزودن گزينه ها و موارد جديد در فرم ها و جداول و گزارشات را ندارند !!"]
[null,"* در اين فايل فقط تعداد محدودي ركورد در جداول قابل ثبت است ! اگر تمايل داريد كه از آن به صورت نامحدود استفاده كنيد با ما تماس بگيريد تا فايل اصلي برنامه را با هزينه اي اندك براي شما"]
[null,"ارسال كنيم ! همچنين اگر نياز به طراحي مجدد و اختصاصي اين برنامه متناسب با خواسته ها و آيتم هاي مد نظر خودتان داريد با ما تماس بگيريد را براي شما طراحي سفارشي داشته باشيم !!"]
[null,"* بسيار خوشحال خواهيم شد اگر نظرات و انتقادات و پيشنهادات خود را درباره اين برنامه و همچنين خدمات مركز كاربردي اكسل از طريق گزينه \" نظر بدهيد \" در بالاي همين صفحه اعلام بفرمائيد !"]
[null," نكته مهم : در همه صفحات خانه هايي كه در گوشه بالا سمت چپ آنها مثلث قرمز رنگ كوچكي مشاهده مي شود، اگر موس را بر روي آنها نگه داريد راهنمايي و توضيحات لازمه جهت نحوه ورود اطلاعات"]
[null,"  و تكميل آن ستون يا سطر يا جدول و يا نحوه محاسبه مقدار درون آن خانه به صورت كامنت آورده شده است ! حتما همه اين كامنت ها را قبل از استفاده مطالعه كنيد تا كار با برنامه برايتان راحت تر باشد !"]
[null,"توجه : براي حذف يك رديف در جداول ثبت ديتا كه با فرم پر مي شوند بايد روي رديف مورد نظر راست كليك كرده و از قسمت Delete  گزينه Table Rows  را انتخاب كنيد ! در غير اينصورت امكان دارد كدها درست كار "]
[null,"كار نكنند ! چراكه پر كردن اين جداول از طريق فرم ها بر اساس شمارش تعداد رديف پر شده ( ستون اول جدول ) صورت ميگيرد و بايد رديف خالي بين اطلاعات تكميل شده در جدول وجود نداشته باشد !"]
[null,"* لطفا از تغيير دادن نام صفحات و ترتيب قرار گرفتن آنها و همچنين افزودن سطر و ستون در آنها پرهيز كنيد ! چراكه امكان دارد برخي از كدها و فرم هاي موجود غير فعال شده و برنامه آسيب ببيند !!"]
[null,"توضيحات اختصاصي"]
[null,"1 - ابتدا در صفحه sett اطلاعات پرسنل خود را تکمیل کنید ! ضریب حقوق در محاسبه دستمزد پرسنل لحاظ می گردد ( حقوق ماه = نرخ مزد روزانه * کارکرد بر حسب روز * ضریب حقوق )"]
[null,"2 - در صفحه time می توانید ورود و خروج پرسنل را وارد کنید ! روز عدد روز ماه جاری است ( از 1 تا 31 ) و کد شماره پرسنلی فرد می باشد ! ( فرمت ساعت باید برای صبح مانند : 8:20 و برای بعد از ظهر 16:45 باشد حتما )"]
[null,"این جدول به صورت دستی باید تکمیل شود ! دو ستون اخر خودکار تکمیل می شود !"]
[null,"3 - در صفحه pay می توانید پرداخت هایی که در طول ماه به پرسنل داشته اید ثبت نمائید ! این جدول باید از طریق فرم تکمیل شود !"]
[null,"4 - در صفحه report گزارش کارکرد پرسنل خود را مشاهده می کنید ! نرخ مزد روزانه و ساعت کار مشخص برای هر روز را در صورت نیاز ویرایش نمائید !"]
[null,"توجه : برای هر ماه باید از یک فایل استفاده کنید ! مانده حساب افراد را می توانید برای ماه بعد در صفحه sett در ستون اخر وارد کنید ! ( در صورت بدهکاری مانده را منفی وارد کنید )"]
[]
[]
[null,"* * * در صورت تمايل چند صلوات جهت سلامتي و ظهور و فرج امام زمان عجل الله تعالي فرجه الشريف :: عزيز و مولا و سرورمان و منجي و رهايي بخش همه انسان ها :: هديه بفرمائيد  * * *"]
[null,"اي پادشه خوبان داد از غم تنهايي                   دل بي تو به جان آمد وقت است كه باز آيي"]
[null,"مشتاقي و مهجوري دور از تو چنانم كرد          كه از دست بخواهد شد پاياب شكيبايي . . ."]
[]
[null,"براي ورود به صفحه فرهنگي مركز بر روي عكس بالا كليك بفرمائيد !"]

{"sheet":"time","index":1,"n_rows":473,"n_cols":7,"rows_kept":473,"cut":false,"hidden":false,"merged":[]}
[]
[]
[null,"روز","كد","ورود","خروج","نام شخص","ميزان حضور"]
[null,null,null,null,null,{"$f":"IF(times[[#This Row],[كد]]>0,VLOOKUP(times[[#This Row],[كد]],personel[],2,FALSE)&\" / \"&VLOOKUP(times[[#This Row],[كد]],personel[],3,FALSE),0)","v":0},{"$f":"IF(times[[#This Row],[خروج]]>times[[#This Row],[ورود]],times[[#This Row],[خروج]]-times[[#This Row],[ورود]],0)","v":"00:00:00"}]
[null,null,null,null,null,{"$f":"IF(times[[#This Row],[كد]]>0,VLOOKUP(times[[#This Row],[كد]],personel[],2,FALSE)&\" / \"&VLOOKUP(times[[#This Row],[كد]],personel[],3,FALSE),0)","v":0},{"$f":"IF(times[[#This Row],[خروج]]>times[[#This Row],[ورود]],times[[#This Row],[خروج]]-times[[#This Row],[ورود]],0)","v":"00:00:00"}]
[null,null,null,null,null,{"$f":"IF(times[[#This Row],[كد]]>0,VLOOKUP(times[[#This Row],[كد]],personel[],2,FALSE)&\" / \"&VLOOKUP(times[[#This Row],[كد]],personel[],3,FALSE),0)","v":0},{"$f":"IF(times[[#This Row],[خروج]]>times[[#This Row],[ورود]],times[[#This Row],[خروج]]-times[[#This Row],[ورود]],0)","v":"00:00:00"}]
[null,null,null,null,null,{"$f":"IF(times[[#This Row],[كد]]>0,VLOOKUP(times[[#This Row],[كد]],personel[],2,FALSE)&\" / \"&VLOOKUP(times[[#This Row],[كد]],personel[],3,FALSE),0)","v":0},{"$f":"IF(times[[#This Row],[خروج]]>times[[#This Row],[ورود]],times[[#This Row],[خروج]]-times[[#This Row],[ورود]],0)","v":"00:00:00"}]
[null,null,null,null,null,{"$f":"IF(times[[#This Row],[كد]]>0,VLOOKUP(times[[#This Row],[كد]],personel[],2,FALSE)&\" / \"&VLOOKUP(times[[#This Row],[كد]],personel[],3,FALSE),0)","v":0},{"$f":"IF(times[[#This Row],[خروج]]>times[[#This Row],[ورود]],times[[#This Row],[خروج]]-times[[#This Row],[ورود]],0)","v":"00:00:00"}]
[null,null,null,null,null,{"$f":"IF(times[[#This Row],[كد]]>0,VLOOKUP(times[[#This Row],[كد]],personel[],2,FALSE)&\" / \"&VLOOKUP(times[[#This Row],[كد]],personel[],3,FALSE),0)","v":0},{"$f":"IF(times[[#This Row],[خروج]]>times[[#This Row],[ورود]],times[[#This Row],[خروج]]-times[[#This Row],[ورود]],0)","v":"00:00:00"}]
[null,null,null,null,null,{"$f":"IF(times[[#This Row],[كد]]>0,VLOOKUP(times[[#This Row],[كد]],personel[],2,FALSE)&\" / \"&VLOOKUP(times[[#This Row],[كد]],personel[],3,FALSE),0)","v":0},{"$f":"IF(times[[#This Row],[خروج]]>times[[#This Row],[ورود]],times[[#This Row],[خروج]]-times[[#This Row],[ورود]],0)","v":"00:00:00"}]
[null,null,null,null,null,{"$f":"IF(times[[#This Row],[كد]]>0,VLOOKUP(times[[#This Row],[كد]],personel[],2,FALSE)&\" / \"&VLOOKUP(times[[#This Row],[كد]],personel[],3,FALSE),0)","v":0},{"$f":"IF(times[[#This Row],[خروج]]>times[[#This Row],[ورود]],times[[#This Row],[خروج]]-times[[#This Row],[ورود]],0)","v":"00:00:00"}]
[null,null,null,null,null,{"$f":"IF(times[[#This Row],[كد]]>0,VLOOKUP(times[[#This Row],[كد]],personel[],2,FALSE)&\" / \"&VLOOKUP(times[[#This Row],[كد]],personel[],3,FALSE),0)","v":0},{"$f":"IF(times[[#This Row],[خروج]]>times[[#This Row],[ورود]],times[[#This Row],[خروج]]-times[[#This Row],[ورود]],0)","v":"00:00:00"}]
[null,null,null,null,null,{"$f":"IF(times[[#This Row],[كد]]>0,VLOOKUP(times[[#This Row],[كد]],personel[],2,FALSE)&\" / \"&VLOOKUP(times[[#This Row],[كد]],personel[],3,FALSE),0)","v":0},{"$f":"IF(times[[#This Row],[خروج]]>times[[#This Row],[ورود]],times[[#This Row],[خروج]]-times[[#This Row],[ورود]],0)","v":"00:00:00"}]
[null,null,null,null,null,{"$f":"IF(times[[#This Row],[كد]]>0,VLOOKUP(times[[#This Row],[كد]],personel[],2,FALSE)&\" / \"&VLOOKUP(times[[#This Row],[كد]],personel[],3,FALSE),0)","v":0},{"$f":"IF(times[[#This Row],[خروج]]>times[[#This Row],[ورود]],times[[#This Row],[خروج]]-times[[#This Row],[ورود]],0)","v":"00:00:00"}]
[null,null,null,null,null,{"$f":"IF(times[[#This Row],[كد]]>0,VLOOKUP(times[[#This Row],[كد]],personel[],2,FALSE)&\" / \"&VLOOKUP(times[[#This Row],[كد]],personel[],3,FALSE),0)","v":0},{"$f":"IF(times[[#This Row],[خروج]]>times[[#This Row],[ورود]],times[[#This Row],[خروج]]-times[[#This Row],[ورود]],0)","v":"00:00:00"}]
[null,null,null,null,null,{"$f":"IF(times[[#This Row],[كد]]>0,VLOOKUP(times[[#This Row],[كد]],personel[],2,FALSE)&\" / \"&VLOOKUP(times[[#This Row],[كد]],personel[],3,FALSE),0)","v":0},{"$f":"IF(times[[#This Row],[خروج]]>times[[#This Row],[ورود]],times[[#This Row],[خروج]]-times[[#This Row],[ورود]],0)","v":"00:00:00"}]
[null,null,null,null,null,{"$f":"IF(times[[#This Row],[كد]]>0,VLOOKUP(times[[#This Row],[كد]],personel[],2,FALSE)&\" / \"&VLOOKUP(times[[#This Row],[كد]],personel[],3,FALSE),0)","v":0},{"$f":"IF(times[[#This Row],[خروج]]>times[[#This Row],[ورود]],times[[#This Row],[خروج]]-times[[#This Row],[ورود]],0)","v":"00:00:00"}]
[null,null,null,null,null,{"$f":"IF(times[[#This Row],[كد]]>0,VLOOKUP(times[[#This Row],[كد]],personel[],2,FALSE)&\" / \"&VLOOKUP(times[[#This Row],[كد]],personel[],3,FALSE),0)","v":0},{"$f":"IF(times[[#This Row],[خروج]]>times[[#This Row],[ورود]],times[[#This Row],[خروج]]-times[[#This Row],[ورود]],0)","v":"00:00:00"}]
[null,null,null,null,null,{"$f":"IF(times[[#This Row],[كد]]>0,VLOOKUP(times[[#This Row],[كد]],personel[],2,FALSE)&\" / \"&VLOOKUP(times[[#This Row],[كد]],personel[],3,FALSE),0)","v":0},{"$f":"IF(times[[#This Row],[خروج]]>times[[#This Row],[ورود]],times[[#This Row],[خروج]]-times[[#This Row],[ورود]],0)","v":"00:00:00"}]
[null,null,null,null,null,{"$f":"IF(times[[#This Row],[كد]]>0,VLOOKUP(times[[#This Row],[كد]],personel[],2,FALSE)&\" / \"&VLOOKUP(times[[#This Row],[كد]],personel[],3,FALSE),0)","v":0},{"$f":"IF(times[[#This Row],[خروج]]>times[[#This Row],[ورود]],times[[#This Row],[خروج]]-times[[#This Row],[ورود]],0)","v":"00:00:00"}]
[null,null,null,null,null,{"$f":"IF(times[[#This Row],[كد]]>0,VLOOKUP(times[[#This Row],[كد]],personel[],2,FALSE)&\" / \"&VLOOKUP(times[[#This Row],[كد]],personel[],3,FALSE),0)","v":0},{"$f":"IF(times[[#This Row],[خروج]]>times[[#This Row],[ورود]],times[[#This Row],[خروج]]-times[[#This Row],[ورود]],0)","v":"00:00:00"}]
[null,null,null,null,null,{"$f":"IF(times[[#This Row],[كد]]>0,VLOOKUP(times[[#This Row],[كد]],personel[],2,FALSE)&\" / \"&VLOOKUP(times[[#This Row],[كد]],personel[],3,FALSE),0)","v":0},{"$f":"IF(times[[#This Row],[خروج]]>times[[#This Row],[ورود]],times[[#This Row],[خروج]]-times[[#This Row],[ورود]],0)","v":"00:00:00"}]
[null,null,null,null,null,{"$f":"IF(times[[#This Row],[كد]]>0,VLOOKUP(times[[#This Row],[كد]],personel[],2,FALSE)&\" / \"&VLOOKUP(times[[#This Row],[كد]],personel[],3,FALSE),0)","v":0},{"$f":"IF(times[[#This Row],[خروج]]>times[[#This Row],[ورود]],times[[#This Row],[خروج]]-times[[#This Row],[ورود]],0)","v":"00:00:00"}]
[null,null,null,null,null,{"$f":"IF(times[[#This Row],[كد]]>0,VLOOKUP(times[[#This Row],[كد]],personel[],2,FALSE)&\" / \"&VLOOKUP(times[[#This Row],[كد]],personel[],3,FALSE),0)","v":0},{"$f":"IF(times[[#This Row],[خروج]]>times[[#This Row],[ورود]],times[[#This Row],[خروج]]-times[[#This Row],[ورود]],0)","v":"00:00:00"}]
[null,null,null,null,null,{"$f":"IF(times[[#This Row],[كد]]>0,VLOOKUP(times[[#This Row],[كد]],personel[],2,FALSE)&\" / \"&VLOOKUP(times[[#This Row],[كد]],personel[],3,FALSE),0)","v":0},{"$f":"IF(times[[#This Row],[خروج]]>times[[#This Row],[ورود]],times[[#This Row],[خروج]]-times[[#This Row],[ورود]],0)","v":"00:00:00"}]
[null,null,null,null,null,{"$f":"IF(times[[#This Row],[كد]]>0,VLOOKUP(times[[#This Row],[كد]],personel[],2,FALSE)&\" / \"&VLOOKUP(times[[#This Row],[كد]],personel[],3,FALSE),0)","v":0},{"$f":"IF(times[[#This Row],[خروج]]>times[[#This Row],[ورود]],times[[#This Row],[خروج]]-times[[#This Row],[ورود]],0)","v":"00:00:00"}]
[null,null,null,null,null,{"$f":"IF(times[[#This Row],[كد]]>0,VLOOKUP(times[[#This Row],[كد]],personel[],2,FALSE)&\" / \"&VLOOKUP(times[[#This Row],[كد]],personel[],3,FALSE),0)","v":0},{"$f":"IF(times[[#This Row],[خروج]]>times[[#This Row],[ورود]],times[[#This Row],[خروج]]-times[[#This Row],[ورود]],0)","v":"00:00:00"}]
[null,null,null,null,null,{"$f":"IF(times[[#This Row],[كد]]>0,VLOOKUP(times[[#This Row],[كد]],personel[],2,FALSE)&\" / \"&VLOOKUP(times[[#This Row],[كد]],personel[],3,FALSE),0)","v":0},{"$f":"IF(times[[#This Row],[خروج]]>times[[#This Row],[ورود]],times[[#This Row],[خروج]]-times[[#This Row],[ورود]],0)","v":"00:00:00"}]
[null,null,null,null,null,{"$f":"IF(times[[#This Row],[كد]]>0,VLOOKUP(times[[#This Row],[كد]],personel[],2,FALSE)&\" / \"&VLOOKUP(times[[#This Row],[كد]],personel[],3,FALSE),0)","v":0},{"$f":"IF(times[[#This Row],[خروج]]>times[[#This Row],[ورود]],times[[#This Row],[خروج]]-times[[#This Row],[ورود]],0)","v":"00:00:00"}]
[null,null,null,null,null,{"$f":"IF(times[[#This Row],[كد]]>0,VLOOKUP(times[[#This Row],[كد]],personel[],2,FALSE)&\" / \"&VLOOKUP(times[[#This Row],[كد]],personel[],3,FALSE),0)","v":0},{"$f":"IF(times[[#This Row],[خروج]]>times[[#This Row],[ورود]],times[[#This Row],[خروج]]-times[[#This Row],[ورود]],0)","v":"00:00:00"}]
[null,null,null,null,null,{"$f":"IF(times[[#This Row],[كد]]>0,VLOOKUP(times[[#This Row],[كد]],personel[],2,FALSE)&\" / \"&VLOOKUP(times[[#This Row],[كد]],personel[],3,FALSE),0)","v":0},{"$f":"IF(times[[#This Row],[خروج]]>times[[#This Row],[ورود]],times[[#This Row],[خروج]]-times[[#This Row],[ورود]],0)","v":"00:00:00"}]
[null,null,null,null,null,{"$f":"IF(times[[#This Row],[كد]]>0,VLOOKUP(times[[#This Row],[كد]],personel[],2,FALSE)&\" / \"&VLOOKUP(times[[#This Row],[كد]],personel[],3,FALSE),0)","v":0},{"$f":"IF(times[[#This Row],[خروج]]>times[[#This Row],[ورود]],times[[#This Row],[خروج]]-times[[#This Row],[ورود]],0)","v":"00:00:00"}]
[null,null,null,null,null,{"$f":"IF(times[[#This Row],[كد]]>0,VLOOKUP(times[[#This Row],[كد]],personel[],2,FALSE)&\" / \"&VLOOKUP(times[[#This Row],[كد]],personel[],3,FALSE),0)","v":0},{"$f":"IF(times[[#This Row],[خروج]]>times[[#This Row],[ورود]],times[[#This Row],[خروج]]-times[[#This Row],[ورود]],0)","v":"00:00:00"}]
[null,null,null,null,null,{"$f":"IF(times[[#This Row],[كد]]>0,VLOOKUP(times[[#This Row],[كد]],personel[],2,FALSE)&\" / \"&VLOOKUP(times[[#This Row],[كد]],personel[],3,FALSE),0)","v":0},{"$f":"IF(times[[#This Row],[خروج]]>times[[#This Row],[ورود]],times[[#This Row],[خروج]]-times[[#This Row],[ورود]],0)","v":"00:00:00"}]
[null,null,null,null,null,{"$f":"IF(times[[#This Row],[كد]]>0,VLOOKUP(times[[#This Row],[كد]],personel[],2,FALSE)&\" / \"&VLOOKUP(times[[#This Row],[كد]],personel[],3,FALSE),0)","v":0},{"$f":"IF(times[[#This Row],[خروج]]>times[[#This Row],[ورود]],times[[#This Row],[خروج]]-times[[#This Row],[ورود]],0)","v":"00:00:00"}]
[null,null,null,null,null,{"$f":"IF(times[[#This Row],[كد]]>0,VLOOKUP(times[[#This Row],[كد]],personel[],2,FALSE)&\" / \"&VLOOKUP(times[[#This Row],[كد]],personel[],3,FALSE),0)","v":0},{"$f":"IF(times[[#This Row],[خروج]]>times[[#This Row],[ورود]],times[[#This Row],[خروج]]-times[[#This Row],[ورود]],0)","v":"00:00:00"}]
[null,null,null,null,null,{"$f":"IF(times[[#This Row],[كد]]>0,VLOOKUP(times[[#This Row],[كد]],personel[],2,FALSE)&\" / \"&VLOOKUP(times[[#This Row],[كد]],personel[],3,FALSE),0)","v":0},{"$f":"IF(times[[#This Row],[خروج]]>times[[#This Row],[ورود]],times[[#This Row],[خروج]]-times[[#This Row],[ورود]],0)","v":"00:00:00"}]
[null,null,null,null,null,{"$f":"IF(times[[#This Row],[كد]]>0,VLOOKUP(times[[#This Row],[كد]],personel[],2,FALSE)&\" / \"&VLOOKUP(times[[#This Row],[كد]],personel[],3,FALSE),0)","v":0},{"$f":"IF(times[[#This Row],[خروج]]>times[[#This Row],[ورود]],times[[#This Row],[خروج]]-times[[#This Row],[ورود]],0)","v":"00:00:00"}]
[null,null,null,null,null,{"$f":"IF(times[[#This Row],[كد]]>0,VLOOKUP(times[[#This Row],[كد]],personel[],2,FALSE)&\" / \"&VLOOKUP(times[[#This Row],[كد]],personel[],3,FALSE),0)","v":0},{"$f":"IF(times[[#This Row],[خروج]]>times[[#This Row],[ورود]],times[[#This Row],[خروج]]-times[[#This Row],[ورود]],0)","v":"00:00:00"}]
[null,null,null,null,null,{"$f":"IF(times[[#This Row],[كد]]>0,VLOOKUP(times[[#This Row],[كد]],personel[],2,FALSE)&\" / \"&VLOOKUP(times[[#This Row],[كد]],personel[],3,FALSE),0)","v":0},{"$f":"IF(times[[#This Row],[خروج]]>times[[#This Row],[ورود]],times[[#This Row],[خروج]]-times[[#This Row],[ورود]],0)","v":"00:00:00"}]
[null,null,null,null,null,{"$f":"IF(times[[#This Row],[كد]]>0,VLOOKUP(times[[#This Row],[كد]],personel[],2,FALSE)&\" / \"&VLOOKUP(times[[#This Row],[كد]],personel[],3,FALSE),0)","v":0},{"$f":"IF(times[[#This Row],[خروج]]>times[[#This Row],[ورود]],times[[#This Row],[خروج]]-times[[#This Row],[ورود]],0)","v":"00:00:00"}]
[null,null,null,null,null,{"$f":"IF(times[[#This Row],[كد]]>0,VLOOKUP(times[[#This Row],[كد]],personel[],2,FALSE)&\" / \"&VLOOKUP(times[[#This Row],[كد]],personel[],3,FALSE),0)","v":0},{"$f":"IF(times[[#This Row],[خروج]]>times[[#This Row],[ورود]],times[[#This Row],[خروج]]-times[[#This Row],[ورود]],0)","v":"00:00:00"}]
[null,null,null,null,null,{"$f":"IF(times[[#This Row],[كد]]>0,VLOOKUP(times[[#This Row],[كد]],personel[],2,FALSE)&\" / \"&VLOOKUP(times[[#This Row],[كد]],personel[],3,FALSE),0)","v":0},{"$f":"IF(times[[#This Row],[خروج]]>times[[#This Row],[ورود]],times[[#This Row],[خروج]]-times[[#This Row],[ورود]],0)","v":"00:00:00"}]
[null,null,null,null,null,{"$f":"IF(times[[#This Row],[كد]]>0,VLOOKUP(times[[#This Row],[كد]],personel[],2,FALSE)&\" / \"&VLOOKUP(times[[#This Row],[كد]],personel[],3,FALSE),0)","v":0},{"$f":"IF(times[[#This Row],[خروج]]>times[[#This Row],[ورود]],times[[#This Row],[خروج]]-times[[#This Row],[ورود]],0)","v":"00:00:00"}]
[null,null,null,null,null,{"$f":"IF(times[[#This Row],[كد]]>0,VLOOKUP(times[[#This Row],[كد]],personel[],2,FALSE)&\" / \"&VLOOKUP(times[[#This Row],[كد]],personel[],3,FALSE),0)","v":0},{"$f":"IF(times[[#This Row],[خروج]]>times[[#This Row],[ورود]],times[[#This Row],[خروج]]-times[[#This Row],[ورود]],0)","v":"00:00:00"}]
[null,null,null,null,null,{"$f":"IF(times[[#This Row],[كد]]>0,VLOOKUP(times[[#This Row],[كد]],personel[],2,FALSE)&\" / \"&VLOOKUP(times[[#This Row],[كد]],personel[],3,FALSE),0)","v":0},{"$f":"IF(times[[#This Row],[خروج]]>times[[#This Row],[ورود]],times[[#This Row],[خروج]]-times[[#This Row],[ورود]],0)","v":"00:00:00"}]
[null,null,null,null,null,{"$f":"IF(times[[#This Row],[كد]]>0,VLOOKUP(times[[#This Row],[كد]],personel[],2,FALSE)&\" / \"&VLOOKUP(times[[#This Row],[كد]],personel[],3,FALSE),0)","v":0},{"$f":"IF(times[[#This Row],[خروج]]>times[[#This Row],[ورود]],times[[#This Row],[خروج]]-times[[#This Row],[ورود]],0)","v":"00:00:00"}]
[null,null,null,null,null,{"$f":"IF(times[[#This Row],[كد]]>0,VLOOKUP(times[[#This Row],[كد]],personel[],2,FALSE)&\" / \"&VLOOKUP(times[[#This Row],[كد]],personel[],3,FALSE),0)","v":0},{"$f":"IF(times[[#This Row],[خروج]]>times[[#This Row],[ورود]],times[[#This Row],[خروج]]-times[[#This Row],[ورود]],0)","v":"00:00:00"}]
[null,null,null,null,null,{"$f":"IF(times[[#This Row],[كد]]>0,VLOOKUP(times[[#This Row],[كد]],personel[],2,FALSE)&\" / \"&VLOOKUP(times[[#This Row],[كد]],personel[],3,FALSE),0)","v":0},{"$f":"IF(times[[#This Row],[خروج]]>times[[#This Row],[ورود]],times[[#This Row],[خروج]]-times[[#This Row],[ورود]],0)","v":"00:00:00"}]
[null,null,null,null,null,{"$f":"IF(times[[#This Row],[كد]]>0,VLOOKUP(times[[#This Row],[كد]],personel[],2,FALSE)&\" / \"&VLOOKUP(times[[#This Row],[كد]],personel[],3,FALSE),0)","v":0},{"$f":"IF(times[[#This Row],[خروج]]>times[[#This Row],[ورود]],times[[#This Row],[خروج]]-times[[#This Row],[ورود]],0)","v":"00:00:00"}]
[null,null,null,null,null,{"$f":"IF(times[[#This Row],[كد]]>0,VLOOKUP(times[[#This Row],[كد]],personel[],2,FALSE)&\" / \"&VLOOKUP(times[[#This Row],[كد]],personel[],3,FALSE),0)","v":0},{"$f":"IF(times[[#This Row],[خروج]]>times[[#This Row],[ورود]],times[[#This Row],[خروج]]-times[[#This Row],[ورود]],0)","v":"00:00:00"}]
[null,null,null,null,null,{"$f":"IF(times[[#This Row],[كد]]>0,VLOOKUP(times[[#This Row],[كد]],personel[],2,FALSE)&\" / \"&VLOOKUP(times[[#This Row],[كد]],personel[],3,FALSE),0)","v":0},{"$f":"IF(times[[#This Row],[خروج]]>times[[#This Row],[ورود]],times[[#This Row],[خروج]]-times[[#This Row],[ورود]],0)","v":"00:00:00"}]
[null,null,null,null,null,{"$f":"IF(times[[#This Row],[كد]]>0,VLOOKUP(times[[#This Row],[كد]],personel[],2,FALSE)&\" / \"&VLOOKUP(times[[#This Row],[كد]],personel[],3,FALSE),0)","v":0},{"$f":"IF(times[[#This Row],[خروج]]>times[[#This Row],[ورود]],times[[#This Row],[خروج]]-times[[#This Row],[ورود]],0)","v":"00:00:00"}]
[null,null,null,null,null,{"$f":"IF(times[[#This Row],[كد]]>0,VLOOKUP(times[[#This Row],[كد]],personel[],2,FALSE)&\" / \"&VLOOKUP(times[[#This Row],[كد]],personel[],3,FALSE),0)","v":0},{"$f":"IF(times[[#This Row],[خروج]]>times[[#This Row],[ورود]],times[[#This Row],[خروج]]-times[[#This Row],[ورود]],0)","v":"00:00:00"}]
[null,null,null,null,null,{"$f":"IF(times[[#This Row],[كد]]>0,VLOOKUP(times[[#This Row],[كد]],personel[],2,FALSE)&\" / \"&VLOOKUP(times[[#This Row],[كد]],personel[],3,FALSE),0)","v":0},{"$f":"IF(times[[#This Row],[خروج]]>times[[#This Row],[ورود]],times[[#This Row],[خروج]]-times[[#This Row],[ورود]],0)","v":"00:00:00"}]
[null,null,null,null,null,{"$f":"IF(times[[#This Row],[كد]]>0,VLOOKUP(times[[#This Row],[كد]],personel[],2,FALSE)&\" / \"&VLOOKUP(times[[#This Row],[كد]],personel[],3,FALSE),0)","v":0},{"$f":"IF(times[[#This Row],[خروج]]>times[[#This Row],[ورود]],times[[#This Row],[خروج]]-times[[#This Row],[ورود]],0)","v":"00:00:00"}]
[null,null,null,null,null,{"$f":"IF(times[[#This Row],[كد]]>0,VLOOKUP(times[[#This Row],[كد]],personel[],2,FALSE)&\" / \"&VLOOKUP(times[[#This Row],[كد]],personel[],3,FALSE),0)","v":0},{"$f":"IF(times[[#This Row],[خروج]]>times[[#This Row],[ورود]],times[[#This Row],[خروج]]-times[[#This Row],[ورود]],0)","v":"00:00:00"}]
[null,null,null,null,null,{"$f":"IF(times[[#This Row],[كد]]>0,VLOOKUP(times[[#This Row],[كد]],personel[],2,FALSE)&\" / \"&VLOOKUP(times[[#This Row],[كد]],personel[],3,FALSE),0)","v":0},{"$f":"IF(times[[#This Row],[خروج]]>times[[#This Row],[ورود]],times[[#This Row],[خروج]]-times[[#This Row],[ورود]],0)","v":"00:00:00"}]
[null,null,null,null,null,{"$f":"IF(times[[#This Row],[كد]]>0,VLOOKUP(times[[#This Row],[كد]],personel[],2,FALSE)&\" / \"&VLOOKUP(times[[#This Row],[كد]],personel[],3,FALSE),0)","v":0},{"$f":"IF(times[[#This Row],[خروج]]>times[[#This Row],[ورود]],times[[#This Row],[خروج]]-times[[#This Row],[ورود]],0)","v":"00:00:00"}]
[null,null,null,null,null,{"$f":"IF(times[[#This Row],[كد]]>0,VLOOKUP(times[[#This Row],[كد]],personel[],2,FALSE)&\" / \"&VLOOKUP(times[[#This Row],[كد]],personel[],3,FALSE),0)","v":0},{"$f":"IF(times[[#This Row],[خروج]]>times[[#This Row],[ورود]],times[[#This Row],[خروج]]-times[[#This Row],[ورود]],0)","v":"00:00:00"}]
[null,null,null,null,null,{"$f":"IF(times[[#This Row],[كد]]>0,VLOOKUP(times[[#This Row],[كد]],personel[],2,FALSE)&\" / \"&VLOOKUP(times[[#This Row],[كد]],personel[],3,FALSE),0)","v":0},{"$f":"IF(times[[#This Row],[خروج]]>times[[#This Row],[ورود]],times[[#This Row],[خروج]]-times[[#This Row],[ورود]],0)","v":"00:00:00"}]
[null,null,null,null,null,{"$f":"IF(times[[#This Row],[كد]]>0,VLOOKUP(times[[#This Row],[كد]],personel[],2,FALSE)&\" / \"&VLOOKUP(times[[#This Row],[كد]],personel[],3,FALSE),0)","v":0},{"$f":"IF(times[[#This Row],[خروج]]>times[[#This Row],[ورود]],times[[#This Row],[خروج]]-times[[#This Row],[ورود]],0)","v":"00:00:00"}]
[null,null,null,null,null,{"$f":"IF(times[[#This Row],[كد]]>0,VLOOKUP(times[[#This Row],[كد]],personel[],2,FALSE)&\" / \"&VLOOKUP(times[[#This Row],[كد]],personel[],3,FALSE),0)","v":0},{"$f":"IF(times[[#This Row],[خروج]]>times[[#This Row],[ورود]],times[[#This Row],[خروج]]-times[[#This Row],[ورود]],0)","v":"00:00:00"}]
[null,null,null,null,null,{"$f":"IF(times[[#This Row],[كد]]>0,VLOOKUP(times[[#This Row],[كد]],personel[],2,FALSE)&\" / \"&VLOOKUP(times[[#This Row],[كد]],personel[],3,FALSE),0)","v":0},{"$f":"IF(times[[#This Row],[خروج]]>times[[#This Row],[ورود]],times[[#This Row],[خروج]]-times[[#This Row],[ورود]],0)","v":"00:00:00"}]
[null,null,null,null,null,{"$f":"IF(times[[#This Row],[كد]]>0,VLOOKUP(times[[#This Row],[كد]],personel[],2,FALSE)&\" / \"&VLOOKUP(times[[#This Row],[كد]],personel[],3,FALSE),0)","v":0},{"$f":"IF(times[[#This Row],[خروج]]>times[[#This Row],[ورود]],times[[#This Row],[خروج]]-times[[#This Row],[ورود]],0)","v":"00:00:00"}]
[null,null,null,null,null,{"$f":"IF(times[[#This Row],[كد]]>0,VLOOKUP(times[[#This Row],[كد]],personel[],2,FALSE)&\" / \"&VLOOKUP(times[[#This Row],[كد]],personel[],3,FALSE),0)","v":0},{"$f":"IF(times[[#This Row],[خروج]]>times[[#This Row],[ورود]],times[[#This Row],[خروج]]-times[[#This Row],[ورود]],0)","v":"00:00:00"}]
[null,null,null,null,null,{"$f":"IF(times[[#This Row],[كد]]>0,VLOOKUP(times[[#This Row],[كد]],personel[],2,FALSE)&\" / \"&VLOOKUP(times[[#This Row],[كد]],personel[],3,FALSE),0)","v":0},{"$f":"IF(times[[#This Row],[خروج]]>times[[#This Row],[ورود]],times[[#This Row],[خروج]]-times[[#This Row],[ورود]],0)","v":"00:00:00"}]
[null,null,null,null,null,{"$f":"IF(times[[#This Row],[كد]]>0,VLOOKUP(times[[#This Row],[كد]],personel[],2,FALSE)&\" / \"&VLOOKUP(times[[#This Row],[كد]],personel[],3,FALSE),0)","v":0},{"$f":"IF(times[[#This Row],[خروج]]>times[[#This Row],[ورود]],times[[#This Row],[خروج]]-times[[#This Row],[ورود]],0)","v":"00:00:00"}]
[null,null,null,null,null,{"$f":"IF(times[[#This Row],[كد]]>0,VLOOKUP(times[[#This Row],[كد]],personel[],2,FALSE)&\" / \"&VLOOKUP(times[[#This Row],[كد]],personel[],3,FALSE),0)","v":0},{"$f":"IF(times[[#This Row],[خروج]]>times[[#This Row],[ورود]],times[[#This Row],[خروج]]-times[[#This Row],[ورود]],0)","v":"00:00:00"}]
[null,null,null,null,null,{"$f":"IF(times[[#This Row],[كد]]>0,VLOOKUP(times[[#This Row],[كد]],personel[],2,FALSE)&\" / \"&VLOOKUP(times[[#This Row],[كد]],personel[],3,FALSE),0)","v":0},{"$f":"IF(times[[#This Row],[خروج]]>times[[#This Row],[ورود]],times[[#This Row],[خروج]]-times[[#This Row],[ورود]],0)","v":"00:00:00"}]
[null,null,null,null,null,{"$f":"IF(times[[#This Row],[كد]]>0,VLOOKUP(times[[#This Row],[كد]],personel[],2,FALSE)&\" / \"&VLOOKUP(times[[#This Row],[كد]],personel[],3,FALSE),0)","v":0},{"$f":"IF(times[[#This Row],[خروج]]>times[[#This Row],[ورود]],times[[#This Row],[خروج]]-times[[#This Row],[ورود]],0)","v":"00:00:00"}]
[null,null,null,null,null,{"$f":"IF(times[[#This Row],[كد]]>0,VLOOKUP(times[[#This Row],[كد]],personel[],2,FALSE)&\" / \"&VLOOKUP(times[[#This Row],[كد]],personel[],3,FALSE),0)","v":0},{"$f":"IF(times[[#This Row],[خروج]]>times[[#This Row],[ورود]],times[[#This Row],[خروج]]-times[[#This Row],[ورود]],0)","v":"00:00:00"}]
[null,null,null,null,null,{"$f":"IF(times[[#This Row],[كد]]>0,VLOOKUP(times[[#This Row],[كد]],personel[],2,FALSE)&\" / \"&VLOOKUP(times[[#This Row],[كد]],personel[],3,FALSE),0)","v":0},{"$f":"IF(times[[#This Row],[خروج]]>times[[#This Row],[ورود]],times[[#This Row],[خروج]]-times[[#This Row],[ورود]],0)","v":"00:00:00"}]
[null,null,null,null,null,{"$f":"IF(times[[#This Row],[كد]]>0,VLOOKUP(times[[#This Row],[كد]],personel[],2,FALSE)&\" / \"&VLOOKUP(times[[#This Row],[كد]],personel[],3,FALSE),0)","v":0},{"$f":"IF(times[[#This Row],[خروج]]>times[[#This Row],[ورود]],times[[#This Row],[خروج]]-times[[#This Row],[ورود]],0)","v":"00:00:00"}]
[null,null,null,null,null,{"$f":"IF(times[[#This Row],[كد]]>0,VLOOKUP(times[[#This Row],[كد]],personel[],2,FALSE)&\" / \"&VLOOKUP(times[[#This Row],[كد]],personel[],3,FALSE),0)","v":0},{"$f":"IF(times[[#This Row],[خروج]]>times[[#This Row],[ورود]],times[[#This Row],[خروج]]-times[[#This Row],[ورود]],0)","v":"00:00:00"}]
[null,null,null,null,null,{"$f":"IF(times[[#This Row],[كد]]>0,VLOOKUP(times[[#This Row],[كد]],personel[],2,FALSE)&\" / \"&VLOOKUP(times[[#This Row],[كد]],personel[],3,FALSE),0)","v":0},{"$f":"IF(times[[#This Row],[خروج]]>times[[#This Row],[ورود]],times[[#This Row],[خروج]]-times[[#This Row],[ورود]],0)","v":"00:00:00"}]
[null,null,null,null,null,{"$f":"IF(times[[#This Row],[كد]]>0,VLOOKUP(times[[#This Row],[كد]],personel[],2,FALSE)&\" / \"&VLOOKUP(times[[#This Row],[كد]],personel[],3,FALSE),0)","v":0},{"$f":"IF(times[[#This Row],[خروج]]>times[[#This Row],[ورود]],times[[#This Row],[خروج]]-times[[#This Row],[ورود]],0)","v":"00:00:00"}]
[null,null,null,null,null,{"$f":"IF(times[[#This Row],[كد]]>0,VLOOKUP(times[[#This Row],[كد]],personel[],2,FALSE)&\" / \"&VLOOKUP(times[[#This Row],[كد]],personel[],3,FALSE),0)","v":0},{"$f":"IF(times[[#This Row],[خروج]]>times[[#This Row],[ورود]],times[[#This Row],[خروج]]-times[[#This Row],[ورود]],0)","v":"00:00:00"}]
[null,null,null,null,null,{"$f":"IF(times[[#This Row],[كد]]>0,VLOOKUP(times[[#This Row],[كد]],personel[],2,FALSE)&\" / \"&VLOOKUP(times[[#This Row],[كد]],personel[],3,FALSE),0)","v":0},{"$f":"IF(times[[#This Row],[خروج]]>times[[#This Row],[ورود]],times[[#This Row],[خروج]]-times[[#This Row],[ورود]],0)","v":"00:00:00"}]
[null,null,null,null,null,{"$f":"IF(times[[#This Row],[كد]]>0,VLOOKUP(times[[#This Row],[كد]],personel[],2,FALSE)&\" / \"&VLOOKUP(times[[#This Row],[كد]],personel[],3,FALSE),0)","v":0},{"$f":"IF(times[[#This Row],[خروج]]>times[[#This Row],[ورود]],times[[#This Row],[خروج]]-times[[#This Row],[ورود]],0)","v":"00:00:00"}]
[null,null,null,null,null,{"$f":"IF(times[[#This Row],[كد]]>0,VLOOKUP(times[[#This Row],[كد]],personel[],2,FALSE)&\" / \"&VLOOKUP(times[[#This Row],[كد]],personel[],3,FALSE),0)","v":0},{"$f":"IF(times[[#This Row],[خروج]]>times[[#This Row],[ورود]],times[[#This Row],[خروج]]-times[[#This Row],[ورود]],0)","v":"00:00:00"}]
[null,null,null,null,null,{"$f":"IF(times[[#This Row],[كد]]>0,VLOOKUP(times[[#This Row],[كد]],personel[],2,FALSE)&\" / \"&VLOOKUP(times[[#This Row],[كد]],personel[],3,FALSE),0)","v":0},{"$f":"IF(times[[#This Row],[خروج]]>times[[#This Row],[ورود]],times[[#This Row],[خروج]]-times[[#This Row],[ورود]],0)","v":"00:00:00"}]
[null,null,null,null,null,{"$f":"IF(times[[#This Row],[كد]]>0,VLOOKUP(times[[#This Row],[كد]],personel[],2,FALSE)&\" / \"&VLOOKUP(times[[#This Row],[كد]],personel[],3,FALSE),0)","v":0},{"$f":"IF(times[[#This Row],[خروج]]>times[[#This Row],[ورود]],times[[#This Row],[خروج]]-times[[#This Row],[ورود]],0)","v":"00:00:00"}]
[null,null,null,null,null,{"$f":"IF(times[[#This Row],[كد]]>0,VLOOKUP(times[[#This Row],[كد]],personel[],2,FALSE)&\" / \"&VLOOKUP(times[[#This Row],[كد]],personel[],3,FALSE),0)","v":0},{"$f":"IF(times[[#This Row],[خروج]]>times[[#This Row],[ورود]],times[[#This Row],[خروج]]-times[[#This Row],[ورود]],0)","v":"00:00:00"}]
[null,null,null,null,null,{"$f":"IF(times[[#This Row],[كد]]>0,VLOOKUP(times[[#This Row],[كد]],personel[],2,FALSE)&\" / \"&VLOOKUP(times[[#This Row],[كد]],personel[],3,FALSE),0)","v":0},{"$f":"IF(times[[#This Row],[خروج]]>times[[#This Row],[ورود]],times[[#This Row],[خروج]]-times[[#This Row],[ورود]],0)","v":"00:00:00"}]
[null,null,null,null,null,{"$f":"IF(times[[#This Row],[كد]]>0,VLOOKUP(times[[#This Row],[كد]],personel[],2,FALSE)&\" / \"&VLOOKUP(times[[#This Row],[كد]],personel[],3,FALSE),0)","v":0},{"$f":"IF(times[[#This Row],[خروج]]>times[[#This Row],[ورود]],times[[#This Row],[خروج]]-times[[#This Row],[ورود]],0)","v":"00:00:00"}]
[null,null,null,null,null,{"$f":"IF(times[[#This Row],[كد]]>0,VLOOKUP(times[[#This Row],[كد]],personel[],2,FALSE)&\" / \"&VLOOKUP(times[[#This Row],[كد]],personel[],3,FALSE),0)","v":0},{"$f":"IF(times[[#This Row],[خروج]]>times[[#This Row],[ورود]],times[[#This Row],[خروج]]-times[[#This Row],[ورود]],0)","v":"00:00:00"}]
[null,null,null,null,null,{"$f":"IF(times[[#This Row],[كد]]>0,VLOOKUP(times[[#This Row],[كد]],personel[],2,FALSE)&\" / \"&VLOOKUP(times[[#This Row],[كد]],personel[],3,FALSE),0)","v":0},{"$f":"IF(times[[#This Row],[خروج]]>times[[#This Row],[ورود]],times[[#This Row],[خروج]]-times[[#This Row],[ورود]],0)","v":"00:00:00"}]
[null,null,null,null,null,{"$f":"IF(times[[#This Row],[كد]]>0,VLOOKUP(times[[#This Row],[كد]],personel[],2,FALSE)&\" / \"&VLOOKUP(times[[#This Row],[كد]],personel[],3,FALSE),0)","v":0},{"$f":"IF(times[[#This Row],[خروج]]>times[[#This Row],[ورود]],times[[#This Row],[خروج]]-times[[#This Row],[ورود]],0)","v":"00:00:00"}]
[null,null,null,null,null,{"$f":"IF(times[[#This Row],[كد]]>0,VLOOKUP(times[[#This Row],[كد]],personel[],2,FALSE)&\" / \"&VLOOKUP(times[[#This Row],[كد]],personel[],3,FALSE),0)","v":0},{"$f":"IF(times[[#This Row],[خروج]]>times[[#This Row],[ورود]],times[[#This Row],[خروج]]-times[[#This Row],[ورود]],0)","v":"00:00:00"}]
[null,null,null,null,null,{"$f":"IF(times[[#This Row],[كد]]>0,VLOOKUP(times[[#This Row],[كد]],personel[],2,FALSE)&\" / \"&VLOOKUP(times[[#This Row],[كد]],personel[],3,FALSE),0)","v":0},{"$f":"IF(times[[#This Row],[خروج]]>times[[#This Row],[ورود]],times[[#This Row],[خروج]]-times[[#This Row],[ورود]],0)","v":"00:00:00"}]
[null,null,null,null,null,{"$f":"IF(times[[#This Row],[كد]]>0,VLOOKUP(times[[#This Row],[كد]],personel[],2,FALSE)&\" / \"&VLOOKUP(times[[#This Row],[كد]],personel[],3,FALSE),0)","v":0},{"$f":"IF(times[[#This Row],[خروج]]>times[[#This Row],[ورود]],times[[#This Row],[خروج]]-times[[#This Row],[ورود]],0)","v":"00:00:00"}]
[null,null,null,null,null,{"$f":"IF(times[[#This Row],[كد]]>0,VLOOKUP(times[[#This Row],[كد]],personel[],2,FALSE)&\" / \"&VLOOKUP(times[[#This Row],[كد]],personel[],3,FALSE),0)","v":0},{"$f":"IF(times[[#This Row],[خروج]]>times[[#This Row],[ورود]],times[[#This Row],[خروج]]-times[[#This Row],[ورود]],0)","v":"00:00:00"}]
[null,null,null,null,null,{"$f":"IF(times[[#This Row],[كد]]>0,VLOOKUP(times[[#This Row],[كد]],personel[],2,FALSE)&\" / \"&VLOOKUP(times[[#This Row],[كد]],personel[],3,FALSE),0)","v":0},{"$f":"IF(times[[#This Row],[خروج]]>times[[#This Row],[ورود]],times[[#This Row],[خروج]]-times[[#This Row],[ورود]],0)","v":"00:00:00"}]
[null,null,null,null,null,{"$f":"IF(times[[#This Row],[كد]]>0,VLOOKUP(times[[#This Row],[كد]],personel[],2,FALSE)&\" / \"&VLOOKUP(times[[#This Row],[كد]],personel[],3,FALSE),0)","v":0},{"$f":"IF(times[[#This Row],[خروج]]>times[[#This Row],[ورود]],times[[#This Row],[خروج]]-times[[#This Row],[ورود]],0)","v":"00:00:00"}]
[null,null,null,null,null,{"$f":"IF(times[[#This Row],[كد]]>0,VLOOKUP(times[[#This Row],[كد]],personel[],2,FALSE)&\" / \"&VLOOKUP(times[[#This Row],[كد]],personel[],3,FALSE),0)","v":0},{"$f":"IF(times[[#This Row],[خروج]]>times[[#This Row],[ورود]],times[[#This Row],[خروج]]-times[[#This Row],[ورود]],0)","v":"00:00:00"}]
[null,null,null,null,null,{"$f":"IF(times[[#This Row],[كد]]>0,VLOOKUP(times[[#This Row],[كد]],personel[],2,FALSE)&\" / \"&VLOOKUP(times[[#This Row],[كد]],personel[],3,FALSE),0)","v":0},{"$f":"IF(times[[#This Row],[خروج]]>times[[#This Row],[ورود]],times[[#This Row],[خروج]]-times[[#This Row],[ورود]],0)","v":"00:00:00"}]
[null,null,null,null,null,{"$f":"IF(times[[#This Row],[كد]]>0,VLOOKUP(times[[#This Row],[كد]],personel[],2,FALSE)&\" / \"&VLOOKUP(times[[#This Row],[كد]],personel[],3,FALSE),0)","v":0},{"$f":"IF(times[[#This Row],[خروج]]>times[[#This Row],[ورود]],times[[#This Row],[خروج]]-times[[#This Row],[ورود]],0)","v":"00:00:00"}]
[null,null,null,null,null,{"$f":"IF(times[[#This Row],[كد]]>0,VLOOKUP(times[[#This Row],[كد]],personel[],2,FALSE)&\" / \"&VLOOKUP(times[[#This Row],[كد]],personel[],3,FALSE),0)","v":0},{"$f":"IF(times[[#This Row],[خروج]]>times[[#This Row],[ورود]],times[[#This Row],[خروج]]-times[[#This Row],[ورود]],0)","v":"00:00:00"}]
[null,null,null,null,null,{"$f":"IF(times[[#This Row],[كد]]>0,VLOOKUP(times[[#This Row],[كد]],personel[],2,FALSE)&\" / \"&VLOOKUP(times[[#This Row],[كد]],personel[],3,FALSE),0)","v":0},{"$f":"IF(times[[#This Row],[خروج]]>times[[#This Row],[ورود]],times[[#This Row],[خروج]]-times[[#This Row],[ورود]],0)","v":"00:00:00"}]
[null,null,null,null,null,{"$f":"IF(times[[#This Row],[كد]]>0,VLOOKUP(times[[#This Row],[كد]],personel[],2,FALSE)&\" / \"&VLOOKUP(times[[#This Row],[كد]],personel[],3,FALSE),0)","v":0},{"$f":"IF(times[[#This Row],[خروج]]>times[[#This Row],[ورود]],times[[#This Row],[خروج]]-times[[#This Row],[ورود]],0)","v":"00:00:00"}]
[null,null,null,null,null,{"$f":"IF(times[[#This Row],[كد]]>0,VLOOKUP(times[[#This Row],[كد]],personel[],2,FALSE)&\" / \"&VLOOKUP(times[[#This Row],[كد]],personel[],3,FALSE),0)","v":0},{"$f":"IF(times[[#This Row],[خروج]]>times[[#This Row],[ورود]],times[[#This Row],[خروج]]-times[[#This Row],[ورود]],0)","v":"00:00:00"}]
[null,null,null,null,null,{"$f":"IF(times[[#This Row],[كد]]>0,VLOOKUP(times[[#This Row],[كد]],personel[],2,FALSE)&\" / \"&VLOOKUP(times[[#This Row],[كد]],personel[],3,FALSE),0)","v":0},{"$f":"IF(times[[#This Row],[خروج]]>times[[#This Row],[ورود]],times[[#This Row],[خروج]]-times[[#This Row],[ورود]],0)","v":"00:00:00"}]
[null,null,null,null,null,{"$f":"IF(times[[#This Row],[كد]]>0,VLOOKUP(times[[#This Row],[كد]],personel[],2,FALSE)&\" / \"&VLOOKUP(times[[#This Row],[كد]],personel[],3,FALSE),0)","v":0},{"$f":"IF(times[[#This Row],[خروج]]>times[[#This Row],[ورود]],times[[#This Row],[خروج]]-times[[#This Row],[ورود]],0)","v":"00:00:00"}]
[null,null,null,null,null,{"$f":"IF(times[[#This Row],[كد]]>0,VLOOKUP(times[[#This Row],[كد]],personel[],2,FALSE)&\" / \"&VLOOKUP(times[[#This Row],[كد]],personel[],3,FALSE),0)","v":0},{"$f":"IF(times[[#This Row],[خروج]]>times[[#This Row],[ورود]],times[[#This Row],[خروج]]-times[[#This Row],[ورود]],0)","v":"00:00:00"}]
[null,null,null,null,null,{"$f":"IF(times[[#This Row],[كد]]>0,VLOOKUP(times[[#This Row],[كد]],personel[],2,FALSE)&\" / \"&VLOOKUP(times[[#This Row],[كد]],personel[],3,FALSE),0)","v":0},{"$f":"IF(times[[#This Row],[خروج]]>times[[#This Row],[ورود]],times[[#This Row],[خروج]]-times[[#This Row],[ورود]],0)","v":"00:00:00"}]
[null,null,null,null,null,{"$f":"IF(times[[#This Row],[كد]]>0,VLOOKUP(times[[#This Row],[كد]],personel[],2,FALSE)&\" / \"&VLOOKUP(times[[#This Row],[كد]],personel[],3,FALSE),0)","v":0},{"$f":"IF(times[[#This Row],[خروج]]>times[[#This Row],[ورود]],times[[#This Row],[خروج]]-times[[#This Row],[ورود]],0)","v":"00:00:00"}]
[null,null,null,null,null,{"$f":"IF(times[[#This Row],[كد]]>0,VLOOKUP(times[[#This Row],[كد]],personel[],2,FALSE)&\" / \"&VLOOKUP(times[[#This Row],[كد]],personel[],3,FALSE),0)","v":0},{"$f":"IF(times[[#This Row],[خروج]]>times[[#This Row],[ورود]],times[[#This Row],[خروج]]-times[[#This Row],[ورود]],0)","v":"00:00:00"}]
[null,null,null,null,null,{"$f":"IF(times[[#This Row],[كد]]>0,VLOOKUP(times[[#This Row],[كد]],personel[],2,FALSE)&\" / \"&VLOOKUP(times[[#This Row],[كد]],personel[],3,FALSE),0)","v":0},{"$f":"IF(times[[#This Row],[خروج]]>times[[#This Row],[ورود]],times[[#This Row],[خروج]]-times[[#This Row],[ورود]],0)","v":"00:00:00"}]
[null,null,null,null,null,{"$f":"IF(times[[#This Row],[كد]]>0,VLOOKUP(times[[#This Row],[كد]],personel[],2,FALSE)&\" / \"&VLOOKUP(times[[#This Row],[كد]],personel[],3,FALSE),0)","v":0},{"$f":"IF(times[[#This Row],[خروج]]>times[[#This Row],[ورود]],times[[#This Row],[خروج]]-times[[#This Row],[ورود]],0)","v":"00:00:00"}]
[null,null,null,null,null,{"$f":"IF(times[[#This Row],[كد]]>0,VLOOKUP(times[[#This Row],[كد]],personel[],2,FALSE)&\" / \"&VLOOKUP(times[[#This Row],[كد]],personel[],3,FALSE),0)","v":0},{"$f":"IF(times[[#This Row],[خروج]]>times[[#This Row],[ورود]],times[[#This Row],[خروج]]-times[[#This Row],[ورود]],0)","v":"00:00:00"}]
[null,null,null,null,null,{"$f":"IF(times[[#This Row],[كد]]>0,VLOOKUP(times[[#This Row],[كد]],personel[],2,FALSE)&\" / \"&VLOOKUP(times[[#This Row],[كد]],personel[],3,FALSE),0)","v":0},{"$f":"IF(times[[#This Row],[خروج]]>times[[#This Row],[ورود]],times[[#This Row],[خروج]]-times[[#This Row],[ورود]],0)","v":"00:00:00"}]
[null,null,null,null,null,{"$f":"IF(times[[#This Row],[كد]]>0,VLOOKUP(times[[#This Row],[كد]],personel[],2,FALSE)&\" / \"&VLOOKUP(times[[#This Row],[كد]],personel[],3,FALSE),0)","v":0},{"$f":"IF(times[[#This Row],[خروج]]>times[[#This Row],[ورود]],times[[#This Row],[خروج]]-times[[#This Row],[ورود]],0)","v":"00:00:00"}]
[null,null,null,null,null,{"$f":"IF(times[[#This Row],[كد]]>0,VLOOKUP(times[[#This Row],[كد]],personel[],2,FALSE)&\" / \"&VLOOKUP(times[[#This Row],[كد]],personel[],3,FALSE),0)","v":0},{"$f":"IF(times[[#This Row],[خروج]]>times[[#This Row],[ورود]],times[[#This Row],[خروج]]-times[[#This Row],[ورود]],0)","v":"00:00:00"}]
[null,null,null,null,null,{"$f":"IF(times[[#This Row],[كد]]>0,VLOOKUP(times[[#This Row],[كد]],personel[],2,FALSE)&\" / \"&VLOOKUP(times[[#This Row],[كد]],personel[],3,FALSE),0)","v":0},{"$f":"IF(times[[#This Row],[خروج]]>times[[#This Row],[ورود]],times[[#This Row],[خروج]]-times[[#This Row],[ورود]],0)","v":"00:00:00"}]
[null,null,null,null,null,{"$f":"IF(times[[#This Row],[كد]]>0,VLOOKUP(times[[#This Row],[كد]],personel[],2,FALSE)&\" / \"&VLOOKUP(times[[#This Row],[كد]],personel[],3,FALSE),0)","v":0},{"$f":"IF(times[[#This Row],[خروج]]>times[[#This Row],[ورود]],times[[#This Row],[خروج]]-times[[#This Row],[ورود]],0)","v":"00:00:00"}]
[null,null,null,null,null,{"$f":"IF(times[[#This Row],[كد]]>0,VLOOKUP(times[[#This Row],[كد]],personel[],2,FALSE)&\" / \"&VLOOKUP(times[[#This Row],[كد]],personel[],3,FALSE),0)","v":0},{"$f":"IF(times[[#This Row],[خروج]]>times[[#This Row],[ورود]],times[[#This Row],[خروج]]-times[[#This Row],[ورود]],0)","v":"00:00:00"}]
[null,null,null,null,null,{"$f":"IF(times[[#This Row],[كد]]>0,VLOOKUP(times[[#This Row],[كد]],personel[],2,FALSE)&\" / \"&VLOOKUP(times[[#This Row],[كد]],personel[],3,FALSE),0)","v":0},{"$f":"IF(times[[#This Row],[خروج]]>times[[#This Row],[ورود]],times[[#This Row],[خروج]]-times[[#This Row],[ورود]],0)","v":"00:00:00"}]
[null,null,null,null,null,{"$f":"IF(times[[#This Row],[كد]]>0,VLOOKUP(times[[#This Row],[كد]],personel[],2,FALSE)&\" / \"&VLOOKUP(times[[#This Row],[كد]],personel[],3,FALSE),0)","v":0},{"$f":"IF(times[[#This Row],[خروج]]>times[[#This Row],[ورود]],times[[#This Row],[خروج]]-times[[#This Row],[ورود]],0)","v":"00:00:00"}]
[null,null,null,null,null,{"$f":"IF(times[[#This Row],[كد]]>0,VLOOKUP(times[[#This Row],[كد]],personel[],2,FALSE)&\" / \"&VLOOKUP(times[[#This Row],[كد]],personel[],3,FALSE),0)","v":0},{"$f":"IF(times[[#This Row],[خروج]]>times[[#This Row],[ورود]],times[[#This Row],[خروج]]-times[[#This Row],[ورود]],0)","v":"00:00:00"}]
[null,null,null,null,null,{"$f":"IF(times[[#This Row],[كد]]>0,VLOOKUP(times[[#This Row],[كد]],personel[],2,FALSE)&\" / \"&VLOOKUP(times[[#This Row],[كد]],personel[],3,FALSE),0)","v":0},{"$f":"IF(times[[#This Row],[خروج]]>times[[#This Row],[ورود]],times[[#This Row],[خروج]]-times[[#This Row],[ورود]],0)","v":"00:00:00"}]
[null,null,null,null,null,{"$f":"IF(times[[#This Row],[كد]]>0,VLOOKUP(times[[#This Row],[كد]],personel[],2,FALSE)&\" / \"&VLOOKUP(times[[#This Row],[كد]],personel[],3,FALSE),0)","v":0},{"$f":"IF(times[[#This Row],[خروج]]>times[[#This Row],[ورود]],times[[#This Row],[خروج]]-times[[#This Row],[ورود]],0)","v":"00:00:00"}]
[null,null,null,null,null,{"$f":"IF(times[[#This Row],[كد]]>0,VLOOKUP(times[[#This Row],[كد]],personel[],2,FALSE)&\" / \"&VLOOKUP(times[[#This Row],[كد]],personel[],3,FALSE),0)","v":0},{"$f":"IF(times[[#This Row],[خروج]]>times[[#This Row],[ورود]],times[[#This Row],[خروج]]-times[[#This Row],[ورود]],0)","v":"00:00:00"}]
[null,null,null,null,null,{"$f":"IF(times[[#This Row],[كد]]>0,VLOOKUP(times[[#This Row],[كد]],personel[],2,FALSE)&\" / \"&VLOOKUP(times[[#This Row],[كد]],personel[],3,FALSE),0)","v":0},{"$f":"IF(times[[#This Row],[خروج]]>times[[#This Row],[ورود]],times[[#This Row],[خروج]]-times[[#This Row],[ورود]],0)","v":"00:00:00"}]
[null,null,null,null,null,{"$f":"IF(times[[#This Row],[كد]]>0,VLOOKUP(times[[#This Row],[كد]],personel[],2,FALSE)&\" / \"&VLOOKUP(times[[#This Row],[كد]],personel[],3,FALSE),0)","v":0},{"$f":"IF(times[[#This Row],[خروج]]>times[[#This Row],[ورود]],times[[#This Row],[خروج]]-times[[#This Row],[ورود]],0)","v":"00:00:00"}]
[null,null,null,null,null,{"$f":"IF(times[[#This Row],[كد]]>0,VLOOKUP(times[[#This Row],[كد]],personel[],2,FALSE)&\" / \"&VLOOKUP(times[[#This Row],[كد]],personel[],3,FALSE),0)","v":0},{"$f":"IF(times[[#This Row],[خروج]]>times[[#This Row],[ورود]],times[[#This Row],[خروج]]-times[[#This Row],[ورود]],0)","v":"00:00:00"}]
[null,null,null,null,null,{"$f":"IF(times[[#This Row],[كد]]>0,VLOOKUP(times[[#This Row],[كد]],personel[],2,FALSE)&\" / \"&VLOOKUP(times[[#This Row],[كد]],personel[],3,FALSE),0)","v":0},{"$f":"IF(times[[#This Row],[خروج]]>times[[#This Row],[ورود]],times[[#This Row],[خروج]]-times[[#This Row],[ورود]],0)","v":"00:00:00"}]
[null,null,null,null,null,{"$f":"IF(times[[#This Row],[كد]]>0,VLOOKUP(times[[#This Row],[كد]],personel[],2,FALSE)&\" / \"&VLOOKUP(times[[#This Row],[كد]],personel[],3,FALSE),0)","v":0},{"$f":"IF(times[[#This Row],[خروج]]>times[[#This Row],[ورود]],times[[#This Row],[خروج]]-times[[#This Row],[ورود]],0)","v":"00:00:00"}]
[null,null,null,null,null,{"$f":"IF(times[[#This Row],[كد]]>0,VLOOKUP(times[[#This Row],[كد]],personel[],2,FALSE)&\" / \"&VLOOKUP(times[[#This Row],[كد]],personel[],3,FALSE),0)","v":0},{"$f":"IF(times[[#This Row],[خروج]]>times[[#This Row],[ورود]],times[[#This Row],[خروج]]-times[[#This Row],[ورود]],0)","v":"00:00:00"}]
[null,null,null,null,null,{"$f":"IF(times[[#This Row],[كد]]>0,VLOOKUP(times[[#This Row],[كد]],personel[],2,FALSE)&\" / \"&VLOOKUP(times[[#This Row],[كد]],personel[],3,FALSE),0)","v":0},{"$f":"IF(times[[#This Row],[خروج]]>times[[#This Row],[ورود]],times[[#This Row],[خروج]]-times[[#This Row],[ورود]],0)","v":"00:00:00"}]
[null,null,null,null,null,{"$f":"IF(times[[#This Row],[كد]]>0,VLOOKUP(times[[#This Row],[كد]],personel[],2,FALSE)&\" / \"&VLOOKUP(times[[#This Row],[كد]],personel[],3,FALSE),0)","v":0},{"$f":"IF(times[[#This Row],[خروج]]>times[[#This Row],[ورود]],times[[#This Row],[خروج]]-times[[#This Row],[ورود]],0)","v":"00:00:00"}]
[null,null,null,null,null,{"$f":"IF(times[[#This Row],[كد]]>0,VLOOKUP(times[[#This Row],[كد]],personel[],2,FALSE)&\" / \"&VLOOKUP(times[[#This Row],[كد]],personel[],3,FALSE),0)","v":0},{"$f":"IF(times[[#This Row],[خروج]]>times[[#This Row],[ورود]],times[[#This Row],[خروج]]-times[[#This Row],[ورود]],0)","v":"00:00:00"}]
[null,null,null,null,null,{"$f":"IF(times[[#This Row],[كد]]>0,VLOOKUP(times[[#This Row],[كد]],personel[],2,FALSE)&\" / \"&VLOOKUP(times[[#This Row],[كد]],personel[],3,FALSE),0)","v":0},{"$f":"IF(times[[#This Row],[خروج]]>times[[#This Row],[ورود]],times[[#This Row],[خروج]]-times[[#This Row],[ورود]],0)","v":"00:00:00"}]
[null,null,null,null,null,{"$f":"IF(times[[#This Row],[كد]]>0,VLOOKUP(times[[#This Row],[كد]],personel[],2,FALSE)&\" / \"&VLOOKUP(times[[#This Row],[كد]],personel[],3,FALSE),0)","v":0},{"$f":"IF(times[[#This Row],[خروج]]>times[[#This Row],[ورود]],times[[#This Row],[خروج]]-times[[#This Row],[ورود]],0)","v":"00:00:00"}]
[null,null,null,null,null,{"$f":"IF(times[[#This Row],[كد]]>0,VLOOKUP(times[[#This Row],[كد]],personel[],2,FALSE)&\" / \"&VLOOKUP(times[[#This Row],[كد]],personel[],3,FALSE),0)","v":0},{"$f":"IF(times[[#This Row],[خروج]]>times[[#This Row],[ورود]],times[[#This Row],[خروج]]-times[[#This Row],[ورود]],0)","v":"00:00:00"}]
[null,null,null,null,null,{"$f":"IF(times[[#This Row],[كد]]>0,VLOOKUP(times[[#This Row],[كد]],personel[],2,FALSE)&\" / \"&VLOOKUP(times[[#This Row],[كد]],personel[],3,FALSE),0)","v":0},{"$f":"IF(times[[#This Row],[خروج]]>times[[#This Row],[ورود]],times[[#This Row],[خروج]]-times[[#This Row],[ورود]],0)","v":"00:00:00"}]
[null,null,null,null,null,{"$f":"IF(times[[#This Row],[كد]]>0,VLOOKUP(times[[#This Row],[كد]],personel[],2,FALSE)&\" / \"&VLOOKUP(times[[#This Row],[كد]],personel[],3,FALSE),0)","v":0},{"$f":"IF(times[[#This Row],[خروج]]>times[[#This Row],[ورود]],times[[#This Row],[خروج]]-times[[#This Row],[ورود]],0)","v":"00:00:00"}]
[null,null,null,null,null,{"$f":"IF(times[[#This Row],[كد]]>0,VLOOKUP(times[[#This Row],[كد]],personel[],2,FALSE)&\" / \"&VLOOKUP(times[[#This Row],[كد]],personel[],3,FALSE),0)","v":0},{"$f":"IF(times[[#This Row],[خروج]]>times[[#This Row],[ورود]],times[[#This Row],[خروج]]-times[[#This Row],[ورود]],0)","v":"00:00:00"}]
[null,null,null,null,null,{"$f":"IF(times[[#This Row],[كد]]>0,VLOOKUP(times[[#This Row],[كد]],personel[],2,FALSE)&\" / \"&VLOOKUP(times[[#This Row],[كد]],personel[],3,FALSE),0)","v":0},{"$f":"IF(times[[#This Row],[خروج]]>times[[#This Row],[ورود]],times[[#This Row],[خروج]]-times[[#This Row],[ورود]],0)","v":"00:00:00"}]
[null,null,null,null,null,{"$f":"IF(times[[#This Row],[كد]]>0,VLOOKUP(times[[#This Row],[كد]],personel[],2,FALSE)&\" / \"&VLOOKUP(times[[#This Row],[كد]],personel[],3,FALSE),0)","v":0},{"$f":"IF(times[[#This Row],[خروج]]>times[[#This Row],[ورود]],times[[#This Row],[خروج]]-times[[#This Row],[ورود]],0)","v":"00:00:00"}]
[null,null,null,null,null,{"$f":"IF(times[[#This Row],[كد]]>0,VLOOKUP(times[[#This Row],[كد]],personel[],2,FALSE)&\" / \"&VLOOKUP(times[[#This Row],[كد]],personel[],3,FALSE),0)","v":0},{"$f":"IF(times[[#This Row],[خروج]]>times[[#This Row],[ورود]],times[[#This Row],[خروج]]-times[[#This Row],[ورود]],0)","v":"00:00:00"}]
[null,null,null,null,null,{"$f":"IF(times[[#This Row],[كد]]>0,VLOOKUP(times[[#This Row],[كد]],personel[],2,FALSE)&\" / \"&VLOOKUP(times[[#This Row],[كد]],personel[],3,FALSE),0)","v":0},{"$f":"IF(times[[#This Row],[خروج]]>times[[#This Row],[ورود]],times[[#This Row],[خروج]]-times[[#This Row],[ورود]],0)","v":"00:00:00"}]
[null,null,null,null,null,{"$f":"IF(times[[#This Row],[كد]]>0,VLOOKUP(times[[#This Row],[كد]],personel[],2,FALSE)&\" / \"&VLOOKUP(times[[#This Row],[كد]],personel[],3,FALSE),0)","v":0},{"$f":"IF(times[[#This Row],[خروج]]>times[[#This Row],[ورود]],times[[#This Row],[خروج]]-times[[#This Row],[ورود]],0)","v":"00:00:00"}]
[null,null,null,null,null,{"$f":"IF(times[[#This Row],[كد]]>0,VLOOKUP(times[[#This Row],[كد]],personel[],2,FALSE)&\" / \"&VLOOKUP(times[[#This Row],[كد]],personel[],3,FALSE),0)","v":0},{"$f":"IF(times[[#This Row],[خروج]]>times[[#This Row],[ورود]],times[[#This Row],[خروج]]-times[[#This Row],[ورود]],0)","v":"00:00:00"}]
[null,null,null,null,null,{"$f":"IF(times[[#This Row],[كد]]>0,VLOOKUP(times[[#This Row],[كد]],personel[],2,FALSE)&\" / \"&VLOOKUP(times[[#This Row],[كد]],personel[],3,FALSE),0)","v":0},{"$f":"IF(times[[#This Row],[خروج]]>times[[#This Row],[ورود]],times[[#This Row],[خروج]]-times[[#This Row],[ورود]],0)","v":"00:00:00"}]
[null,null,null,null,null,{"$f":"IF(times[[#This Row],[كد]]>0,VLOOKUP(times[[#This Row],[كد]],personel[],2,FALSE)&\" / \"&VLOOKUP(times[[#This Row],[كد]],personel[],3,FALSE),0)","v":0},{"$f":"IF(times[[#This Row],[خروج]]>times[[#This Row],[ورود]],times[[#This Row],[خروج]]-times[[#This Row],[ورود]],0)","v":"00:00:00"}]
[null,null,null,null,null,{"$f":"IF(times[[#This Row],[كد]]>0,VLOOKUP(times[[#This Row],[كد]],personel[],2,FALSE)&\" / \"&VLOOKUP(times[[#This Row],[كد]],personel[],3,FALSE),0)","v":0},{"$f":"IF(times[[#This Row],[خروج]]>times[[#This Row],[ورود]],times[[#This Row],[خروج]]-times[[#This Row],[ورود]],0)","v":"00:00:00"}]
[null,null,null,null,null,{"$f":"IF(times[[#This Row],[كد]]>0,VLOOKUP(times[[#This Row],[كد]],personel[],2,FALSE)&\" / \"&VLOOKUP(times[[#This Row],[كد]],personel[],3,FALSE),0)","v":0},{"$f":"IF(times[[#This Row],[خروج]]>times[[#This Row],[ورود]],times[[#This Row],[خروج]]-times[[#This Row],[ورود]],0)","v":"00:00:00"}]
[null,null,null,null,null,{"$f":"IF(times[[#This Row],[كد]]>0,VLOOKUP(times[[#This Row],[كد]],personel[],2,FALSE)&\" / \"&VLOOKUP(times[[#This Row],[كد]],personel[],3,FALSE),0)","v":0},{"$f":"IF(times[[#This Row],[خروج]]>times[[#This Row],[ورود]],times[[#This Row],[خروج]]-times[[#This Row],[ورود]],0)","v":"00:00:00"}]
[null,null,null,null,null,{"$f":"IF(times[[#This Row],[كد]]>0,VLOOKUP(times[[#This Row],[كد]],personel[],2,FALSE)&\" / \"&VLOOKUP(times[[#This Row],[كد]],personel[],3,FALSE),0)","v":0},{"$f":"IF(times[[#This Row],[خروج]]>times[[#This Row],[ورود]],times[[#This Row],[خروج]]-times[[#This Row],[ورود]],0)","v":"00:00:00"}]
[null,null,null,null,null,{"$f":"IF(times[[#This Row],[كد]]>0,VLOOKUP(times[[#This Row],[كد]],personel[],2,FALSE)&\" / \"&VLOOKUP(times[[#This Row],[كد]],personel[],3,FALSE),0)","v":0},{"$f":"IF(times[[#This Row],[خروج]]>times[[#This Row],[ورود]],times[[#This Row],[خروج]]-times[[#This Row],[ورود]],0)","v":"00:00:00"}]
[null,null,null,null,null,{"$f":"IF(times[[#This Row],[كد]]>0,VLOOKUP(times[[#This Row],[كد]],personel[],2,FALSE)&\" / \"&VLOOKUP(times[[#This Row],[كد]],personel[],3,FALSE),0)","v":0},{"$f":"IF(times[[#This Row],[خروج]]>times[[#This Row],[ورود]],times[[#This Row],[خروج]]-times[[#This Row],[ورود]],0)","v":"00:00:00"}]
[null,null,null,null,null,{"$f":"IF(times[[#This Row],[كد]]>0,VLOOKUP(times[[#This Row],[كد]],personel[],2,FALSE)&\" / \"&VLOOKUP(times[[#This Row],[كد]],personel[],3,FALSE),0)","v":0},{"$f":"IF(times[[#This Row],[خروج]]>times[[#This Row],[ورود]],times[[#This Row],[خروج]]-times[[#This Row],[ورود]],0)","v":"00:00:00"}]
[null,null,null,null,null,{"$f":"IF(times[[#This Row],[كد]]>0,VLOOKUP(times[[#This Row],[كد]],personel[],2,FALSE)&\" / \"&VLOOKUP(times[[#This Row],[كد]],personel[],3,FALSE),0)","v":0},{"$f":"IF(times[[#This Row],[خروج]]>times[[#This Row],[ورود]],times[[#This Row],[خروج]]-times[[#This Row],[ورود]],0)","v":"00:00:00"}]
[null,null,null,null,null,{"$f":"IF(times[[#This Row],[كد]]>0,VLOOKUP(times[[#This Row],[كد]],personel[],2,FALSE)&\" / \"&VLOOKUP(times[[#This Row],[كد]],personel[],3,FALSE),0)","v":0},{"$f":"IF(times[[#This Row],[خروج]]>times[[#This Row],[ورود]],times[[#This Row],[خروج]]-times[[#This Row],[ورود]],0)","v":"00:00:00"}]
[null,null,null,null,null,{"$f":"IF(times[[#This Row],[كد]]>0,VLOOKUP(times[[#This Row],[كد]],personel[],2,FALSE)&\" / \"&VLOOKUP(times[[#This Row],[كد]],personel[],3,FALSE),0)","v":0},{"$f":"IF(times[[#This Row],[خروج]]>times[[#This Row],[ورود]],times[[#This Row],[خروج]]-times[[#This Row],[ورود]],0)","v":"00:00:00"}]
[null,null,null,null,null,{"$f":"IF(times[[#This Row],[كد]]>0,VLOOKUP(times[[#This Row],[كد]],personel[],2,FALSE)&\" / \"&VLOOKUP(times[[#This Row],[كد]],personel[],3,FALSE),0)","v":0},{"$f":"IF(times[[#This Row],[خروج]]>times[[#This Row],[ورود]],times[[#This Row],[خروج]]-times[[#This Row],[ورود]],0)","v":"00:00:00"}]
[null,null,null,null,null,{"$f":"IF(times[[#This Row],[كد]]>0,VLOOKUP(times[[#This Row],[كد]],personel[],2,FALSE)&\" / \"&VLOOKUP(times[[#This Row],[كد]],personel[],3,FALSE),0)","v":0},{"$f":"IF(times[[#This Row],[خروج]]>times[[#This Row],[ورود]],times[[#This Row],[خروج]]-times[[#This Row],[ورود]],0)","v":"00:00:00"}]
[null,null,null,null,null,{"$f":"IF(times[[#This Row],[كد]]>0,VLOOKUP(times[[#This Row],[كد]],personel[],2,FALSE)&\" / \"&VLOOKUP(times[[#This Row],[كد]],personel[],3,FALSE),0)","v":0},{"$f":"IF(times[[#This Row],[خروج]]>times[[#This Row],[ورود]],times[[#This Row],[خروج]]-times[[#This Row],[ورود]],0)","v":"00:00:00"}]
[null,null,null,null,null,{"$f":"IF(times[[#This Row],[كد]]>0,VLOOKUP(times[[#This Row],[كد]],personel[],2,FALSE)&\" / \"&VLOOKUP(times[[#This Row],[كد]],personel[],3,FALSE),0)","v":0},{"$f":"IF(times[[#This Row],[خروج]]>times[[#This Row],[ورود]],times[[#This Row],[خروج]]-times[[#This Row],[ورود]],0)","v":"00:00:00"}]
[null,null,null,null,null,{"$f":"IF(times[[#This Row],[كد]]>0,VLOOKUP(times[[#This Row],[كد]],personel[],2,FALSE)&\" / \"&VLOOKUP(times[[#This Row],[كد]],personel[],3,FALSE),0)","v":0},{"$f":"IF(times[[#This Row],[خروج]]>times[[#This Row],[ورود]],times[[#This Row],[خروج]]-times[[#This Row],[ورود]],0)","v":"00:00:00"}]
[null,null,null,null,null,{"$f":"IF(times[[#This Row],[كد]]>0,VLOOKUP(times[[#This Row],[كد]],personel[],2,FALSE)&\" / \"&VLOOKUP(times[[#This Row],[كد]],personel[],3,FALSE),0)","v":0},{"$f":"IF(times[[#This Row],[خروج]]>times[[#This Row],[ورود]],times[[#This Row],[خروج]]-times[[#This Row],[ورود]],0)","v":"00:00:00"}]
[null,null,null,null,null,{"$f":"IF(times[[#This Row],[كد]]>0,VLOOKUP(times[[#This Row],[كد]],personel[],2,FALSE)&\" / \"&VLOOKUP(times[[#This Row],[كد]],personel[],3,FALSE),0)","v":0},{"$f":"IF(times[[#This Row],[خروج]]>times[[#This Row],[ورود]],times[[#This Row],[خروج]]-times[[#This Row],[ورود]],0)","v":"00:00:00"}]
[null,null,null,null,null,{"$f":"IF(times[[#This Row],[كد]]>0,VLOOKUP(times[[#This Row],[كد]],personel[],2,FALSE)&\" / \"&VLOOKUP(times[[#This Row],[كد]],personel[],3,FALSE),0)","v":0},{"$f":"IF(times[[#This Row],[خروج]]>times[[#This Row],[ورود]],times[[#This Row],[خروج]]-times[[#This Row],[ورود]],0)","v":"00:00:00"}]
[null,null,null,null,null,{"$f":"IF(times[[#This Row],[كد]]>0,VLOOKUP(times[[#This Row],[كد]],personel[],2,FALSE)&\" / \"&VLOOKUP(times[[#This Row],[كد]],personel[],3,FALSE),0)","v":0},{"$f":"IF(times[[#This Row],[خروج]]>times[[#This Row],[ورود]],times[[#This Row],[خروج]]-times[[#This Row],[ورود]],0)","v":"00:00:00"}]
[null,null,null,null,null,{"$f":"IF(times[[#This Row],[كد]]>0,VLOOKUP(times[[#This Row],[كد]],personel[],2,FALSE)&\" / \"&VLOOKUP(times[[#This Row],[كد]],personel[],3,FALSE),0)","v":0},{"$f":"IF(times[[#This Row],[خروج]]>times[[#This Row],[ورود]],times[[#This Row],[خروج]]-times[[#This Row],[ورود]],0)","v":"00:00:00"}]
[null,null,null,null,null,{"$f":"IF(times[[#This Row],[كد]]>0,VLOOKUP(times[[#This Row],[كد]],personel[],2,FALSE)&\" / \"&VLOOKUP(times[[#This Row],[كد]],personel[],3,FALSE),0)","v":0},{"$f":"IF(times[[#This Row],[خروج]]>times[[#This Row],[ورود]],times[[#This Row],[خروج]]-times[[#This Row],[ورود]],0)","v":"00:00:00"}]
[null,null,null,null,null,{"$f":"IF(times[[#This Row],[كد]]>0,VLOOKUP(times[[#This Row],[كد]],personel[],2,FALSE)&\" / \"&VLOOKUP(times[[#This Row],[كد]],personel[],3,FALSE),0)","v":0},{"$f":"IF(times[[#This Row],[خروج]]>times[[#This Row],[ورود]],times[[#This Row],[خروج]]-times[[#This Row],[ورود]],0)","v":"00:00:00"}]
[null,null,null,null,null,{"$f":"IF(times[[#This Row],[كد]]>0,VLOOKUP(times[[#This Row],[كد]],personel[],2,FALSE)&\" / \"&VLOOKUP(times[[#This Row],[كد]],personel[],3,FALSE),0)","v":0},{"$f":"IF(times[[#This Row],[خروج]]>times[[#This Row],[ورود]],times[[#This Row],[خروج]]-times[[#This Row],[ورود]],0)","v":"00:00:00"}]
[null,null,null,null,null,{"$f":"IF(times[[#This Row],[كد]]>0,VLOOKUP(times[[#This Row],[كد]],personel[],2,FALSE)&\" / \"&VLOOKUP(times[[#This Row],[كد]],personel[],3,FALSE),0)","v":0},{"$f":"IF(times[[#This Row],[خروج]]>times[[#This Row],[ورود]],times[[#This Row],[خروج]]-times[[#This Row],[ورود]],0)","v":"00:00:00"}]
[null,null,null,null,null,{"$f":"IF(times[[#This Row],[كد]]>0,VLOOKUP(times[[#This Row],[كد]],personel[],2,FALSE)&\" / \"&VLOOKUP(times[[#This Row],[كد]],personel[],3,FALSE),0)","v":0},{"$f":"IF(times[[#This Row],[خروج]]>times[[#This Row],[ورود]],times[[#This Row],[خروج]]-times[[#This Row],[ورود]],0)","v":"00:00:00"}]
[null,null,null,null,null,{"$f":"IF(times[[#This Row],[كد]]>0,VLOOKUP(times[[#This Row],[كد]],personel[],2,FALSE)&\" / \"&VLOOKUP(times[[#This Row],[كد]],personel[],3,FALSE),0)","v":0},{"$f":"IF(times[[#This Row],[خروج]]>times[[#This Row],[ورود]],times[[#This Row],[خروج]]-times[[#This Row],[ورود]],0)","v":"00:00:00"}]
[null,null,null,null,null,{"$f":"IF(times[[#This Row],[كد]]>0,VLOOKUP(times[[#This Row],[كد]],personel[],2,FALSE)&\" / \"&VLOOKUP(times[[#This Row],[كد]],personel[],3,FALSE),0)","v":0},{"$f":"IF(times[[#This Row],[خروج]]>times[[#This Row],[ورود]],times[[#This Row],[خروج]]-times[[#This Row],[ورود]],0)","v":"00:00:00"}]
[null,null,null,null,null,{"$f":"IF(times[[#This Row],[كد]]>0,VLOOKUP(times[[#This Row],[كد]],personel[],2,FALSE)&\" / \"&VLOOKUP(times[[#This Row],[كد]],personel[],3,FALSE),0)","v":0},{"$f":"IF(times[[#This Row],[خروج]]>times[[#This Row],[ورود]],times[[#This Row],[خروج]]-times[[#This Row],[ورود]],0)","v":"00:00:00"}]
[null,null,null,null,null,{"$f":"IF(times[[#This Row],[كد]]>0,VLOOKUP(times[[#This Row],[كد]],personel[],2,FALSE)&\" / \"&VLOOKUP(times[[#This Row],[كد]],personel[],3,FALSE),0)","v":0},{"$f":"IF(times[[#This Row],[خروج]]>times[[#This Row],[ورود]],times[[#This Row],[خروج]]-times[[#This Row],[ورود]],0)","v":"00:00:00"}]
[null,null,null,null,null,{"$f":"IF(times[[#This Row],[كد]]>0,VLOOKUP(times[[#This Row],[كد]],personel[],2,FALSE)&\" / \"&VLOOKUP(times[[#This Row],[كد]],personel[],3,FALSE),0)","v":0},{"$f":"IF(times[[#This Row],[خروج]]>times[[#This Row],[ورود]],times[[#This Row],[خروج]]-times[[#This Row],[ورود]],0)","v":"00:00:00"}]
[null,null,null,null,null,{"$f":"IF(times[[#This Row],[كد]]>0,VLOOKUP(times[[#This Row],[كد]],personel[],2,FALSE)&\" / \"&VLOOKUP(times[[#This Row],[كد]],personel[],3,FALSE),0)","v":0},{"$f":"IF(times[[#This Row],[خروج]]>times[[#This Row],[ورود]],times[[#This Row],[خروج]]-times[[#This Row],[ورود]],0)","v":"00:00:00"}]
[null,null,null,null,null,{"$f":"IF(times[[#This Row],[كد]]>0,VLOOKUP(times[[#This Row],[كد]],personel[],2,FALSE)&\" / \"&VLOOKUP(times[[#This Row],[كد]],personel[],3,FALSE),0)","v":0},{"$f":"IF(times[[#This Row],[خروج]]>times[[#This Row],[ورود]],times[[#This Row],[خروج]]-times[[#This Row],[ورود]],0)","v":"00:00:00"}]
[null,null,null,null,null,{"$f":"IF(times[[#This Row],[كد]]>0,VLOOKUP(times[[#This Row],[كد]],personel[],2,FALSE)&\" / \"&VLOOKUP(times[[#This Row],[كد]],personel[],3,FALSE),0)","v":0},{"$f":"IF(times[[#This Row],[خروج]]>times[[#This Row],[ورود]],times[[#This Row],[خروج]]-times[[#This Row],[ورود]],0)","v":"00:00:00"}]
[null,null,null,null,null,{"$f":"IF(times[[#This Row],[كد]]>0,VLOOKUP(times[[#This Row],[كد]],personel[],2,FALSE)&\" / \"&VLOOKUP(times[[#This Row],[كد]],personel[],3,FALSE),0)","v":0},{"$f":"IF(times[[#This Row],[خروج]]>times[[#This Row],[ورود]],times[[#This Row],[خروج]]-times[[#This Row],[ورود]],0)","v":"00:00:00"}]
[null,null,null,null,null,{"$f":"IF(times[[#This Row],[كد]]>0,VLOOKUP(times[[#This Row],[كد]],personel[],2,FALSE)&\" / \"&VLOOKUP(times[[#This Row],[كد]],personel[],3,FALSE),0)","v":0},{"$f":"IF(times[[#This Row],[خروج]]>times[[#This Row],[ورود]],times[[#This Row],[خروج]]-times[[#This Row],[ورود]],0)","v":"00:00:00"}]
[null,null,null,null,null,{"$f":"IF(times[[#This Row],[كد]]>0,VLOOKUP(times[[#This Row],[كد]],personel[],2,FALSE)&\" / \"&VLOOKUP(times[[#This Row],[كد]],personel[],3,FALSE),0)","v":0},{"$f":"IF(times[[#This Row],[خروج]]>times[[#This Row],[ورود]],times[[#This Row],[خروج]]-times[[#This Row],[ورود]],0)","v":"00:00:00"}]
[null,null,null,null,null,{"$f":"IF(times[[#This Row],[كد]]>0,VLOOKUP(times[[#This Row],[كد]],personel[],2,FALSE)&\" / \"&VLOOKUP(times[[#This Row],[كد]],personel[],3,FALSE),0)","v":0},{"$f":"IF(times[[#This Row],[خروج]]>times[[#This Row],[ورود]],times[[#This Row],[خروج]]-times[[#This Row],[ورود]],0)","v":"00:00:00"}]
[null,null,null,null,null,{"$f":"IF(times[[#This Row],[كد]]>0,VLOOKUP(times[[#This Row],[كد]],personel[],2,FALSE)&\" / \"&VLOOKUP(times[[#This Row],[كد]],personel[],3,FALSE),0)","v":0},{"$f":"IF(times[[#This Row],[خروج]]>times[[#This Row],[ورود]],times[[#This Row],[خروج]]-times[[#This Row],[ورود]],0)","v":"00:00:00"}]
[null,null,null,null,null,{"$f":"IF(times[[#This Row],[كد]]>0,VLOOKUP(times[[#This Row],[كد]],personel[],2,FALSE)&\" / \"&VLOOKUP(times[[#This Row],[كد]],personel[],3,FALSE),0)","v":0},{"$f":"IF(times[[#This Row],[خروج]]>times[[#This Row],[ورود]],times[[#This Row],[خروج]]-times[[#This Row],[ورود]],0)","v":"00:00:00"}]
[null,null,null,null,null,{"$f":"IF(times[[#This Row],[كد]]>0,VLOOKUP(times[[#This Row],[كد]],personel[],2,FALSE)&\" / \"&VLOOKUP(times[[#This Row],[كد]],personel[],3,FALSE),0)","v":0},{"$f":"IF(times[[#This Row],[خروج]]>times[[#This Row],[ورود]],times[[#This Row],[خروج]]-times[[#This Row],[ورود]],0)","v":"00:00:00"}]
[null,null,null,null,null,{"$f":"IF(times[[#This Row],[كد]]>0,VLOOKUP(times[[#This Row],[كد]],personel[],2,FALSE)&\" / \"&VLOOKUP(times[[#This Row],[كد]],personel[],3,FALSE),0)","v":0},{"$f":"IF(times[[#This Row],[خروج]]>times[[#This Row],[ورود]],times[[#This Row],[خروج]]-times[[#This Row],[ورود]],0)","v":"00:00:00"}]
[null,null,null,null,null,{"$f":"IF(times[[#This Row],[كد]]>0,VLOOKUP(times[[#This Row],[كد]],personel[],2,FALSE)&\" / \"&VLOOKUP(times[[#This Row],[كد]],personel[],3,FALSE),0)","v":0},{"$f":"IF(times[[#This Row],[خروج]]>times[[#This Row],[ورود]],times[[#This Row],[خروج]]-times[[#This Row],[ورود]],0)","v":"00:00:00"}]
[null,null,null,null,null,{"$f":"IF(times[[#This Row],[كد]]>0,VLOOKUP(times[[#This Row],[كد]],personel[],2,FALSE)&\" / \"&VLOOKUP(times[[#This Row],[كد]],personel[],3,FALSE),0)","v":0},{"$f":"IF(times[[#This Row],[خروج]]>times[[#This Row],[ورود]],times[[#This Row],[خروج]]-times[[#This Row],[ورود]],0)","v":"00:00:00"}]
[null,null,null,null,null,{"$f":"IF(times[[#This Row],[كد]]>0,VLOOKUP(times[[#This Row],[كد]],personel[],2,FALSE)&\" / \"&VLOOKUP(times[[#This Row],[كد]],personel[],3,FALSE),0)","v":0},{"$f":"IF(times[[#This Row],[خروج]]>times[[#This Row],[ورود]],times[[#This Row],[خروج]]-times[[#This Row],[ورود]],0)","v":"00:00:00"}]
[null,null,null,null,null,{"$f":"IF(times[[#This Row],[كد]]>0,VLOOKUP(times[[#This Row],[كد]],personel[],2,FALSE)&\" / \"&VLOOKUP(times[[#This Row],[كد]],personel[],3,FALSE),0)","v":0},{"$f":"IF(times[[#This Row],[خروج]]>times[[#This Row],[ورود]],times[[#This Row],[خروج]]-times[[#This Row],[ورود]],0)","v":"00:00:00"}]
[null,null,null,null,null,{"$f":"IF(times[[#This Row],[كد]]>0,VLOOKUP(times[[#This Row],[كد]],personel[],2,FALSE)&\" / \"&VLOOKUP(times[[#This Row],[كد]],personel[],3,FALSE),0)","v":0},{"$f":"IF(times[[#This Row],[خروج]]>times[[#This Row],[ورود]],times[[#This Row],[خروج]]-times[[#This Row],[ورود]],0)","v":"00:00:00"}]
[null,null,null,null,null,{"$f":"IF(times[[#This Row],[كد]]>0,VLOOKUP(times[[#This Row],[كد]],personel[],2,FALSE)&\" / \"&VLOOKUP(times[[#This Row],[كد]],personel[],3,FALSE),0)","v":0},{"$f":"IF(times[[#This Row],[خروج]]>times[[#This Row],[ورود]],times[[#This Row],[خروج]]-times[[#This Row],[ورود]],0)","v":"00:00:00"}]
[null,null,null,null,null,{"$f":"IF(times[[#This Row],[كد]]>0,VLOOKUP(times[[#This Row],[كد]],personel[],2,FALSE)&\" / \"&VLOOKUP(times[[#This Row],[كد]],personel[],3,FALSE),0)","v":0},{"$f":"IF(times[[#This Row],[خروج]]>times[[#This Row],[ورود]],times[[#This Row],[خروج]]-times[[#This Row],[ورود]],0)","v":"00:00:00"}]
[null,null,null,null,null,{"$f":"IF(times[[#This Row],[كد]]>0,VLOOKUP(times[[#This Row],[كد]],personel[],2,FALSE)&\" / \"&VLOOKUP(times[[#This Row],[كد]],personel[],3,FALSE),0)","v":0},{"$f":"IF(times[[#This Row],[خروج]]>times[[#This Row],[ورود]],times[[#This Row],[خروج]]-times[[#This Row],[ورود]],0)","v":"00:00:00"}]
[null,null,null,null,null,{"$f":"IF(times[[#This Row],[كد]]>0,VLOOKUP(times[[#This Row],[كد]],personel[],2,FALSE)&\" / \"&VLOOKUP(times[[#This Row],[كد]],personel[],3,FALSE),0)","v":0},{"$f":"IF(times[[#This Row],[خروج]]>times[[#This Row],[ورود]],times[[#This Row],[خروج]]-times[[#This Row],[ورود]],0)","v":"00:00:00"}]
[null,null,null,null,null,{"$f":"IF(times[[#This Row],[كد]]>0,VLOOKUP(times[[#This Row],[كد]],personel[],2,FALSE)&\" / \"&VLOOKUP(times[[#This Row],[كد]],personel[],3,FALSE),0)","v":0},{"$f":"IF(times[[#This Row],[خروج]]>times[[#This Row],[ورود]],times[[#This Row],[خروج]]-times[[#This Row],[ورود]],0)","v":"00:00:00"}]
[null,null,null,null,null,{"$f":"IF(times[[#This Row],[كد]]>0,VLOOKUP(times[[#This Row],[كد]],personel[],2,FALSE)&\" / \"&VLOOKUP(times[[#This Row],[كد]],personel[],3,FALSE),0)","v":0},{"$f":"IF(times[[#This Row],[خروج]]>times[[#This Row],[ورود]],times[[#This Row],[خروج]]-times[[#This Row],[ورود]],0)","v":"00:00:00"}]
[null,null,null,null,null,{"$f":"IF(times[[#This Row],[كد]]>0,VLOOKUP(times[[#This Row],[كد]],personel[],2,FALSE)&\" / \"&VLOOKUP(times[[#This Row],[كد]],personel[],3,FALSE),0)","v":0},{"$f":"IF(times[[#This Row],[خروج]]>times[[#This Row],[ورود]],times[[#This Row],[خروج]]-times[[#This Row],[ورود]],0)","v":"00:00:00"}]
[null,null,null,null,null,{"$f":"IF(times[[#This Row],[كد]]>0,VLOOKUP(times[[#This Row],[كد]],personel[],2,FALSE)&\" / \"&VLOOKUP(times[[#This Row],[كد]],personel[],3,FALSE),0)","v":0},{"$f":"IF(times[[#This Row],[خروج]]>times[[#This Row],[ورود]],times[[#This Row],[خروج]]-times[[#This Row],[ورود]],0)","v":"00:00:00"}]
[null,null,null,null,null,{"$f":"IF(times[[#This Row],[كد]]>0,VLOOKUP(times[[#This Row],[كد]],personel[],2,FALSE)&\" / \"&VLOOKUP(times[[#This Row],[كد]],personel[],3,FALSE),0)","v":0},{"$f":"IF(times[[#This Row],[خروج]]>times[[#This Row],[ورود]],times[[#This Row],[خروج]]-times[[#This Row],[ورود]],0)","v":"00:00:00"}]
[null,null,null,null,null,{"$f":"IF(times[[#This Row],[كد]]>0,VLOOKUP(times[[#This Row],[كد]],personel[],2,FALSE)&\" / \"&VLOOKUP(times[[#This Row],[كد]],personel[],3,FALSE),0)","v":0},{"$f":"IF(times[[#This Row],[خروج]]>times[[#This Row],[ورود]],times[[#This Row],[خروج]]-times[[#This Row],[ورود]],0)","v":"00:00:00"}]
[null,null,null,null,null,{"$f":"IF(times[[#This Row],[كد]]>0,VLOOKUP(times[[#This Row],[كد]],personel[],2,FALSE)&\" / \"&VLOOKUP(times[[#This Row],[كد]],personel[],3,FALSE),0)","v":0},{"$f":"IF(times[[#This Row],[خروج]]>times[[#This Row],[ورود]],times[[#This Row],[خروج]]-times[[#This Row],[ورود]],0)","v":"00:00:00"}]
[null,null,null,null,null,{"$f":"IF(times[[#This Row],[كد]]>0,VLOOKUP(times[[#This Row],[كد]],personel[],2,FALSE)&\" / \"&VLOOKUP(times[[#This Row],[كد]],personel[],3,FALSE),0)","v":0},{"$f":"IF(times[[#This Row],[خروج]]>times[[#This Row],[ورود]],times[[#This Row],[خروج]]-times[[#This Row],[ورود]],0)","v":"00:00:00"}]
[null,null,null,null,null,{"$f":"IF(times[[#This Row],[كد]]>0,VLOOKUP(times[[#This Row],[كد]],personel[],2,FALSE)&\" / \"&VLOOKUP(times[[#This Row],[كد]],personel[],3,FALSE),0)","v":0},{"$f":"IF(times[[#This Row],[خروج]]>times[[#This Row],[ورود]],times[[#This Row],[خروج]]-times[[#This Row],[ورود]],0)","v":"00:00:00"}]
[null,null,null,null,null,{"$f":"IF(times[[#This Row],[كد]]>0,VLOOKUP(times[[#This Row],[كد]],personel[],2,FALSE)&\" / \"&VLOOKUP(times[[#This Row],[كد]],personel[],3,FALSE),0)","v":0},{"$f":"IF(times[[#This Row],[خروج]]>times[[#This Row],[ورود]],times[[#This Row],[خروج]]-times[[#This Row],[ورود]],0)","v":"00:00:00"}]
[null,null,null,null,null,{"$f":"IF(times[[#This Row],[كد]]>0,VLOOKUP(times[[#This Row],[كد]],personel[],2,FALSE)&\" / \"&VLOOKUP(times[[#This Row],[كد]],personel[],3,FALSE),0)","v":0},{"$f":"IF(times[[#This Row],[خروج]]>times[[#This Row],[ورود]],times[[#This Row],[خروج]]-times[[#This Row],[ورود]],0)","v":"00:00:00"}]
[null,null,null,null,null,{"$f":"IF(times[[#This Row],[كد]]>0,VLOOKUP(times[[#This Row],[كد]],personel[],2,FALSE)&\" / \"&VLOOKUP(times[[#This Row],[كد]],personel[],3,FALSE),0)","v":0},{"$f":"IF(times[[#This Row],[خروج]]>times[[#This Row],[ورود]],times[[#This Row],[خروج]]-times[[#This Row],[ورود]],0)","v":"00:00:00"}]
[null,null,null,null,null,{"$f":"IF(times[[#This Row],[كد]]>0,VLOOKUP(times[[#This Row],[كد]],personel[],2,FALSE)&\" / \"&VLOOKUP(times[[#This Row],[كد]],personel[],3,FALSE),0)","v":0},{"$f":"IF(times[[#This Row],[خروج]]>times[[#This Row],[ورود]],times[[#This Row],[خروج]]-times[[#This Row],[ورود]],0)","v":"00:00:00"}]
[null,null,null,null,null,{"$f":"IF(times[[#This Row],[كد]]>0,VLOOKUP(times[[#This Row],[كد]],personel[],2,FALSE)&\" / \"&VLOOKUP(times[[#This Row],[كد]],personel[],3,FALSE),0)","v":0},{"$f":"IF(times[[#This Row],[خروج]]>times[[#This Row],[ورود]],times[[#This Row],[خروج]]-times[[#This Row],[ورود]],0)","v":"00:00:00"}]
[null,null,null,null,null,{"$f":"IF(times[[#This Row],[كد]]>0,VLOOKUP(times[[#This Row],[كد]],personel[],2,FALSE)&\" / \"&VLOOKUP(times[[#This Row],[كد]],personel[],3,FALSE),0)","v":0},{"$f":"IF(times[[#This Row],[خروج]]>times[[#This Row],[ورود]],times[[#This Row],[خروج]]-times[[#This Row],[ورود]],0)","v":"00:00:00"}]
[null,null,null,null,null,{"$f":"IF(times[[#This Row],[كد]]>0,VLOOKUP(times[[#This Row],[كد]],personel[],2,FALSE)&\" / \"&VLOOKUP(times[[#This Row],[كد]],personel[],3,FALSE),0)","v":0},{"$f":"IF(times[[#This Row],[خروج]]>times[[#This Row],[ورود]],times[[#This Row],[خروج]]-times[[#This Row],[ورود]],0)","v":"00:00:00"}]
[null,null,null,null,null,{"$f":"IF(times[[#This Row],[كد]]>0,VLOOKUP(times[[#This Row],[كد]],personel[],2,FALSE)&\" / \"&VLOOKUP(times[[#This Row],[كد]],personel[],3,FALSE),0)","v":0},{"$f":"IF(times[[#This Row],[خروج]]>times[[#This Row],[ورود]],times[[#This Row],[خروج]]-times[[#This Row],[ورود]],0)","v":"00:00:00"}]
[null,null,null,null,null,{"$f":"IF(times[[#This Row],[كد]]>0,VLOOKUP(times[[#This Row],[كد]],personel[],2,FALSE)&\" / \"&VLOOKUP(times[[#This Row],[كد]],personel[],3,FALSE),0)","v":0},{"$f":"IF(times[[#This Row],[خروج]]>times[[#This Row],[ورود]],times[[#This Row],[خروج]]-times[[#This Row],[ورود]],0)","v":"00:00:00"}]
[null,null,null,null,null,{"$f":"IF(times[[#This Row],[كد]]>0,VLOOKUP(times[[#This Row],[كد]],personel[],2,FALSE)&\" / \"&VLOOKUP(times[[#This Row],[كد]],personel[],3,FALSE),0)","v":0},{"$f":"IF(times[[#This Row],[خروج]]>times[[#This Row],[ورود]],times[[#This Row],[خروج]]-times[[#This Row],[ورود]],0)","v":"00:00:00"}]
[null,null,null,null,null,{"$f":"IF(times[[#This Row],[كد]]>0,VLOOKUP(times[[#This Row],[كد]],personel[],2,FALSE)&\" / \"&VLOOKUP(times[[#This Row],[كد]],personel[],3,FALSE),0)","v":0},{"$f":"IF(times[[#This Row],[خروج]]>times[[#This Row],[ورود]],times[[#This Row],[خروج]]-times[[#This Row],[ورود]],0)","v":"00:00:00"}]
[null,null,null,null,null,{"$f":"IF(times[[#This Row],[كد]]>0,VLOOKUP(times[[#This Row],[كد]],personel[],2,FALSE)&\" / \"&VLOOKUP(times[[#This Row],[كد]],personel[],3,FALSE),0)","v":0},{"$f":"IF(times[[#This Row],[خروج]]>times[[#This Row],[ورود]],times[[#This Row],[خروج]]-times[[#This Row],[ورود]],0)","v":"00:00:00"}]
[null,null,null,null,null,{"$f":"IF(times[[#This Row],[كد]]>0,VLOOKUP(times[[#This Row],[كد]],personel[],2,FALSE)&\" / \"&VLOOKUP(times[[#This Row],[كد]],personel[],3,FALSE),0)","v":0},{"$f":"IF(times[[#This Row],[خروج]]>times[[#This Row],[ورود]],times[[#This Row],[خروج]]-times[[#This Row],[ورود]],0)","v":"00:00:00"}]
[null,null,null,null,null,{"$f":"IF(times[[#This Row],[كد]]>0,VLOOKUP(times[[#This Row],[كد]],personel[],2,FALSE)&\" / \"&VLOOKUP(times[[#This Row],[كد]],personel[],3,FALSE),0)","v":0},{"$f":"IF(times[[#This Row],[خروج]]>times[[#This Row],[ورود]],times[[#This Row],[خروج]]-times[[#This Row],[ورود]],0)","v":"00:00:00"}]
[null,null,null,null,null,{"$f":"IF(times[[#This Row],[كد]]>0,VLOOKUP(times[[#This Row],[كد]],personel[],2,FALSE)&\" / \"&VLOOKUP(times[[#This Row],[كد]],personel[],3,FALSE),0)","v":0},{"$f":"IF(times[[#This Row],[خروج]]>times[[#This Row],[ورود]],times[[#This Row],[خروج]]-times[[#This Row],[ورود]],0)","v":"00:00:00"}]
[null,null,null,null,null,{"$f":"IF(times[[#This Row],[كد]]>0,VLOOKUP(times[[#This Row],[كد]],personel[],2,FALSE)&\" / \"&VLOOKUP(times[[#This Row],[كد]],personel[],3,FALSE),0)","v":0},{"$f":"IF(times[[#This Row],[خروج]]>times[[#This Row],[ورود]],times[[#This Row],[خروج]]-times[[#This Row],[ورود]],0)","v":"00:00:00"}]
[null,null,null,null,null,{"$f":"IF(times[[#This Row],[كد]]>0,VLOOKUP(times[[#This Row],[كد]],personel[],2,FALSE)&\" / \"&VLOOKUP(times[[#This Row],[كد]],personel[],3,FALSE),0)","v":0},{"$f":"IF(times[[#This Row],[خروج]]>times[[#This Row],[ورود]],times[[#This Row],[خروج]]-times[[#This Row],[ورود]],0)","v":"00:00:00"}]
[null,null,null,null,null,{"$f":"IF(times[[#This Row],[كد]]>0,VLOOKUP(times[[#This Row],[كد]],personel[],2,FALSE)&\" / \"&VLOOKUP(times[[#This Row],[كد]],personel[],3,FALSE),0)","v":0},{"$f":"IF(times[[#This Row],[خروج]]>times[[#This Row],[ورود]],times[[#This Row],[خروج]]-times[[#This Row],[ورود]],0)","v":"00:00:00"}]
[null,null,null,null,null,{"$f":"IF(times[[#This Row],[كد]]>0,VLOOKUP(times[[#This Row],[كد]],personel[],2,FALSE)&\" / \"&VLOOKUP(times[[#This Row],[كد]],personel[],3,FALSE),0)","v":0},{"$f":"IF(times[[#This Row],[خروج]]>times[[#This Row],[ورود]],times[[#This Row],[خروج]]-times[[#This Row],[ورود]],0)","v":"00:00:00"}]
[null,null,null,null,null,{"$f":"IF(times[[#This Row],[كد]]>0,VLOOKUP(times[[#This Row],[كد]],personel[],2,FALSE)&\" / \"&VLOOKUP(times[[#This Row],[كد]],personel[],3,FALSE),0)","v":0},{"$f":"IF(times[[#This Row],[خروج]]>times[[#This Row],[ورود]],times[[#This Row],[خروج]]-times[[#This Row],[ورود]],0)","v":"00:00:00"}]
[null,null,null,null,null,{"$f":"IF(times[[#This Row],[كد]]>0,VLOOKUP(times[[#This Row],[كد]],personel[],2,FALSE)&\" / \"&VLOOKUP(times[[#This Row],[كد]],personel[],3,FALSE),0)","v":0},{"$f":"IF(times[[#This Row],[خروج]]>times[[#This Row],[ورود]],times[[#This Row],[خروج]]-times[[#This Row],[ورود]],0)","v":"00:00:00"}]
[null,null,null,null,null,{"$f":"IF(times[[#This Row],[كد]]>0,VLOOKUP(times[[#This Row],[كد]],personel[],2,FALSE)&\" / \"&VLOOKUP(times[[#This Row],[كد]],personel[],3,FALSE),0)","v":0},{"$f":"IF(times[[#This Row],[خروج]]>times[[#This Row],[ورود]],times[[#This Row],[خروج]]-times[[#This Row],[ورود]],0)","v":"00:00:00"}]
[null,null,null,null,null,{"$f":"IF(times[[#This Row],[كد]]>0,VLOOKUP(times[[#This Row],[كد]],personel[],2,FALSE)&\" / \"&VLOOKUP(times[[#This Row],[كد]],personel[],3,FALSE),0)","v":0},{"$f":"IF(times[[#This Row],[خروج]]>times[[#This Row],[ورود]],times[[#This Row],[خروج]]-times[[#This Row],[ورود]],0)","v":"00:00:00"}]
[null,null,null,null,null,{"$f":"IF(times[[#This Row],[كد]]>0,VLOOKUP(times[[#This Row],[كد]],personel[],2,FALSE)&\" / \"&VLOOKUP(times[[#This Row],[كد]],personel[],3,FALSE),0)","v":0},{"$f":"IF(times[[#This Row],[خروج]]>times[[#This Row],[ورود]],times[[#This Row],[خروج]]-times[[#This Row],[ورود]],0)","v":"00:00:00"}]
[null,null,null,null,null,{"$f":"IF(times[[#This Row],[كد]]>0,VLOOKUP(times[[#This Row],[كد]],personel[],2,FALSE)&\" / \"&VLOOKUP(times[[#This Row],[كد]],personel[],3,FALSE),0)","v":0},{"$f":"IF(times[[#This Row],[خروج]]>times[[#This Row],[ورود]],times[[#This Row],[خروج]]-times[[#This Row],[ورود]],0)","v":"00:00:00"}]
[null,null,null,null,null,{"$f":"IF(times[[#This Row],[كد]]>0,VLOOKUP(times[[#This Row],[كد]],personel[],2,FALSE)&\" / \"&VLOOKUP(times[[#This Row],[كد]],personel[],3,FALSE),0)","v":0},{"$f":"IF(times[[#This Row],[خروج]]>times[[#This Row],[ورود]],times[[#This Row],[خروج]]-times[[#This Row],[ورود]],0)","v":"00:00:00"}]
[null,null,null,null,null,{"$f":"IF(times[[#This Row],[كد]]>0,VLOOKUP(times[[#This Row],[كد]],personel[],2,FALSE)&\" / \"&VLOOKUP(times[[#This Row],[كد]],personel[],3,FALSE),0)","v":0},{"$f":"IF(times[[#This Row],[خروج]]>times[[#This Row],[ورود]],times[[#This Row],[خروج]]-times[[#This Row],[ورود]],0)","v":"00:00:00"}]
[null,null,null,null,null,{"$f":"IF(times[[#This Row],[كد]]>0,VLOOKUP(times[[#This Row],[كد]],personel[],2,FALSE)&\" / \"&VLOOKUP(times[[#This Row],[كد]],personel[],3,FALSE),0)","v":0},{"$f":"IF(times[[#This Row],[خروج]]>times[[#This Row],[ورود]],times[[#This Row],[خروج]]-times[[#This Row],[ورود]],0)","v":"00:00:00"}]
[null,null,null,null,null,{"$f":"IF(times[[#This Row],[كد]]>0,VLOOKUP(times[[#This Row],[كد]],personel[],2,FALSE)&\" / \"&VLOOKUP(times[[#This Row],[كد]],personel[],3,FALSE),0)","v":0},{"$f":"IF(times[[#This Row],[خروج]]>times[[#This Row],[ورود]],times[[#This Row],[خروج]]-times[[#This Row],[ورود]],0)","v":"00:00:00"}]
[null,null,null,null,null,{"$f":"IF(times[[#This Row],[كد]]>0,VLOOKUP(times[[#This Row],[كد]],personel[],2,FALSE)&\" / \"&VLOOKUP(times[[#This Row],[كد]],personel[],3,FALSE),0)","v":0},{"$f":"IF(times[[#This Row],[خروج]]>times[[#This Row],[ورود]],times[[#This Row],[خروج]]-times[[#This Row],[ورود]],0)","v":"00:00:00"}]
[null,null,null,null,null,{"$f":"IF(times[[#This Row],[كد]]>0,VLOOKUP(times[[#This Row],[كد]],personel[],2,FALSE)&\" / \"&VLOOKUP(times[[#This Row],[كد]],personel[],3,FALSE),0)","v":0},{"$f":"IF(times[[#This Row],[خروج]]>times[[#This Row],[ورود]],times[[#This Row],[خروج]]-times[[#This Row],[ورود]],0)","v":"00:00:00"}]
[null,null,null,null,null,{"$f":"IF(times[[#This Row],[كد]]>0,VLOOKUP(times[[#This Row],[كد]],personel[],2,FALSE)&\" / \"&VLOOKUP(times[[#This Row],[كد]],personel[],3,FALSE),0)","v":0},{"$f":"IF(times[[#This Row],[خروج]]>times[[#This Row],[ورود]],times[[#This Row],[خروج]]-times[[#This Row],[ورود]],0)","v":"00:00:00"}]
[null,null,null,null,null,{"$f":"IF(times[[#This Row],[كد]]>0,VLOOKUP(times[[#This Row],[كد]],personel[],2,FALSE)&\" / \"&VLOOKUP(times[[#This Row],[كد]],personel[],3,FALSE),0)","v":0},{"$f":"IF(times[[#This Row],[خروج]]>times[[#This Row],[ورود]],times[[#This Row],[خروج]]-times[[#This Row],[ورود]],0)","v":"00:00:00"}]
[null,null,null,null,null,{"$f":"IF(times[[#This Row],[كد]]>0,VLOOKUP(times[[#This Row],[كد]],personel[],2,FALSE)&\" / \"&VLOOKUP(times[[#This Row],[كد]],personel[],3,FALSE),0)","v":0},{"$f":"IF(times[[#This Row],[خروج]]>times[[#This Row],[ورود]],times[[#This Row],[خروج]]-times[[#This Row],[ورود]],0)","v":"00:00:00"}]
[null,null,null,null,null,{"$f":"IF(times[[#This Row],[كد]]>0,VLOOKUP(times[[#This Row],[كد]],personel[],2,FALSE)&\" / \"&VLOOKUP(times[[#This Row],[كد]],personel[],3,FALSE),0)","v":0},{"$f":"IF(times[[#This Row],[خروج]]>times[[#This Row],[ورود]],times[[#This Row],[خروج]]-times[[#This Row],[ورود]],0)","v":"00:00:00"}]
[null,null,null,null,null,{"$f":"IF(times[[#This Row],[كد]]>0,VLOOKUP(times[[#This Row],[كد]],personel[],2,FALSE)&\" / \"&VLOOKUP(times[[#This Row],[كد]],personel[],3,FALSE),0)","v":0},{"$f":"IF(times[[#This Row],[خروج]]>times[[#This Row],[ورود]],times[[#This Row],[خروج]]-times[[#This Row],[ورود]],0)","v":"00:00:00"}]
[null,null,null,null,null,{"$f":"IF(times[[#This Row],[كد]]>0,VLOOKUP(times[[#This Row],[كد]],personel[],2,FALSE)&\" / \"&VLOOKUP(times[[#This Row],[كد]],personel[],3,FALSE),0)","v":0},{"$f":"IF(times[[#This Row],[خروج]]>times[[#This Row],[ورود]],times[[#This Row],[خروج]]-times[[#This Row],[ورود]],0)","v":"00:00:00"}]
[null,null,null,null,null,{"$f":"IF(times[[#This Row],[كد]]>0,VLOOKUP(times[[#This Row],[كد]],personel[],2,FALSE)&\" / \"&VLOOKUP(times[[#This Row],[كد]],personel[],3,FALSE),0)","v":0},{"$f":"IF(times[[#This Row],[خروج]]>times[[#This Row],[ورود]],times[[#This Row],[خروج]]-times[[#This Row],[ورود]],0)","v":"00:00:00"}]
[null,null,null,null,null,{"$f":"IF(times[[#This Row],[كد]]>0,VLOOKUP(times[[#This Row],[كد]],personel[],2,FALSE)&\" / \"&VLOOKUP(times[[#This Row],[كد]],personel[],3,FALSE),0)","v":0},{"$f":"IF(times[[#This Row],[خروج]]>times[[#This Row],[ورود]],times[[#This Row],[خروج]]-times[[#This Row],[ورود]],0)","v":"00:00:00"}]
[null,null,null,null,null,{"$f":"IF(times[[#This Row],[كد]]>0,VLOOKUP(times[[#This Row],[كد]],personel[],2,FALSE)&\" / \"&VLOOKUP(times[[#This Row],[كد]],personel[],3,FALSE),0)","v":0},{"$f":"IF(times[[#This Row],[خروج]]>times[[#This Row],[ورود]],times[[#This Row],[خروج]]-times[[#This Row],[ورود]],0)","v":"00:00:00"}]
[null,null,null,null,null,{"$f":"IF(times[[#This Row],[كد]]>0,VLOOKUP(times[[#This Row],[كد]],personel[],2,FALSE)&\" / \"&VLOOKUP(times[[#This Row],[كد]],personel[],3,FALSE),0)","v":0},{"$f":"IF(times[[#This Row],[خروج]]>times[[#This Row],[ورود]],times[[#This Row],[خروج]]-times[[#This Row],[ورود]],0)","v":"00:00:00"}]
[null,null,null,null,null,{"$f":"IF(times[[#This Row],[كد]]>0,VLOOKUP(times[[#This Row],[كد]],personel[],2,FALSE)&\" / \"&VLOOKUP(times[[#This Row],[كد]],personel[],3,FALSE),0)","v":0},{"$f":"IF(times[[#This Row],[خروج]]>times[[#This Row],[ورود]],times[[#This Row],[خروج]]-times[[#This Row],[ورود]],0)","v":"00:00:00"}]
[null,null,null,null,null,{"$f":"IF(times[[#This Row],[كد]]>0,VLOOKUP(times[[#This Row],[كد]],personel[],2,FALSE)&\" / \"&VLOOKUP(times[[#This Row],[كد]],personel[],3,FALSE),0)","v":0},{"$f":"IF(times[[#This Row],[خروج]]>times[[#This Row],[ورود]],times[[#This Row],[خروج]]-times[[#This Row],[ورود]],0)","v":"00:00:00"}]
[null,null,null,null,null,{"$f":"IF(times[[#This Row],[كد]]>0,VLOOKUP(times[[#This Row],[كد]],personel[],2,FALSE)&\" / \"&VLOOKUP(times[[#This Row],[كد]],personel[],3,FALSE),0)","v":0},{"$f":"IF(times[[#This Row],[خروج]]>times[[#This Row],[ورود]],times[[#This Row],[خروج]]-times[[#This Row],[ورود]],0)","v":"00:00:00"}]
[null,null,null,null,null,{"$f":"IF(times[[#This Row],[كد]]>0,VLOOKUP(times[[#This Row],[كد]],personel[],2,FALSE)&\" / \"&VLOOKUP(times[[#This Row],[كد]],personel[],3,FALSE),0)","v":0},{"$f":"IF(times[[#This Row],[خروج]]>times[[#This Row],[ورود]],times[[#This Row],[خروج]]-times[[#This Row],[ورود]],0)","v":"00:00:00"}]
[null,null,null,null,null,{"$f":"IF(times[[#This Row],[كد]]>0,VLOOKUP(times[[#This Row],[كد]],personel[],2,FALSE)&\" / \"&VLOOKUP(times[[#This Row],[كد]],personel[],3,FALSE),0)","v":0},{"$f":"IF(times[[#This Row],[خروج]]>times[[#This Row],[ورود]],times[[#This Row],[خروج]]-times[[#This Row],[ورود]],0)","v":"00:00:00"}]
[null,null,null,null,null,{"$f":"IF(times[[#This Row],[كد]]>0,VLOOKUP(times[[#This Row],[كد]],personel[],2,FALSE)&\" / \"&VLOOKUP(times[[#This Row],[كد]],personel[],3,FALSE),0)","v":0},{"$f":"IF(times[[#This Row],[خروج]]>times[[#This Row],[ورود]],times[[#This Row],[خروج]]-times[[#This Row],[ورود]],0)","v":"00:00:00"}]
[null,null,null,null,null,{"$f":"IF(times[[#This Row],[كد]]>0,VLOOKUP(times[[#This Row],[كد]],personel[],2,FALSE)&\" / \"&VLOOKUP(times[[#This Row],[كد]],personel[],3,FALSE),0)","v":0},{"$f":"IF(times[[#This Row],[خروج]]>times[[#This Row],[ورود]],times[[#This Row],[خروج]]-times[[#This Row],[ورود]],0)","v":"00:00:00"}]
[null,null,null,null,null,{"$f":"IF(times[[#This Row],[كد]]>0,VLOOKUP(times[[#This Row],[كد]],personel[],2,FALSE)&\" / \"&VLOOKUP(times[[#This Row],[كد]],personel[],3,FALSE),0)","v":0},{"$f":"IF(times[[#This Row],[خروج]]>times[[#This Row],[ورود]],times[[#This Row],[خروج]]-times[[#This Row],[ورود]],0)","v":"00:00:00"}]
[null,null,null,null,null,{"$f":"IF(times[[#This Row],[كد]]>0,VLOOKUP(times[[#This Row],[كد]],personel[],2,FALSE)&\" / \"&VLOOKUP(times[[#This Row],[كد]],personel[],3,FALSE),0)","v":0},{"$f":"IF(times[[#This Row],[خروج]]>times[[#This Row],[ورود]],times[[#This Row],[خروج]]-times[[#This Row],[ورود]],0)","v":"00:00:00"}]
[null,null,null,null,null,{"$f":"IF(times[[#This Row],[كد]]>0,VLOOKUP(times[[#This Row],[كد]],personel[],2,FALSE)&\" / \"&VLOOKUP(times[[#This Row],[كد]],personel[],3,FALSE),0)","v":0},{"$f":"IF(times[[#This Row],[خروج]]>times[[#This Row],[ورود]],times[[#This Row],[خروج]]-times[[#This Row],[ورود]],0)","v":"00:00:00"}]
[null,null,null,null,null,{"$f":"IF(times[[#This Row],[كد]]>0,VLOOKUP(times[[#This Row],[كد]],personel[],2,FALSE)&\" / \"&VLOOKUP(times[[#This Row],[كد]],personel[],3,FALSE),0)","v":0},{"$f":"IF(times[[#This Row],[خروج]]>times[[#This Row],[ورود]],times[[#This Row],[خروج]]-times[[#This Row],[ورود]],0)","v":"00:00:00"}]
[null,null,null,null,null,{"$f":"IF(times[[#This Row],[كد]]>0,VLOOKUP(times[[#This Row],[كد]],personel[],2,FALSE)&\" / \"&VLOOKUP(times[[#This Row],[كد]],personel[],3,FALSE),0)","v":0},{"$f":"IF(times[[#This Row],[خروج]]>times[[#This Row],[ورود]],times[[#This Row],[خروج]]-times[[#This Row],[ورود]],0)","v":"00:00:00"}]
[null,null,null,null,null,{"$f":"IF(times[[#This Row],[كد]]>0,VLOOKUP(times[[#This Row],[كد]],personel[],2,FALSE)&\" / \"&VLOOKUP(times[[#This Row],[كد]],personel[],3,FALSE),0)","v":0},{"$f":"IF(times[[#This Row],[خروج]]>times[[#This Row],[ورود]],times[[#This Row],[خروج]]-times[[#This Row],[ورود]],0)","v":"00:00:00"}]
[null,null,null,null,null,{"$f":"IF(times[[#This Row],[كد]]>0,VLOOKUP(times[[#This Row],[كد]],personel[],2,FALSE)&\" / \"&VLOOKUP(times[[#This Row],[كد]],personel[],3,FALSE),0)","v":0},{"$f":"IF(times[[#This Row],[خروج]]>times[[#This Row],[ورود]],times[[#This Row],[خروج]]-times[[#This Row],[ورود]],0)","v":"00:00:00"}]
[null,null,null,null,null,{"$f":"IF(times[[#This Row],[كد]]>0,VLOOKUP(times[[#This Row],[كد]],personel[],2,FALSE)&\" / \"&VLOOKUP(times[[#This Row],[كد]],personel[],3,FALSE),0)","v":0},{"$f":"IF(times[[#This Row],[خروج]]>times[[#This Row],[ورود]],times[[#This Row],[خروج]]-times[[#This Row],[ورود]],0)","v":"00:00:00"}]
[null,null,null,null,null,{"$f":"IF(times[[#This Row],[كد]]>0,VLOOKUP(times[[#This Row],[كد]],personel[],2,FALSE)&\" / \"&VLOOKUP(times[[#This Row],[كد]],personel[],3,FALSE),0)","v":0},{"$f":"IF(times[[#This Row],[خروج]]>times[[#This Row],[ورود]],times[[#This Row],[خروج]]-times[[#This Row],[ورود]],0)","v":"00:00:00"}]
[null,null,null,null,null,{"$f":"IF(times[[#This Row],[كد]]>0,VLOOKUP(times[[#This Row],[كد]],personel[],2,FALSE)&\" / \"&VLOOKUP(times[[#This Row],[كد]],personel[],3,FALSE),0)","v":0},{"$f":"IF(times[[#This Row],[خروج]]>times[[#This Row],[ورود]],times[[#This Row],[خروج]]-times[[#This Row],[ورود]],0)","v":"00:00:00"}]
[null,null,null,null,null,{"$f":"IF(times[[#This Row],[كد]]>0,VLOOKUP(times[[#This Row],[كد]],personel[],2,FALSE)&\" / \"&VLOOKUP(times[[#This Row],[كد]],personel[],3,FALSE),0)","v":0},{"$f":"IF(times[[#This Row],[خروج]]>times[[#This Row],[ورود]],times[[#This Row],[خروج]]-times[[#This Row],[ورود]],0)","v":"00:00:00"}]
[null,null,null,null,null,{"$f":"IF(times[[#This Row],[كد]]>0,VLOOKUP(times[[#This Row],[كد]],personel[],2,FALSE)&\" / \"&VLOOKUP(times[[#This Row],[كد]],personel[],3,FALSE),0)","v":0},{"$f":"IF(times[[#This Row],[خروج]]>times[[#This Row],[ورود]],times[[#This Row],[خروج]]-times[[#This Row],[ورود]],0)","v":"00:00:00"}]
[null,null,null,null,null,{"$f":"IF(times[[#This Row],[كد]]>0,VLOOKUP(times[[#This Row],[كد]],personel[],2,FALSE)&\" / \"&VLOOKUP(times[[#This Row],[كد]],personel[],3,FALSE),0)","v":0},{"$f":"IF(times[[#This Row],[خروج]]>times[[#This Row],[ورود]],times[[#This Row],[خروج]]-times[[#This Row],[ورود]],0)","v":"00:00:00"}]
[null,null,null,null,null,{"$f":"IF(times[[#This Row],[كد]]>0,VLOOKUP(times[[#This Row],[كد]],personel[],2,FALSE)&\" / \"&VLOOKUP(times[[#This Row],[كد]],personel[],3,FALSE),0)","v":0},{"$f":"IF(times[[#This Row],[خروج]]>times[[#This Row],[ورود]],times[[#This Row],[خروج]]-times[[#This Row],[ورود]],0)","v":"00:00:00"}]
[null,null,null,null,null,{"$f":"IF(times[[#This Row],[كد]]>0,VLOOKUP(times[[#This Row],[كد]],personel[],2,FALSE)&\" / \"&VLOOKUP(times[[#This Row],[كد]],personel[],3,FALSE),0)","v":0},{"$f":"IF(times[[#This Row],[خروج]]>times[[#This Row],[ورود]],times[[#This Row],[خروج]]-times[[#This Row],[ورود]],0)","v":"00:00:00"}]
[null,null,null,null,null,{"$f":"IF(times[[#This Row],[كد]]>0,VLOOKUP(times[[#This Row],[كد]],personel[],2,FALSE)&\" / \"&VLOOKUP(times[[#This Row],[كد]],personel[],3,FALSE),0)","v":0},{"$f":"IF(times[[#This Row],[خروج]]>times[[#This Row],[ورود]],times[[#This Row],[خروج]]-times[[#This Row],[ورود]],0)","v":"00:00:00"}]
[null,null,null,null,null,{"$f":"IF(times[[#This Row],[كد]]>0,VLOOKUP(times[[#This Row],[كد]],personel[],2,FALSE)&\" / \"&VLOOKUP(times[[#This Row],[كد]],personel[],3,FALSE),0)","v":0},{"$f":"IF(times[[#This Row],[خروج]]>times[[#This Row],[ورود]],times[[#This Row],[خروج]]-times[[#This Row],[ورود]],0)","v":"00:00:00"}]
[null,null,null,null,null,{"$f":"IF(times[[#This Row],[كد]]>0,VLOOKUP(times[[#This Row],[كد]],personel[],2,FALSE)&\" / \"&VLOOKUP(times[[#This Row],[كد]],personel[],3,FALSE),0)","v":0},{"$f":"IF(times[[#This Row],[خروج]]>times[[#This Row],[ورود]],times[[#This Row],[خروج]]-times[[#This Row],[ورود]],0)","v":"00:00:00"}]
[null,null,null,null,null,{"$f":"IF(times[[#This Row],[كد]]>0,VLOOKUP(times[[#This Row],[كد]],personel[],2,FALSE)&\" / \"&VLOOKUP(times[[#This Row],[كد]],personel[],3,FALSE),0)","v":0},{"$f":"IF(times[[#This Row],[خروج]]>times[[#This Row],[ورود]],times[[#This Row],[خروج]]-times[[#This Row],[ورود]],0)","v":"00:00:00"}]
[null,null,null,null,null,{"$f":"IF(times[[#This Row],[كد]]>0,VLOOKUP(times[[#This Row],[كد]],personel[],2,FALSE)&\" / \"&VLOOKUP(times[[#This Row],[كد]],personel[],3,FALSE),0)","v":0},{"$f":"IF(times[[#This Row],[خروج]]>times[[#This Row],[ورود]],times[[#This Row],[خروج]]-times[[#This Row],[ورود]],0)","v":"00:00:00"}]
[null,null,null,null,null,{"$f":"IF(times[[#This Row],[كد]]>0,VLOOKUP(times[[#This Row],[كد]],personel[],2,FALSE)&\" / \"&VLOOKUP(times[[#This Row],[كد]],personel[],3,FALSE),0)","v":0},{"$f":"IF(times[[#This Row],[خروج]]>times[[#This Row],[ورود]],times[[#This Row],[خروج]]-times[[#This Row],[ورود]],0)","v":"00:00:00"}]
[null,null,null,null,null,{"$f":"IF(times[[#This Row],[كد]]>0,VLOOKUP(times[[#This Row],[كد]],personel[],2,FALSE)&\" / \"&VLOOKUP(times[[#This Row],[كد]],personel[],3,FALSE),0)","v":0},{"$f":"IF(times[[#This Row],[خروج]]>times[[#This Row],[ورود]],times[[#This Row],[خروج]]-times[[#This Row],[ورود]],0)","v":"00:00:00"}]
[null,null,null,null,null,{"$f":"IF(times[[#This Row],[كد]]>0,VLOOKUP(times[[#This Row],[كد]],personel[],2,FALSE)&\" / \"&VLOOKUP(times[[#This Row],[كد]],personel[],3,FALSE),0)","v":0},{"$f":"IF(times[[#This Row],[خروج]]>times[[#This Row],[ورود]],times[[#This Row],[خروج]]-times[[#This Row],[ورود]],0)","v":"00:00:00"}]
[null,null,null,null,null,{"$f":"IF(times[[#This Row],[كد]]>0,VLOOKUP(times[[#This Row],[كد]],personel[],2,FALSE)&\" / \"&VLOOKUP(times[[#This Row],[كد]],personel[],3,FALSE),0)","v":0},{"$f":"IF(times[[#This Row],[خروج]]>times[[#This Row],[ورود]],times[[#This Row],[خروج]]-times[[#This Row],[ورود]],0)","v":"00:00:00"}]
[null,null,null,null,null,{"$f":"IF(times[[#This Row],[كد]]>0,VLOOKUP(times[[#This Row],[كد]],personel[],2,FALSE)&\" / \"&VLOOKUP(times[[#This Row],[كد]],personel[],3,FALSE),0)","v":0},{"$f":"IF(times[[#This Row],[خروج]]>times[[#This Row],[ورود]],times[[#This Row],[خروج]]-times[[#This Row],[ورود]],0)","v":"00:00:00"}]
[null,null,null,null,null,{"$f":"IF(times[[#This Row],[كد]]>0,VLOOKUP(times[[#This Row],[كد]],personel[],2,FALSE)&\" / \"&VLOOKUP(times[[#This Row],[كد]],personel[],3,FALSE),0)","v":0},{"$f":"IF(times[[#This Row],[خروج]]>times[[#This Row],[ورود]],times[[#This Row],[خروج]]-times[[#This Row],[ورود]],0)","v":"00:00:00"}]
[null,null,null,null,null,{"$f":"IF(times[[#This Row],[كد]]>0,VLOOKUP(times[[#This Row],[كد]],personel[],2,FALSE)&\" / \"&VLOOKUP(times[[#This Row],[كد]],personel[],3,FALSE),0)","v":0},{"$f":"IF(times[[#This Row],[خروج]]>times[[#This Row],[ورود]],times[[#This Row],[خروج]]-times[[#This Row],[ورود]],0)","v":"00:00:00"}]
[null,null,null,null,null,{"$f":"IF(times[[#This Row],[كد]]>0,VLOOKUP(times[[#This Row],[كد]],personel[],2,FALSE)&\" / \"&VLOOKUP(times[[#This Row],[كد]],personel[],3,FALSE),0)","v":0},{"$f":"IF(times[[#This Row],[خروج]]>times[[#This Row],[ورود]],times[[#This Row],[خروج]]-times[[#This Row],[ورود]],0)","v":"00:00:00"}]
[null,null,null,null,null,{"$f":"IF(times[[#This Row],[كد]]>0,VLOOKUP(times[[#This Row],[كد]],personel[],2,FALSE)&\" / \"&VLOOKUP(times[[#This Row],[كد]],personel[],3,FALSE),0)","v":0},{"$f":"IF(times[[#This Row],[خروج]]>times[[#This Row],[ورود]],times[[#This Row],[خروج]]-times[[#This Row],[ورود]],0)","v":"00:00:00"}]
[null,null,null,null,null,{"$f":"IF(times[[#This Row],[كد]]>0,VLOOKUP(times[[#This Row],[كد]],personel[],2,FALSE)&\" / \"&VLOOKUP(times[[#This Row],[كد]],personel[],3,FALSE),0)","v":0},{"$f":"IF(times[[#This Row],[خروج]]>times[[#This Row],[ورود]],times[[#This Row],[خروج]]-times[[#This Row],[ورود]],0)","v":"00:00:00"}]
[null,null,null,null,null,{"$f":"IF(times[[#This Row],[كد]]>0,VLOOKUP(times[[#This Row],[كد]],personel[],2,FALSE)&\" / \"&VLOOKUP(times[[#This Row],[كد]],personel[],3,FALSE),0)","v":0},{"$f":"IF(times[[#This Row],[خروج]]>times[[#This Row],[ورود]],times[[#This Row],[خروج]]-times[[#This Row],[ورود]],0)","v":"00:00:00"}]
[null,null,null,null,null,{"$f":"IF(times[[#This Row],[كد]]>0,VLOOKUP(times[[#This Row],[كد]],personel[],2,FALSE)&\" / \"&VLOOKUP(times[[#This Row],[كد]],personel[],3,FALSE),0)","v":0},{"$f":"IF(times[[#This Row],[خروج]]>times[[#This Row],[ورود]],times[[#This Row],[خروج]]-times[[#This Row],[ورود]],0)","v":"00:00:00"}]
[null,null,null,null,null,{"$f":"IF(times[[#This Row],[كد]]>0,VLOOKUP(times[[#This Row],[كد]],personel[],2,FALSE)&\" / \"&VLOOKUP(times[[#This Row],[كد]],personel[],3,FALSE),0)","v":0},{"$f":"IF(times[[#This Row],[خروج]]>times[[#This Row],[ورود]],times[[#This Row],[خروج]]-times[[#This Row],[ورود]],0)","v":"00:00:00"}]
[null,null,null,null,null,{"$f":"IF(times[[#This Row],[كد]]>0,VLOOKUP(times[[#This Row],[كد]],personel[],2,FALSE)&\" / \"&VLOOKUP(times[[#This Row],[كد]],personel[],3,FALSE),0)","v":0},{"$f":"IF(times[[#This Row],[خروج]]>times[[#This Row],[ورود]],times[[#This Row],[خروج]]-times[[#This Row],[ورود]],0)","v":"00:00:00"}]
[null,null,null,null,null,{"$f":"IF(times[[#This Row],[كد]]>0,VLOOKUP(times[[#This Row],[كد]],personel[],2,FALSE)&\" / \"&VLOOKUP(times[[#This Row],[كد]],personel[],3,FALSE),0)","v":0},{"$f":"IF(times[[#This Row],[خروج]]>times[[#This Row],[ورود]],times[[#This Row],[خروج]]-times[[#This Row],[ورود]],0)","v":"00:00:00"}]
[null,null,null,null,null,{"$f":"IF(times[[#This Row],[كد]]>0,VLOOKUP(times[[#This Row],[كد]],personel[],2,FALSE)&\" / \"&VLOOKUP(times[[#This Row],[كد]],personel[],3,FALSE),0)","v":0},{"$f":"IF(times[[#This Row],[خروج]]>times[[#This Row],[ورود]],times[[#This Row],[خروج]]-times[[#This Row],[ورود]],0)","v":"00:00:00"}]
[null,null,null,null,null,{"$f":"IF(times[[#This Row],[كد]]>0,VLOOKUP(times[[#This Row],[كد]],personel[],2,FALSE)&\" / \"&VLOOKUP(times[[#This Row],[كد]],personel[],3,FALSE),0)","v":0},{"$f":"IF(times[[#This Row],[خروج]]>times[[#This Row],[ورود]],times[[#This Row],[خروج]]-times[[#This Row],[ورود]],0)","v":"00:00:00"}]
[null,null,null,null,null,{"$f":"IF(times[[#This Row],[كد]]>0,VLOOKUP(times[[#This Row],[كد]],personel[],2,FALSE)&\" / \"&VLOOKUP(times[[#This Row],[كد]],personel[],3,FALSE),0)","v":0},{"$f":"IF(times[[#This Row],[خروج]]>times[[#This Row],[ورود]],times[[#This Row],[خروج]]-times[[#This Row],[ورود]],0)","v":"00:00:00"}]
[null,null,null,null,null,{"$f":"IF(times[[#This Row],[كد]]>0,VLOOKUP(times[[#This Row],[كد]],personel[],2,FALSE)&\" / \"&VLOOKUP(times[[#This Row],[كد]],personel[],3,FALSE),0)","v":0},{"$f":"IF(times[[#This Row],[خروج]]>times[[#This Row],[ورود]],times[[#This Row],[خروج]]-times[[#This Row],[ورود]],0)","v":"00:00:00"}]
[null,null,null,null,null,{"$f":"IF(times[[#This Row],[كد]]>0,VLOOKUP(times[[#This Row],[كد]],personel[],2,FALSE)&\" / \"&VLOOKUP(times[[#This Row],[كد]],personel[],3,FALSE),0)","v":0},{"$f":"IF(times[[#This Row],[خروج]]>times[[#This Row],[ورود]],times[[#This Row],[خروج]]-times[[#This Row],[ورود]],0)","v":"00:00:00"}]
[null,null,null,null,null,{"$f":"IF(times[[#This Row],[كد]]>0,VLOOKUP(times[[#This Row],[كد]],personel[],2,FALSE)&\" / \"&VLOOKUP(times[[#This Row],[كد]],personel[],3,FALSE),0)","v":0},{"$f":"IF(times[[#This Row],[خروج]]>times[[#This Row],[ورود]],times[[#This Row],[خروج]]-times[[#This Row],[ورود]],0)","v":"00:00:00"}]
[null,null,null,null,null,{"$f":"IF(times[[#This Row],[كد]]>0,VLOOKUP(times[[#This Row],[كد]],personel[],2,FALSE)&\" / \"&VLOOKUP(times[[#This Row],[كد]],personel[],3,FALSE),0)","v":0},{"$f":"IF(times[[#This Row],[خروج]]>times[[#This Row],[ورود]],times[[#This Row],[خروج]]-times[[#This Row],[ورود]],0)","v":"00:00:00"}]
[null,null,null,null,null,{"$f":"IF(times[[#This Row],[كد]]>0,VLOOKUP(times[[#This Row],[كد]],personel[],2,FALSE)&\" / \"&VLOOKUP(times[[#This Row],[كد]],personel[],3,FALSE),0)","v":0},{"$f":"IF(times[[#This Row],[خروج]]>times[[#This Row],[ورود]],times[[#This Row],[خروج]]-times[[#This Row],[ورود]],0)","v":"00:00:00"}]
[null,null,null,null,null,{"$f":"IF(times[[#This Row],[كد]]>0,VLOOKUP(times[[#This Row],[كد]],personel[],2,FALSE)&\" / \"&VLOOKUP(times[[#This Row],[كد]],personel[],3,FALSE),0)","v":0},{"$f":"IF(times[[#This Row],[خروج]]>times[[#This Row],[ورود]],times[[#This Row],[خروج]]-times[[#This Row],[ورود]],0)","v":"00:00:00"}]
[null,null,null,null,null,{"$f":"IF(times[[#This Row],[كد]]>0,VLOOKUP(times[[#This Row],[كد]],personel[],2,FALSE)&\" / \"&VLOOKUP(times[[#This Row],[كد]],personel[],3,FALSE),0)","v":0},{"$f":"IF(times[[#This Row],[خروج]]>times[[#This Row],[ورود]],times[[#This Row],[خروج]]-times[[#This Row],[ورود]],0)","v":"00:00:00"}]
[null,null,null,null,null,{"$f":"IF(times[[#This Row],[كد]]>0,VLOOKUP(times[[#This Row],[كد]],personel[],2,FALSE)&\" / \"&VLOOKUP(times[[#This Row],[كد]],personel[],3,FALSE),0)","v":0},{"$f":"IF(times[[#This Row],[خروج]]>times[[#This Row],[ورود]],times[[#This Row],[خروج]]-times[[#This Row],[ورود]],0)","v":"00:00:00"}]
[null,null,null,null,null,{"$f":"IF(times[[#This Row],[كد]]>0,VLOOKUP(times[[#This Row],[كد]],personel[],2,FALSE)&\" / \"&VLOOKUP(times[[#This Row],[كد]],personel[],3,FALSE),0)","v":0},{"$f":"IF(times[[#This Row],[خروج]]>times[[#This Row],[ورود]],times[[#This Row],[خروج]]-times[[#This Row],[ورود]],0)","v":"00:00:00"}]
[null,null,null,null,null,{"$f":"IF(times[[#This Row],[كد]]>0,VLOOKUP(times[[#This Row],[كد]],personel[],2,FALSE)&\" / \"&VLOOKUP(times[[#This Row],[كد]],personel[],3,FALSE),0)","v":0},{"$f":"IF(times[[#This Row],[خروج]]>times[[#This Row],[ورود]],times[[#This Row],[خروج]]-times[[#This Row],[ورود]],0)","v":"00:00:00"}]
[null,null,null,null,null,{"$f":"IF(times[[#This Row],[كد]]>0,VLOOKUP(times[[#This Row],[كد]],personel[],2,FALSE)&\" / \"&VLOOKUP(times[[#This Row],[كد]],personel[],3,FALSE),0)","v":0},{"$f":"IF(times[[#This Row],[خروج]]>times[[#This Row],[ورود]],times[[#This Row],[خروج]]-times[[#This Row],[ورود]],0)","v":"00:00:00"}]
[null,null,null,null,null,{"$f":"IF(times[[#This Row],[كد]]>0,VLOOKUP(times[[#This Row],[كد]],personel[],2,FALSE)&\" / \"&VLOOKUP(times[[#This Row],[كد]],personel[],3,FALSE),0)","v":0},{"$f":"IF(times[[#This Row],[خروج]]>times[[#This Row],[ورود]],times[[#This Row],[خروج]]-times[[#This Row],[ورود]],0)","v":"00:00:00"}]
[null,null,null,null,null,{"$f":"IF(times[[#This Row],[كد]]>0,VLOOKUP(times[[#This Row],[كد]],personel[],2,FALSE)&\" / \"&VLOOKUP(times[[#This Row],[كد]],personel[],3,FALSE),0)","v":0},{"$f":"IF(times[[#This Row],[خروج]]>times[[#This Row],[ورود]],times[[#This Row],[خروج]]-times[[#This Row],[ورود]],0)","v":"00:00:00"}]
[null,null,null,null,null,{"$f":"IF(times[[#This Row],[كد]]>0,VLOOKUP(times[[#This Row],[كد]],personel[],2,FALSE)&\" / \"&VLOOKUP(times[[#This Row],[كد]],personel[],3,FALSE),0)","v":0},{"$f":"IF(times[[#This Row],[خروج]]>times[[#This Row],[ورود]],times[[#This Row],[خروج]]-times[[#This Row],[ورود]],0)","v":"00:00:00"}]
[null,null,null,null,null,{"$f":"IF(times[[#This Row],[كد]]>0,VLOOKUP(times[[#This Row],[كد]],personel[],2,FALSE)&\" / \"&VLOOKUP(times[[#This Row],[كد]],personel[],3,FALSE),0)","v":0},{"$f":"IF(times[[#This Row],[خروج]]>times[[#This Row],[ورود]],times[[#This Row],[خروج]]-times[[#This Row],[ورود]],0)","v":"00:00:00"}]
[null,null,null,null,null,{"$f":"IF(times[[#This Row],[كد]]>0,VLOOKUP(times[[#This Row],[كد]],personel[],2,FALSE)&\" / \"&VLOOKUP(times[[#This Row],[كد]],personel[],3,FALSE),0)","v":0},{"$f":"IF(times[[#This Row],[خروج]]>times[[#This Row],[ورود]],times[[#This Row],[خروج]]-times[[#This Row],[ورود]],0)","v":"00:00:00"}]
[null,null,null,null,null,{"$f":"IF(times[[#This Row],[كد]]>0,VLOOKUP(times[[#This Row],[كد]],personel[],2,FALSE)&\" / \"&VLOOKUP(times[[#This Row],[كد]],personel[],3,FALSE),0)","v":0},{"$f":"IF(times[[#This Row],[خروج]]>times[[#This Row],[ورود]],times[[#This Row],[خروج]]-times[[#This Row],[ورود]],0)","v":"00:00:00"}]
[null,null,null,null,null,{"$f":"IF(times[[#This Row],[كد]]>0,VLOOKUP(times[[#This Row],[كد]],personel[],2,FALSE)&\" / \"&VLOOKUP(times[[#This Row],[كد]],personel[],3,FALSE),0)","v":0},{"$f":"IF(times[[#This Row],[خروج]]>times[[#This Row],[ورود]],times[[#This Row],[خروج]]-times[[#This Row],[ورود]],0)","v":"00:00:00"}]
[null,null,null,null,null,{"$f":"IF(times[[#This Row],[كد]]>0,VLOOKUP(times[[#This Row],[كد]],personel[],2,FALSE)&\" / \"&VLOOKUP(times[[#This Row],[كد]],personel[],3,FALSE),0)","v":0},{"$f":"IF(times[[#This Row],[خروج]]>times[[#This Row],[ورود]],times[[#This Row],[خروج]]-times[[#This Row],[ورود]],0)","v":"00:00:00"}]
[null,null,null,null,null,{"$f":"IF(times[[#This Row],[كد]]>0,VLOOKUP(times[[#This Row],[كد]],personel[],2,FALSE)&\" / \"&VLOOKUP(times[[#This Row],[كد]],personel[],3,FALSE),0)","v":0},{"$f":"IF(times[[#This Row],[خروج]]>times[[#This Row],[ورود]],times[[#This Row],[خروج]]-times[[#This Row],[ورود]],0)","v":"00:00:00"}]
[null,null,null,null,null,{"$f":"IF(times[[#This Row],[كد]]>0,VLOOKUP(times[[#This Row],[كد]],personel[],2,FALSE)&\" / \"&VLOOKUP(times[[#This Row],[كد]],personel[],3,FALSE),0)","v":0},{"$f":"IF(times[[#This Row],[خروج]]>times[[#This Row],[ورود]],times[[#This Row],[خروج]]-times[[#This Row],[ورود]],0)","v":"00:00:00"}]
[null,null,null,null,null,{"$f":"IF(times[[#This Row],[كد]]>0,VLOOKUP(times[[#This Row],[كد]],personel[],2,FALSE)&\" / \"&VLOOKUP(times[[#This Row],[كد]],personel[],3,FALSE),0)","v":0},{"$f":"IF(times[[#This Row],[خروج]]>times[[#This Row],[ورود]],times[[#This Row],[خروج]]-times[[#This Row],[ورود]],0)","v":"00:00:00"}]
[null,null,null,null,null,{"$f":"IF(times[[#This Row],[كد]]>0,VLOOKUP(times[[#This Row],[كد]],personel[],2,FALSE)&\" / \"&VLOOKUP(times[[#This Row],[كد]],personel[],3,FALSE),0)","v":0},{"$f":"IF(times[[#This Row],[خروج]]>times[[#This Row],[ورود]],times[[#This Row],[خروج]]-times[[#This Row],[ورود]],0)","v":"00:00:00"}]
[null,null,null,null,null,{"$f":"IF(times[[#This Row],[كد]]>0,VLOOKUP(times[[#This Row],[كد]],personel[],2,FALSE)&\" / \"&VLOOKUP(times[[#This Row],[كد]],personel[],3,FALSE),0)","v":0},{"$f":"IF(times[[#This Row],[خروج]]>times[[#This Row],[ورود]],times[[#This Row],[خروج]]-times[[#This Row],[ورود]],0)","v":"00:00:00"}]
[null,null,null,null,null,{"$f":"IF(times[[#This Row],[كد]]>0,VLOOKUP(times[[#This Row],[كد]],personel[],2,FALSE)&\" / \"&VLOOKUP(times[[#This Row],[كد]],personel[],3,FALSE),0)","v":0},{"$f":"IF(times[[#This Row],[خروج]]>times[[#This Row],[ورود]],times[[#This Row],[خروج]]-times[[#This Row],[ورود]],0)","v":"00:00:00"}]
[null,null,null,null,null,{"$f":"IF(times[[#This Row],[كد]]>0,VLOOKUP(times[[#This Row],[كد]],personel[],2,FALSE)&\" / \"&VLOOKUP(times[[#This Row],[كد]],personel[],3,FALSE),0)","v":0},{"$f":"IF(times[[#This Row],[خروج]]>times[[#This Row],[ورود]],times[[#This Row],[خروج]]-times[[#This Row],[ورود]],0)","v":"00:00:00"}]
[null,null,null,null,null,{"$f":"IF(times[[#This Row],[كد]]>0,VLOOKUP(times[[#This Row],[كد]],personel[],2,FALSE)&\" / \"&VLOOKUP(times[[#This Row],[كد]],personel[],3,FALSE),0)","v":0},{"$f":"IF(times[[#This Row],[خروج]]>times[[#This Row],[ورود]],times[[#This Row],[خروج]]-times[[#This Row],[ورود]],0)","v":"00:00:00"}]
[null,null,null,null,null,{"$f":"IF(times[[#This Row],[كد]]>0,VLOOKUP(times[[#This Row],[كد]],personel[],2,FALSE)&\" / \"&VLOOKUP(times[[#This Row],[كد]],personel[],3,FALSE),0)","v":0},{"$f":"IF(times[[#This Row],[خروج]]>times[[#This Row],[ورود]],times[[#This Row],[خروج]]-times[[#This Row],[ورود]],0)","v":"00:00:00"}]
[null,null,null,null,null,{"$f":"IF(times[[#This Row],[كد]]>0,VLOOKUP(times[[#This Row],[كد]],personel[],2,FALSE)&\" / \"&VLOOKUP(times[[#This Row],[كد]],personel[],3,FALSE),0)","v":0},{"$f":"IF(times[[#This Row],[خروج]]>times[[#This Row],[ورود]],times[[#This Row],[خروج]]-times[[#This Row],[ورود]],0)","v":"00:00:00"}]
[null,null,null,null,null,{"$f":"IF(times[[#This Row],[كد]]>0,VLOOKUP(times[[#This Row],[كد]],personel[],2,FALSE)&\" / \"&VLOOKUP(times[[#This Row],[كد]],personel[],3,FALSE),0)","v":0},{"$f":"IF(times[[#This Row],[خروج]]>times[[#This Row],[ورود]],times[[#This Row],[خروج]]-times[[#This Row],[ورود]],0)","v":"00:00:00"}]
[null,null,null,null,null,{"$f":"IF(times[[#This Row],[كد]]>0,VLOOKUP(times[[#This Row],[كد]],personel[],2,FALSE)&\" / \"&VLOOKUP(times[[#This Row],[كد]],personel[],3,FALSE),0)","v":0},{"$f":"IF(times[[#This Row],[خروج]]>times[[#This Row],[ورود]],times[[#This Row],[خروج]]-times[[#This Row],[ورود]],0)","v":"00:00:00"}]
[null,null,null,null,null,{"$f":"IF(times[[#This Row],[كد]]>0,VLOOKUP(times[[#This Row],[كد]],personel[],2,FALSE)&\" / \"&VLOOKUP(times[[#This Row],[كد]],personel[],3,FALSE),0)","v":0},{"$f":"IF(times[[#This Row],[خروج]]>times[[#This Row],[ورود]],times[[#This Row],[خروج]]-times[[#This Row],[ورود]],0)","v":"00:00:00"}]
[null,null,null,null,null,{"$f":"IF(times[[#This Row],[كد]]>0,VLOOKUP(times[[#This Row],[كد]],personel[],2,FALSE)&\" / \"&VLOOKUP(times[[#This Row],[كد]],personel[],3,FALSE),0)","v":0},{"$f":"IF(times[[#This Row],[خروج]]>times[[#This Row],[ورود]],times[[#This Row],[خروج]]-times[[#This Row],[ورود]],0)","v":"00:00:00"}]
[null,null,null,null,null,{"$f":"IF(times[[#This Row],[كد]]>0,VLOOKUP(times[[#This Row],[كد]],personel[],2,FALSE)&\" / \"&VLOOKUP(times[[#This Row],[كد]],personel[],3,FALSE),0)","v":0},{"$f":"IF(times[[#This Row],[خروج]]>times[[#This Row],[ورود]],times[[#This Row],[خروج]]-times[[#This Row],[ورود]],0)","v":"00:00:00"}]
[null,null,null,null,null,{"$f":"IF(times[[#This Row],[كد]]>0,VLOOKUP(times[[#This Row],[كد]],personel[],2,FALSE)&\" / \"&VLOOKUP(times[[#This Row],[كد]],personel[],3,FALSE),0)","v":0},{"$f":"IF(times[[#This Row],[خروج]]>times[[#This Row],[ورود]],times[[#This Row],[خروج]]-times[[#This Row],[ورود]],0)","v":"00:00:00"}]
[null,null,null,null,null,{"$f":"IF(times[[#This Row],[كد]]>0,VLOOKUP(times[[#This Row],[كد]],personel[],2,FALSE)&\" / \"&VLOOKUP(times[[#This Row],[كد]],personel[],3,FALSE),0)","v":0},{"$f":"IF(times[[#This Row],[خروج]]>times[[#This Row],[ورود]],times[[#This Row],[خروج]]-times[[#This Row],[ورود]],0)","v":"00:00:00"}]
[null,null,null,null,null,{"$f":"IF(times[[#This Row],[كد]]>0,VLOOKUP(times[[#This Row],[كد]],personel[],2,FALSE)&\" / \"&VLOOKUP(times[[#This Row],[كد]],personel[],3,FALSE),0)","v":0},{"$f":"IF(times[[#This Row],[خروج]]>times[[#This Row],[ورود]],times[[#This Row],[خروج]]-times[[#This Row],[ورود]],0)","v":"00:00:00"}]
[null,null,null,null,null,{"$f":"IF(times[[#This Row],[كد]]>0,VLOOKUP(times[[#This Row],[كد]],personel[],2,FALSE)&\" / \"&VLOOKUP(times[[#This Row],[كد]],personel[],3,FALSE),0)","v":0},{"$f":"IF(times[[#This Row],[خروج]]>times[[#This Row],[ورود]],times[[#This Row],[خروج]]-times[[#This Row],[ورود]],0)","v":"00:00:00"}]
[null,null,null,null,null,{"$f":"IF(times[[#This Row],[كد]]>0,VLOOKUP(times[[#This Row],[كد]],personel[],2,FALSE)&\" / \"&VLOOKUP(times[[#This Row],[كد]],personel[],3,FALSE),0)","v":0},{"$f":"IF(times[[#This Row],[خروج]]>times[[#This Row],[ورود]],times[[#This Row],[خروج]]-times[[#This Row],[ورود]],0)","v":"00:00:00"}]
[null,null,null,null,null,{"$f":"IF(times[[#This Row],[كد]]>0,VLOOKUP(times[[#This Row],[كد]],personel[],2,FALSE)&\" / \"&VLOOKUP(times[[#This Row],[كد]],personel[],3,FALSE),0)","v":0},{"$f":"IF(times[[#This Row],[خروج]]>times[[#This Row],[ورود]],times[[#This Row],[خروج]]-times[[#This Row],[ورود]],0)","v":"00:00:00"}]
[null,null,null,null,null,{"$f":"IF(times[[#This Row],[كد]]>0,VLOOKUP(times[[#This Row],[كد]],personel[],2,FALSE)&\" / \"&VLOOKUP(times[[#This Row],[كد]],personel[],3,FALSE),0)","v":0},{"$f":"IF(times[[#This Row],[خروج]]>times[[#This Row],[ورود]],times[[#This Row],[خروج]]-times[[#This Row],[ورود]],0)","v":"00:00:00"}]
[null,null,null,null,null,{"$f":"IF(times[[#This Row],[كد]]>0,VLOOKUP(times[[#This Row],[كد]],personel[],2,FALSE)&\" / \"&VLOOKUP(times[[#This Row],[كد]],personel[],3,FALSE),0)","v":0},{"$f":"IF(times[[#This Row],[خروج]]>times[[#This Row],[ورود]],times[[#This Row],[خروج]]-times[[#This Row],[ورود]],0)","v":"00:00:00"}]
[null,null,null,null,null,{"$f":"IF(times[[#This Row],[كد]]>0,VLOOKUP(times[[#This Row],[كد]],personel[],2,FALSE)&\" / \"&VLOOKUP(times[[#This Row],[كد]],personel[],3,FALSE),0)","v":0},{"$f":"IF(times[[#This Row],[خروج]]>times[[#This Row],[ورود]],times[[#This Row],[خروج]]-times[[#This Row],[ورود]],0)","v":"00:00:00"}]
[null,null,null,null,null,{"$f":"IF(times[[#This Row],[كد]]>0,VLOOKUP(times[[#This Row],[كد]],personel[],2,FALSE)&\" / \"&VLOOKUP(times[[#This Row],[كد]],personel[],3,FALSE),0)","v":0},{"$f":"IF(times[[#This Row],[خروج]]>times[[#This Row],[ورود]],times[[#This Row],[خروج]]-times[[#This Row],[ورود]],0)","v":"00:00:00"}]
[null,null,null,null,null,{"$f":"IF(times[[#This Row],[كد]]>0,VLOOKUP(times[[#This Row],[كد]],personel[],2,FALSE)&\" / \"&VLOOKUP(times[[#This Row],[كد]],personel[],3,FALSE),0)","v":0},{"$f":"IF(times[[#This Row],[خروج]]>times[[#This Row],[ورود]],times[[#This Row],[خروج]]-times[[#This Row],[ورود]],0)","v":"00:00:00"}]
[null,null,null,null,null,{"$f":"IF(times[[#This Row],[كد]]>0,VLOOKUP(times[[#This Row],[كد]],personel[],2,FALSE)&\" / \"&VLOOKUP(times[[#This Row],[كد]],personel[],3,FALSE),0)","v":0},{"$f":"IF(times[[#This Row],[خروج]]>times[[#This Row],[ورود]],times[[#This Row],[خروج]]-times[[#This Row],[ورود]],0)","v":"00:00:00"}]
[null,null,null,null,null,{"$f":"IF(times[[#This Row],[كد]]>0,VLOOKUP(times[[#This Row],[كد]],personel[],2,FALSE)&\" / \"&VLOOKUP(times[[#This Row],[كد]],personel[],3,FALSE),0)","v":0},{"$f":"IF(times[[#This Row],[خروج]]>times[[#This Row],[ورود]],times[[#This Row],[خروج]]-times[[#This Row],[ورود]],0)","v":"00:00:00"}]
[null,null,null,null,null,{"$f":"IF(times[[#This Row],[كد]]>0,VLOOKUP(times[[#This Row],[كد]],personel[],2,FALSE)&\" / \"&VLOOKUP(times[[#This Row],[كد]],personel[],3,FALSE),0)","v":0},{"$f":"IF(times[[#This Row],[خروج]]>times[[#This Row],[ورود]],times[[#This Row],[خروج]]-times[[#This Row],[ورود]],0)","v":"00:00:00"}]
[null,null,null,null,null,{"$f":"IF(times[[#This Row],[كد]]>0,VLOOKUP(times[[#This Row],[كد]],personel[],2,FALSE)&\" / \"&VLOOKUP(times[[#This Row],[كد]],personel[],3,FALSE),0)","v":0},{"$f":"IF(times[[#This Row],[خروج]]>times[[#This Row],[ورود]],times[[#This Row],[خروج]]-times[[#This Row],[ورود]],0)","v":"00:00:00"}]
[null,null,null,null,null,{"$f":"IF(times[[#This Row],[كد]]>0,VLOOKUP(times[[#This Row],[كد]],personel[],2,FALSE)&\" / \"&VLOOKUP(times[[#This Row],[كد]],personel[],3,FALSE),0)","v":0},{"$f":"IF(times[[#This Row],[خروج]]>times[[#This Row],[ورود]],times[[#This Row],[خروج]]-times[[#This Row],[ورود]],0)","v":"00:00:00"}]
[null,null,null,null,null,{"$f":"IF(times[[#This Row],[كد]]>0,VLOOKUP(times[[#This Row],[كد]],personel[],2,FALSE)&\" / \"&VLOOKUP(times[[#This Row],[كد]],personel[],3,FALSE),0)","v":0},{"$f":"IF(times[[#This Row],[خروج]]>times[[#This Row],[ورود]],times[[#This Row],[خروج]]-times[[#This Row],[ورود]],0)","v":"00:00:00"}]
[null,null,null,null,null,{"$f":"IF(times[[#This Row],[كد]]>0,VLOOKUP(times[[#This Row],[كد]],personel[],2,FALSE)&\" / \"&VLOOKUP(times[[#This Row],[كد]],personel[],3,FALSE),0)","v":0},{"$f":"IF(times[[#This Row],[خروج]]>times[[#This Row],[ورود]],times[[#This Row],[خروج]]-times[[#This Row],[ورود]],0)","v":"00:00:00"}]
[null,null,null,null,null,{"$f":"IF(times[[#This Row],[كد]]>0,VLOOKUP(times[[#This Row],[كد]],personel[],2,FALSE)&\" / \"&VLOOKUP(times[[#This Row],[كد]],personel[],3,FALSE),0)","v":0},{"$f":"IF(times[[#This Row],[خروج]]>times[[#This Row],[ورود]],times[[#This Row],[خروج]]-times[[#This Row],[ورود]],0)","v":"00:00:00"}]
[null,null,null,null,null,{"$f":"IF(times[[#This Row],[كد]]>0,VLOOKUP(times[[#This Row],[كد]],personel[],2,FALSE)&\" / \"&VLOOKUP(times[[#This Row],[كد]],personel[],3,FALSE),0)","v":0},{"$f":"IF(times[[#This Row],[خروج]]>times[[#This Row],[ورود]],times[[#This Row],[خروج]]-times[[#This Row],[ورود]],0)","v":"00:00:00"}]
[null,null,null,null,null,{"$f":"IF(times[[#This Row],[كد]]>0,VLOOKUP(times[[#This Row],[كد]],personel[],2,FALSE)&\" / \"&VLOOKUP(times[[#This Row],[كد]],personel[],3,FALSE),0)","v":0},{"$f":"IF(times[[#This Row],[خروج]]>times[[#This Row],[ورود]],times[[#This Row],[خروج]]-times[[#This Row],[ورود]],0)","v":"00:00:00"}]
[null,null,null,null,null,{"$f":"IF(times[[#This Row],[كد]]>0,VLOOKUP(times[[#This Row],[كد]],personel[],2,FALSE)&\" / \"&VLOOKUP(times[[#This Row],[كد]],personel[],3,FALSE),0)","v":0},{"$f":"IF(times[[#This Row],[خروج]]>times[[#This Row],[ورود]],times[[#This Row],[خروج]]-times[[#This Row],[ورود]],0)","v":"00:00:00"}]
[null,null,null,null,null,{"$f":"IF(times[[#This Row],[كد]]>0,VLOOKUP(times[[#This Row],[كد]],personel[],2,FALSE)&\" / \"&VLOOKUP(times[[#This Row],[كد]],personel[],3,FALSE),0)","v":0},{"$f":"IF(times[[#This Row],[خروج]]>times[[#This Row],[ورود]],times[[#This Row],[خروج]]-times[[#This Row],[ورود]],0)","v":"00:00:00"}]
[null,null,null,null,null,{"$f":"IF(times[[#This Row],[كد]]>0,VLOOKUP(times[[#This Row],[كد]],personel[],2,FALSE)&\" / \"&VLOOKUP(times[[#This Row],[كد]],personel[],3,FALSE),0)","v":0},{"$f":"IF(times[[#This Row],[خروج]]>times[[#This Row],[ورود]],times[[#This Row],[خروج]]-times[[#This Row],[ورود]],0)","v":"00:00:00"}]
[null,null,null,null,null,{"$f":"IF(times[[#This Row],[كد]]>0,VLOOKUP(times[[#This Row],[كد]],personel[],2,FALSE)&\" / \"&VLOOKUP(times[[#This Row],[كد]],personel[],3,FALSE),0)","v":0},{"$f":"IF(times[[#This Row],[خروج]]>times[[#This Row],[ورود]],times[[#This Row],[خروج]]-times[[#This Row],[ورود]],0)","v":"00:00:00"}]
[null,null,null,null,null,{"$f":"IF(times[[#This Row],[كد]]>0,VLOOKUP(times[[#This Row],[كد]],personel[],2,FALSE)&\" / \"&VLOOKUP(times[[#This Row],[كد]],personel[],3,FALSE),0)","v":0},{"$f":"IF(times[[#This Row],[خروج]]>times[[#This Row],[ورود]],times[[#This Row],[خروج]]-times[[#This Row],[ورود]],0)","v":"00:00:00"}]
[null,null,null,null,null,{"$f":"IF(times[[#This Row],[كد]]>0,VLOOKUP(times[[#This Row],[كد]],personel[],2,FALSE)&\" / \"&VLOOKUP(times[[#This Row],[كد]],personel[],3,FALSE),0)","v":0},{"$f":"IF(times[[#This Row],[خروج]]>times[[#This Row],[ورود]],times[[#This Row],[خروج]]-times[[#This Row],[ورود]],0)","v":"00:00:00"}]
[null,null,null,null,null,{"$f":"IF(times[[#This Row],[كد]]>0,VLOOKUP(times[[#This Row],[كد]],personel[],2,FALSE)&\" / \"&VLOOKUP(times[[#This Row],[كد]],personel[],3,FALSE),0)","v":0},{"$f":"IF(times[[#This Row],[خروج]]>times[[#This Row],[ورود]],times[[#This Row],[خروج]]-times[[#This Row],[ورود]],0)","v":"00:00:00"}]
[null,null,null,null,null,{"$f":"IF(times[[#This Row],[كد]]>0,VLOOKUP(times[[#This Row],[كد]],personel[],2,FALSE)&\" / \"&VLOOKUP(times[[#This Row],[كد]],personel[],3,FALSE),0)","v":0},{"$f":"IF(times[[#This Row],[خروج]]>times[[#This Row],[ورود]],times[[#This Row],[خروج]]-times[[#This Row],[ورود]],0)","v":"00:00:00"}]
[null,null,null,null,null,{"$f":"IF(times[[#This Row],[كد]]>0,VLOOKUP(times[[#This Row],[كد]],personel[],2,FALSE)&\" / \"&VLOOKUP(times[[#This Row],[كد]],personel[],3,FALSE),0)","v":0},{"$f":"IF(times[[#This Row],[خروج]]>times[[#This Row],[ورود]],times[[#This Row],[خروج]]-times[[#This Row],[ورود]],0)","v":"00:00:00"}]
[null,null,null,null,null,{"$f":"IF(times[[#This Row],[كد]]>0,VLOOKUP(times[[#This Row],[كد]],personel[],2,FALSE)&\" / \"&VLOOKUP(times[[#This Row],[كد]],personel[],3,FALSE),0)","v":0},{"$f":"IF(times[[#This Row],[خروج]]>times[[#This Row],[ورود]],times[[#This Row],[خروج]]-times[[#This Row],[ورود]],0)","v":"00:00:00"}]
[null,null,null,null,null,{"$f":"IF(times[[#This Row],[كد]]>0,VLOOKUP(times[[#This Row],[كد]],personel[],2,FALSE)&\" / \"&VLOOKUP(times[[#This Row],[كد]],personel[],3,FALSE),0)","v":0},{"$f":"IF(times[[#This Row],[خروج]]>times[[#This Row],[ورود]],times[[#This Row],[خروج]]-times[[#This Row],[ورود]],0)","v":"00:00:00"}]
[null,null,null,null,null,{"$f":"IF(times[[#This Row],[كد]]>0,VLOOKUP(times[[#This Row],[كد]],personel[],2,FALSE)&\" / \"&VLOOKUP(times[[#This Row],[كد]],personel[],3,FALSE),0)","v":0},{"$f":"IF(times[[#This Row],[خروج]]>times[[#This Row],[ورود]],times[[#This Row],[خروج]]-times[[#This Row],[ورود]],0)","v":"00:00:00"}]
[null,null,null,null,null,{"$f":"IF(times[[#This Row],[كد]]>0,VLOOKUP(times[[#This Row],[كد]],personel[],2,FALSE)&\" / \"&VLOOKUP(times[[#This Row],[كد]],personel[],3,FALSE),0)","v":0},{"$f":"IF(times[[#This Row],[خروج]]>times[[#This Row],[ورود]],times[[#This Row],[خروج]]-times[[#This Row],[ورود]],0)","v":"00:00:00"}]
[null,null,null,null,null,{"$f":"IF(times[[#This Row],[كد]]>0,VLOOKUP(times[[#This Row],[كد]],personel[],2,FALSE)&\" / \"&VLOOKUP(times[[#This Row],[كد]],personel[],3,FALSE),0)","v":0},{"$f":"IF(times[[#This Row],[خروج]]>times[[#This Row],[ورود]],times[[#This Row],[خروج]]-times[[#This Row],[ورود]],0)","v":"00:00:00"}]
[null,null,null,null,null,{"$f":"IF(times[[#This Row],[كد]]>0,VLOOKUP(times[[#This Row],[كد]],personel[],2,FALSE)&\" / \"&VLOOKUP(times[[#This Row],[كد]],personel[],3,FALSE),0)","v":0},{"$f":"IF(times[[#This Row],[خروج]]>times[[#This Row],[ورود]],times[[#This Row],[خروج]]-times[[#This Row],[ورود]],0)","v":"00:00:00"}]
[null,null,null,null,null,{"$f":"IF(times[[#This Row],[كد]]>0,VLOOKUP(times[[#This Row],[كد]],personel[],2,FALSE)&\" / \"&VLOOKUP(times[[#This Row],[كد]],personel[],3,FALSE),0)","v":0},{"$f":"IF(times[[#This Row],[خروج]]>times[[#This Row],[ورود]],times[[#This Row],[خروج]]-times[[#This Row],[ورود]],0)","v":"00:00:00"}]
[null,null,null,null,null,{"$f":"IF(times[[#This Row],[كد]]>0,VLOOKUP(times[[#This Row],[كد]],personel[],2,FALSE)&\" / \"&VLOOKUP(times[[#This Row],[كد]],personel[],3,FALSE),0)","v":0},{"$f":"IF(times[[#This Row],[خروج]]>times[[#This Row],[ورود]],times[[#This Row],[خروج]]-times[[#This Row],[ورود]],0)","v":"00:00:00"}]
[null,null,null,null,null,{"$f":"IF(times[[#This Row],[كد]]>0,VLOOKUP(times[[#This Row],[كد]],personel[],2,FALSE)&\" / \"&VLOOKUP(times[[#This Row],[كد]],personel[],3,FALSE),0)","v":0},{"$f":"IF(times[[#This Row],[خروج]]>times[[#This Row],[ورود]],times[[#This Row],[خروج]]-times[[#This Row],[ورود]],0)","v":"00:00:00"}]
[null,null,null,null,null,{"$f":"IF(times[[#This Row],[كد]]>0,VLOOKUP(times[[#This Row],[كد]],personel[],2,FALSE)&\" / \"&VLOOKUP(times[[#This Row],[كد]],personel[],3,FALSE),0)","v":0},{"$f":"IF(times[[#This Row],[خروج]]>times[[#This Row],[ورود]],times[[#This Row],[خروج]]-times[[#This Row],[ورود]],0)","v":"00:00:00"}]
[null,null,null,null,null,{"$f":"IF(times[[#This Row],[كد]]>0,VLOOKUP(times[[#This Row],[كد]],personel[],2,FALSE)&\" / \"&VLOOKUP(times[[#This Row],[كد]],personel[],3,FALSE),0)","v":0},{"$f":"IF(times[[#This Row],[خروج]]>times[[#This Row],[ورود]],times[[#This Row],[خروج]]-times[[#This Row],[ورود]],0)","v":"00:00:00"}]
[null,null,null,null,null,{"$f":"IF(times[[#This Row],[كد]]>0,VLOOKUP(times[[#This Row],[كد]],personel[],2,FALSE)&\" / \"&VLOOKUP(times[[#This Row],[كد]],personel[],3,FALSE),0)","v":0},{"$f":"IF(times[[#This Row],[خروج]]>times[[#This Row],[ورود]],times[[#This Row],[خروج]]-times[[#This Row],[ورود]],0)","v":"00:00:00"}]
[null,null,null,null,null,{"$f":"IF(times[[#This Row],[كد]]>0,VLOOKUP(times[[#This Row],[كد]],personel[],2,FALSE)&\" / \"&VLOOKUP(times[[#This Row],[كد]],personel[],3,FALSE),0)","v":0},{"$f":"IF(times[[#This Row],[خروج]]>times[[#This Row],[ورود]],times[[#This Row],[خروج]]-times[[#This Row],[ورود]],0)","v":"00:00:00"}]
[null,null,null,null,null,{"$f":"IF(times[[#This Row],[كد]]>0,VLOOKUP(times[[#This Row],[كد]],personel[],2,FALSE)&\" / \"&VLOOKUP(times[[#This Row],[كد]],personel[],3,FALSE),0)","v":0},{"$f":"IF(times[[#This Row],[خروج]]>times[[#This Row],[ورود]],times[[#This Row],[خروج]]-times[[#This Row],[ورود]],0)","v":"00:00:00"}]
[null,null,null,null,null,{"$f":"IF(times[[#This Row],[كد]]>0,VLOOKUP(times[[#This Row],[كد]],personel[],2,FALSE)&\" / \"&VLOOKUP(times[[#This Row],[كد]],personel[],3,FALSE),0)","v":0},{"$f":"IF(times[[#This Row],[خروج]]>times[[#This Row],[ورود]],times[[#This Row],[خروج]]-times[[#This Row],[ورود]],0)","v":"00:00:00"}]
[null,null,null,null,null,{"$f":"IF(times[[#This Row],[كد]]>0,VLOOKUP(times[[#This Row],[كد]],personel[],2,FALSE)&\" / \"&VLOOKUP(times[[#This Row],[كد]],personel[],3,FALSE),0)","v":0},{"$f":"IF(times[[#This Row],[خروج]]>times[[#This Row],[ورود]],times[[#This Row],[خروج]]-times[[#This Row],[ورود]],0)","v":"00:00:00"}]
[null,null,null,null,null,{"$f":"IF(times[[#This Row],[كد]]>0,VLOOKUP(times[[#This Row],[كد]],personel[],2,FALSE)&\" / \"&VLOOKUP(times[[#This Row],[كد]],personel[],3,FALSE),0)","v":0},{"$f":"IF(times[[#This Row],[خروج]]>times[[#This Row],[ورود]],times[[#This Row],[خروج]]-times[[#This Row],[ورود]],0)","v":"00:00:00"}]
[null,null,null,null,null,{"$f":"IF(times[[#This Row],[كد]]>0,VLOOKUP(times[[#This Row],[كد]],personel[],2,FALSE)&\" / \"&VLOOKUP(times[[#This Row],[كد]],personel[],3,FALSE),0)","v":0},{"$f":"IF(times[[#This Row],[خروج]]>times[[#This Row],[ورود]],times[[#This Row],[خروج]]-times[[#This Row],[ورود]],0)","v":"00:00:00"}]
[null,null,null,null,null,{"$f":"IF(times[[#This Row],[كد]]>0,VLOOKUP(times[[#This Row],[كد]],personel[],2,FALSE)&\" / \"&VLOOKUP(times[[#This Row],[كد]],personel[],3,FALSE),0)","v":0},{"$f":"IF(times[[#This Row],[خروج]]>times[[#This Row],[ورود]],times[[#This Row],[خروج]]-times[[#This Row],[ورود]],0)","v":"00:00:00"}]
[null,null,null,null,null,{"$f":"IF(times[[#This Row],[كد]]>0,VLOOKUP(times[[#This Row],[كد]],personel[],2,FALSE)&\" / \"&VLOOKUP(times[[#This Row],[كد]],personel[],3,FALSE),0)","v":0},{"$f":"IF(times[[#This Row],[خروج]]>times[[#This Row],[ورود]],times[[#This Row],[خروج]]-times[[#This Row],[ورود]],0)","v":"00:00:00"}]
[null,null,null,null,null,{"$f":"IF(times[[#This Row],[كد]]>0,VLOOKUP(times[[#This Row],[كد]],personel[],2,FALSE)&\" / \"&VLOOKUP(times[[#This Row],[كد]],personel[],3,FALSE),0)","v":0},{"$f":"IF(times[[#This Row],[خروج]]>times[[#This Row],[ورود]],times[[#This Row],[خروج]]-times[[#This Row],[ورود]],0)","v":"00:00:00"}]
[null,null,null,null,null,{"$f":"IF(times[[#This Row],[كد]]>0,VLOOKUP(times[[#This Row],[كد]],personel[],2,FALSE)&\" / \"&VLOOKUP(times[[#This Row],[كد]],personel[],3,FALSE),0)","v":0},{"$f":"IF(times[[#This Row],[خروج]]>times[[#This Row],[ورود]],times[[#This Row],[خروج]]-times[[#This Row],[ورود]],0)","v":"00:00:00"}]
[null,null,null,null,null,{"$f":"IF(times[[#This Row],[كد]]>0,VLOOKUP(times[[#This Row],[كد]],personel[],2,FALSE)&\" / \"&VLOOKUP(times[[#This Row],[كد]],personel[],3,FALSE),0)","v":0},{"$f":"IF(times[[#This Row],[خروج]]>times[[#This Row],[ورود]],times[[#This Row],[خروج]]-times[[#This Row],[ورود]],0)","v":"00:00:00"}]
[null,null,null,null,null,{"$f":"IF(times[[#This Row],[كد]]>0,VLOOKUP(times[[#This Row],[كد]],personel[],2,FALSE)&\" / \"&VLOOKUP(times[[#This Row],[كد]],personel[],3,FALSE),0)","v":0},{"$f":"IF(times[[#This Row],[خروج]]>times[[#This Row],[ورود]],times[[#This Row],[خروج]]-times[[#This Row],[ورود]],0)","v":"00:00:00"}]
[null,null,null,null,null,{"$f":"IF(times[[#This Row],[كد]]>0,VLOOKUP(times[[#This Row],[كد]],personel[],2,FALSE)&\" / \"&VLOOKUP(times[[#This Row],[كد]],personel[],3,FALSE),0)","v":0},{"$f":"IF(times[[#This Row],[خروج]]>times[[#This Row],[ورود]],times[[#This Row],[خروج]]-times[[#This Row],[ورود]],0)","v":"00:00:00"}]
[null,null,null,null,null,{"$f":"IF(times[[#This Row],[كد]]>0,VLOOKUP(times[[#This Row],[كد]],personel[],2,FALSE)&\" / \"&VLOOKUP(times[[#This Row],[كد]],personel[],3,FALSE),0)","v":0},{"$f":"IF(times[[#This Row],[خروج]]>times[[#This Row],[ورود]],times[[#This Row],[خروج]]-times[[#This Row],[ورود]],0)","v":"00:00:00"}]
[null,null,null,null,null,{"$f":"IF(times[[#This Row],[كد]]>0,VLOOKUP(times[[#This Row],[كد]],personel[],2,FALSE)&\" / \"&VLOOKUP(times[[#This Row],[كد]],personel[],3,FALSE),0)","v":0},{"$f":"IF(times[[#This Row],[خروج]]>times[[#This Row],[ورود]],times[[#This Row],[خروج]]-times[[#This Row],[ورود]],0)","v":"00:00:00"}]
[null,null,null,null,null,{"$f":"IF(times[[#This Row],[كد]]>0,VLOOKUP(times[[#This Row],[كد]],personel[],2,FALSE)&\" / \"&VLOOKUP(times[[#This Row],[كد]],personel[],3,FALSE),0)","v":0},{"$f":"IF(times[[#This Row],[خروج]]>times[[#This Row],[ورود]],times[[#This Row],[خروج]]-times[[#This Row],[ورود]],0)","v":"00:00:00"}]
[null,null,null,null,null,{"$f":"IF(times[[#This Row],[كد]]>0,VLOOKUP(times[[#This Row],[كد]],personel[],2,FALSE)&\" / \"&VLOOKUP(times[[#This Row],[كد]],personel[],3,FALSE),0)","v":0},{"$f":"IF(times[[#This Row],[خروج]]>times[[#This Row],[ورود]],times[[#This Row],[خروج]]-times[[#This Row],[ورود]],0)","v":"00:00:00"}]
[null,null,null,null,null,{"$f":"IF(times[[#This Row],[كد]]>0,VLOOKUP(times[[#This Row],[كد]],personel[],2,FALSE)&\" / \"&VLOOKUP(times[[#This Row],[كد]],personel[],3,FALSE),0)","v":0},{"$f":"IF(times[[#This Row],[خروج]]>times[[#This Row],[ورود]],times[[#This Row],[خروج]]-times[[#This Row],[ورود]],0)","v":"00:00:00"}]
[null,null,null,null,null,{"$f":"IF(times[[#This Row],[كد]]>0,VLOOKUP(times[[#This Row],[كد]],personel[],2,FALSE)&\" / \"&VLOOKUP(times[[#This Row],[كد]],personel[],3,FALSE),0)","v":0},{"$f":"IF(times[[#This Row],[خروج]]>times[[#This Row],[ورود]],times[[#This Row],[خروج]]-times[[#This Row],[ورود]],0)","v":"00:00:00"}]
[null,null,null,null,null,{"$f":"IF(times[[#This Row],[كد]]>0,VLOOKUP(times[[#This Row],[كد]],personel[],2,FALSE)&\" / \"&VLOOKUP(times[[#This Row],[كد]],personel[],3,FALSE),0)","v":0},{"$f":"IF(times[[#This Row],[خروج]]>times[[#This Row],[ورود]],times[[#This Row],[خروج]]-times[[#This Row],[ورود]],0)","v":"00:00:00"}]
[null,null,null,null,null,{"$f":"IF(times[[#This Row],[كد]]>0,VLOOKUP(times[[#This Row],[كد]],personel[],2,FALSE)&\" / \"&VLOOKUP(times[[#This Row],[كد]],personel[],3,FALSE),0)","v":0},{"$f":"IF(times[[#This Row],[خروج]]>times[[#This Row],[ورود]],times[[#This Row],[خروج]]-times[[#This Row],[ورود]],0)","v":"00:00:00"}]
[null,null,null,null,null,{"$f":"IF(times[[#This Row],[كد]]>0,VLOOKUP(times[[#This Row],[كد]],personel[],2,FALSE)&\" / \"&VLOOKUP(times[[#This Row],[كد]],personel[],3,FALSE),0)","v":0},{"$f":"IF(times[[#This Row],[خروج]]>times[[#This Row],[ورود]],times[[#This Row],[خروج]]-times[[#This Row],[ورود]],0)","v":"00:00:00"}]
[null,null,null,null,null,{"$f":"IF(times[[#This Row],[كد]]>0,VLOOKUP(times[[#This Row],[كد]],personel[],2,FALSE)&\" / \"&VLOOKUP(times[[#This Row],[كد]],personel[],3,FALSE),0)","v":0},{"$f":"IF(times[[#This Row],[خروج]]>times[[#This Row],[ورود]],times[[#This Row],[خروج]]-times[[#This Row],[ورود]],0)","v":"00:00:00"}]
[null,null,null,null,null,{"$f":"IF(times[[#This Row],[كد]]>0,VLOOKUP(times[[#This Row],[كد]],personel[],2,FALSE)&\" / \"&VLOOKUP(times[[#This Row],[كد]],personel[],3,FALSE),0)","v":0},{"$f":"IF(times[[#This Row],[خروج]]>times[[#This Row],[ورود]],times[[#This Row],[خروج]]-times[[#This Row],[ورود]],0)","v":"00:00:00"}]
[null,null,null,null,null,{"$f":"IF(times[[#This Row],[كد]]>0,VLOOKUP(times[[#This Row],[كد]],personel[],2,FALSE)&\" / \"&VLOOKUP(times[[#This Row],[كد]],personel[],3,FALSE),0)","v":0},{"$f":"IF(times[[#This Row],[خروج]]>times[[#This Row],[ورود]],times[[#This Row],[خروج]]-times[[#This Row],[ورود]],0)","v":"00:00:00"}]
[null,null,null,null,null,{"$f":"IF(times[[#This Row],[كد]]>0,VLOOKUP(times[[#This Row],[كد]],personel[],2,FALSE)&\" / \"&VLOOKUP(times[[#This Row],[كد]],personel[],3,FALSE),0)","v":0},{"$f":"IF(times[[#This Row],[خروج]]>times[[#This Row],[ورود]],times[[#This Row],[خروج]]-times[[#This Row],[ورود]],0)","v":"00:00:00"}]
[null,null,null,null,null,{"$f":"IF(times[[#This Row],[كد]]>0,VLOOKUP(times[[#This Row],[كد]],personel[],2,FALSE)&\" / \"&VLOOKUP(times[[#This Row],[كد]],personel[],3,FALSE),0)","v":0},{"$f":"IF(times[[#This Row],[خروج]]>times[[#This Row],[ورود]],times[[#This Row],[خروج]]-times[[#This Row],[ورود]],0)","v":"00:00:00"}]
[null,null,null,null,null,{"$f":"IF(times[[#This Row],[كد]]>0,VLOOKUP(times[[#This Row],[كد]],personel[],2,FALSE)&\" / \"&VLOOKUP(times[[#This Row],[كد]],personel[],3,FALSE),0)","v":0},{"$f":"IF(times[[#This Row],[خروج]]>times[[#This Row],[ورود]],times[[#This Row],[خروج]]-times[[#This Row],[ورود]],0)","v":"00:00:00"}]
[null,null,null,null,null,{"$f":"IF(times[[#This Row],[كد]]>0,VLOOKUP(times[[#This Row],[كد]],personel[],2,FALSE)&\" / \"&VLOOKUP(times[[#This Row],[كد]],personel[],3,FALSE),0)","v":0},{"$f":"IF(times[[#This Row],[خروج]]>times[[#This Row],[ورود]],times[[#This Row],[خروج]]-times[[#This Row],[ورود]],0)","v":"00:00:00"}]
[null,null,null,null,null,{"$f":"IF(times[[#This Row],[كد]]>0,VLOOKUP(times[[#This Row],[كد]],personel[],2,FALSE)&\" / \"&VLOOKUP(times[[#This Row],[كد]],personel[],3,FALSE),0)","v":0},{"$f":"IF(times[[#This Row],[خروج]]>times[[#This Row],[ورود]],times[[#This Row],[خروج]]-times[[#This Row],[ورود]],0)","v":"00:00:00"}]
[null,null,null,null,null,{"$f":"IF(times[[#This Row],[كد]]>0,VLOOKUP(times[[#This Row],[كد]],personel[],2,FALSE)&\" / \"&VLOOKUP(times[[#This Row],[كد]],personel[],3,FALSE),0)","v":0},{"$f":"IF(times[[#This Row],[خروج]]>times[[#This Row],[ورود]],times[[#This Row],[خروج]]-times[[#This Row],[ورود]],0)","v":"00:00:00"}]
[null,null,null,null,null,{"$f":"IF(times[[#This Row],[كد]]>0,VLOOKUP(times[[#This Row],[كد]],personel[],2,FALSE)&\" / \"&VLOOKUP(times[[#This Row],[كد]],personel[],3,FALSE),0)","v":0},{"$f":"IF(times[[#This Row],[خروج]]>times[[#This Row],[ورود]],times[[#This Row],[خروج]]-times[[#This Row],[ورود]],0)","v":"00:00:00"}]
[null,null,null,null,null,{"$f":"IF(times[[#This Row],[كد]]>0,VLOOKUP(times[[#This Row],[كد]],personel[],2,FALSE)&\" / \"&VLOOKUP(times[[#This Row],[كد]],personel[],3,FALSE),0)","v":0},{"$f":"IF(times[[#This Row],[خروج]]>times[[#This Row],[ورود]],times[[#This Row],[خروج]]-times[[#This Row],[ورود]],0)","v":"00:00:00"}]
[null,null,null,null,null,{"$f":"IF(times[[#This Row],[كد]]>0,VLOOKUP(times[[#This Row],[كد]],personel[],2,FALSE)&\" / \"&VLOOKUP(times[[#This Row],[كد]],personel[],3,FALSE),0)","v":0},{"$f":"IF(times[[#This Row],[خروج]]>times[[#This Row],[ورود]],times[[#This Row],[خروج]]-times[[#This Row],[ورود]],0)","v":"00:00:00"}]
[null,null,null,null,null,{"$f":"IF(times[[#This Row],[كد]]>0,VLOOKUP(times[[#This Row],[كد]],personel[],2,FALSE)&\" / \"&VLOOKUP(times[[#This Row],[كد]],personel[],3,FALSE),0)","v":0},{"$f":"IF(times[[#This Row],[خروج]]>times[[#This Row],[ورود]],times[[#This Row],[خروج]]-times[[#This Row],[ورود]],0)","v":"00:00:00"}]
[null,null,null,null,null,{"$f":"IF(times[[#This Row],[كد]]>0,VLOOKUP(times[[#This Row],[كد]],personel[],2,FALSE)&\" / \"&VLOOKUP(times[[#This Row],[كد]],personel[],3,FALSE),0)","v":0},{"$f":"IF(times[[#This Row],[خروج]]>times[[#This Row],[ورود]],times[[#This Row],[خروج]]-times[[#This Row],[ورود]],0)","v":"00:00:00"}]
[null,null,null,null,null,{"$f":"IF(times[[#This Row],[كد]]>0,VLOOKUP(times[[#This Row],[كد]],personel[],2,FALSE)&\" / \"&VLOOKUP(times[[#This Row],[كد]],personel[],3,FALSE),0)","v":0},{"$f":"IF(times[[#This Row],[خروج]]>times[[#This Row],[ورود]],times[[#This Row],[خروج]]-times[[#This Row],[ورود]],0)","v":"00:00:00"}]
[null,null,null,null,null,{"$f":"IF(times[[#This Row],[كد]]>0,VLOOKUP(times[[#This Row],[كد]],personel[],2,FALSE)&\" / \"&VLOOKUP(times[[#This Row],[كد]],personel[],3,FALSE),0)","v":0},{"$f":"IF(times[[#This Row],[خروج]]>times[[#This Row],[ورود]],times[[#This Row],[خروج]]-times[[#This Row],[ورود]],0)","v":"00:00:00"}]
[null,null,null,null,null,{"$f":"IF(times[[#This Row],[كد]]>0,VLOOKUP(times[[#This Row],[كد]],personel[],2,FALSE)&\" / \"&VLOOKUP(times[[#This Row],[كد]],personel[],3,FALSE),0)","v":0},{"$f":"IF(times[[#This Row],[خروج]]>times[[#This Row],[ورود]],times[[#This Row],[خروج]]-times[[#This Row],[ورود]],0)","v":"00:00:00"}]
[null,null,null,null,null,{"$f":"IF(times[[#This Row],[كد]]>0,VLOOKUP(times[[#This Row],[كد]],personel[],2,FALSE)&\" / \"&VLOOKUP(times[[#This Row],[كد]],personel[],3,FALSE),0)","v":0},{"$f":"IF(times[[#This Row],[خروج]]>times[[#This Row],[ورود]],times[[#This Row],[خروج]]-times[[#This Row],[ورود]],0)","v":"00:00:00"}]
[null,null,null,null,null,{"$f":"IF(times[[#This Row],[كد]]>0,VLOOKUP(times[[#This Row],[كد]],personel[],2,FALSE)&\" / \"&VLOOKUP(times[[#This Row],[كد]],personel[],3,FALSE),0)","v":0},{"$f":"IF(times[[#This Row],[خروج]]>times[[#This Row],[ورود]],times[[#This Row],[خروج]]-times[[#This Row],[ورود]],0)","v":"00:00:00"}]
[null,null,null,null,null,{"$f":"IF(times[[#This Row],[كد]]>0,VLOOKUP(times[[#This Row],[كد]],personel[],2,FALSE)&\" / \"&VLOOKUP(times[[#This Row],[كد]],personel[],3,FALSE),0)","v":0},{"$f":"IF(times[[#This Row],[خروج]]>times[[#This Row],[ورود]],times[[#This Row],[خروج]]-times[[#This Row],[ورود]],0)","v":"00:00:00"}]
[null,null,null,null,null,{"$f":"IF(times[[#This Row],[كد]]>0,VLOOKUP(times[[#This Row],[كد]],personel[],2,FALSE)&\" / \"&VLOOKUP(times[[#This Row],[كد]],personel[],3,FALSE),0)","v":0},{"$f":"IF(times[[#This Row],[خروج]]>times[[#This Row],[ورود]],times[[#This Row],[خروج]]-times[[#This Row],[ورود]],0)","v":"00:00:00"}]
[null,null,null,null,null,{"$f":"IF(times[[#This Row],[كد]]>0,VLOOKUP(times[[#This Row],[كد]],personel[],2,FALSE)&\" / \"&VLOOKUP(times[[#This Row],[كد]],personel[],3,FALSE),0)","v":0},{"$f":"IF(times[[#This Row],[خروج]]>times[[#This Row],[ورود]],times[[#This Row],[خروج]]-times[[#This Row],[ورود]],0)","v":"00:00:00"}]
[null,null,null,null,null,{"$f":"IF(times[[#This Row],[كد]]>0,VLOOKUP(times[[#This Row],[كد]],personel[],2,FALSE)&\" / \"&VLOOKUP(times[[#This Row],[كد]],personel[],3,FALSE),0)","v":0},{"$f":"IF(times[[#This Row],[خروج]]>times[[#This Row],[ورود]],times[[#This Row],[خروج]]-times[[#This Row],[ورود]],0)","v":"00:00:00"}]
[null,null,null,null,null,{"$f":"IF(times[[#This Row],[كد]]>0,VLOOKUP(times[[#This Row],[كد]],personel[],2,FALSE)&\" / \"&VLOOKUP(times[[#This Row],[كد]],personel[],3,FALSE),0)","v":0},{"$f":"IF(times[[#This Row],[خروج]]>times[[#This Row],[ورود]],times[[#This Row],[خروج]]-times[[#This Row],[ورود]],0)","v":"00:00:00"}]
[null,null,null,null,null,{"$f":"IF(times[[#This Row],[كد]]>0,VLOOKUP(times[[#This Row],[كد]],personel[],2,FALSE)&\" / \"&VLOOKUP(times[[#This Row],[كد]],personel[],3,FALSE),0)","v":0},{"$f":"IF(times[[#This Row],[خروج]]>times[[#This Row],[ورود]],times[[#This Row],[خروج]]-times[[#This Row],[ورود]],0)","v":"00:00:00"}]
[null,null,null,null,null,{"$f":"IF(times[[#This Row],[كد]]>0,VLOOKUP(times[[#This Row],[كد]],personel[],2,FALSE)&\" / \"&VLOOKUP(times[[#This Row],[كد]],personel[],3,FALSE),0)","v":0},{"$f":"IF(times[[#This Row],[خروج]]>times[[#This Row],[ورود]],times[[#This Row],[خروج]]-times[[#This Row],[ورود]],0)","v":"00:00:00"}]
[null,null,null,null,null,{"$f":"IF(times[[#This Row],[كد]]>0,VLOOKUP(times[[#This Row],[كد]],personel[],2,FALSE)&\" / \"&VLOOKUP(times[[#This Row],[كد]],personel[],3,FALSE),0)","v":0},{"$f":"IF(times[[#This Row],[خروج]]>times[[#This Row],[ورود]],times[[#This Row],[خروج]]-times[[#This Row],[ورود]],0)","v":"00:00:00"}]
[null,null,null,null,null,{"$f":"IF(times[[#This Row],[كد]]>0,VLOOKUP(times[[#This Row],[كد]],personel[],2,FALSE)&\" / \"&VLOOKUP(times[[#This Row],[كد]],personel[],3,FALSE),0)","v":0},{"$f":"IF(times[[#This Row],[خروج]]>times[[#This Row],[ورود]],times[[#This Row],[خروج]]-times[[#This Row],[ورود]],0)","v":"00:00:00"}]
[null,null,null,null,null,{"$f":"IF(times[[#This Row],[كد]]>0,VLOOKUP(times[[#This Row],[كد]],personel[],2,FALSE)&\" / \"&VLOOKUP(times[[#This Row],[كد]],personel[],3,FALSE),0)","v":0},{"$f":"IF(times[[#This Row],[خروج]]>times[[#This Row],[ورود]],times[[#This Row],[خروج]]-times[[#This Row],[ورود]],0)","v":"00:00:00"}]
[null,null,null,null,null,{"$f":"IF(times[[#This Row],[كد]]>0,VLOOKUP(times[[#This Row],[كد]],personel[],2,FALSE)&\" / \"&VLOOKUP(times[[#This Row],[كد]],personel[],3,FALSE),0)","v":0},{"$f":"IF(times[[#This Row],[خروج]]>times[[#This Row],[ورود]],times[[#This Row],[خروج]]-times[[#This Row],[ورود]],0)","v":"00:00:00"}]
[null,null,null,null,null,{"$f":"IF(times[[#This Row],[كد]]>0,VLOOKUP(times[[#This Row],[كد]],personel[],2,FALSE)&\" / \"&VLOOKUP(times[[#This Row],[كد]],personel[],3,FALSE),0)","v":0},{"$f":"IF(times[[#This Row],[خروج]]>times[[#This Row],[ورود]],times[[#This Row],[خروج]]-times[[#This Row],[ورود]],0)","v":"00:00:00"}]
[null,null,null,null,null,{"$f":"IF(times[[#This Row],[كد]]>0,VLOOKUP(times[[#This Row],[كد]],personel[],2,FALSE)&\" / \"&VLOOKUP(times[[#This Row],[كد]],personel[],3,FALSE),0)","v":0},{"$f":"IF(times[[#This Row],[خروج]]>times[[#This Row],[ورود]],times[[#This Row],[خروج]]-times[[#This Row],[ورود]],0)","v":"00:00:00"}]
[null,null,null,null,null,{"$f":"IF(times[[#This Row],[كد]]>0,VLOOKUP(times[[#This Row],[كد]],personel[],2,FALSE)&\" / \"&VLOOKUP(times[[#This Row],[كد]],personel[],3,FALSE),0)","v":0},{"$f":"IF(times[[#This Row],[خروج]]>times[[#This Row],[ورود]],times[[#This Row],[خروج]]-times[[#This Row],[ورود]],0)","v":"00:00:00"}]
[null,null,null,null,null,{"$f":"IF(times[[#This Row],[كد]]>0,VLOOKUP(times[[#This Row],[كد]],personel[],2,FALSE)&\" / \"&VLOOKUP(times[[#This Row],[كد]],personel[],3,FALSE),0)","v":0},{"$f":"IF(times[[#This Row],[خروج]]>times[[#This Row],[ورود]],times[[#This Row],[خروج]]-times[[#This Row],[ورود]],0)","v":"00:00:00"}]
[null,null,null,null,null,{"$f":"IF(times[[#This Row],[كد]]>0,VLOOKUP(times[[#This Row],[كد]],personel[],2,FALSE)&\" / \"&VLOOKUP(times[[#This Row],[كد]],personel[],3,FALSE),0)","v":0},{"$f":"IF(times[[#This Row],[خروج]]>times[[#This Row],[ورود]],times[[#This Row],[خروج]]-times[[#This Row],[ورود]],0)","v":"00:00:00"}]
[null,null,null,null,null,{"$f":"IF(times[[#This Row],[كد]]>0,VLOOKUP(times[[#This Row],[كد]],personel[],2,FALSE)&\" / \"&VLOOKUP(times[[#This Row],[كد]],personel[],3,FALSE),0)","v":0},{"$f":"IF(times[[#This Row],[خروج]]>times[[#This Row],[ورود]],times[[#This Row],[خروج]]-times[[#This Row],[ورود]],0)","v":"00:00:00"}]
[null,null,null,null,null,{"$f":"IF(times[[#This Row],[كد]]>0,VLOOKUP(times[[#This Row],[كد]],personel[],2,FALSE)&\" / \"&VLOOKUP(times[[#This Row],[كد]],personel[],3,FALSE),0)","v":0},{"$f":"IF(times[[#This Row],[خروج]]>times[[#This Row],[ورود]],times[[#This Row],[خروج]]-times[[#This Row],[ورود]],0)","v":"00:00:00"}]
[null,null,null,null,null,{"$f":"IF(times[[#This Row],[كد]]>0,VLOOKUP(times[[#This Row],[كد]],personel[],2,FALSE)&\" / \"&VLOOKUP(times[[#This Row],[كد]],personel[],3,FALSE),0)","v":0},{"$f":"IF(times[[#This Row],[خروج]]>times[[#This Row],[ورود]],times[[#This Row],[خروج]]-times[[#This Row],[ورود]],0)","v":"00:00:00"}]
[null,null,null,null,null,{"$f":"IF(times[[#This Row],[كد]]>0,VLOOKUP(times[[#This Row],[كد]],personel[],2,FALSE)&\" / \"&VLOOKUP(times[[#This Row],[كد]],personel[],3,FALSE),0)","v":0},{"$f":"IF(times[[#This Row],[خروج]]>times[[#This Row],[ورود]],times[[#This Row],[خروج]]-times[[#This Row],[ورود]],0)","v":"00:00:00"}]
[null,null,null,null,null,{"$f":"IF(times[[#This Row],[كد]]>0,VLOOKUP(times[[#This Row],[كد]],personel[],2,FALSE)&\" / \"&VLOOKUP(times[[#This Row],[كد]],personel[],3,FALSE),0)","v":0},{"$f":"IF(times[[#This Row],[خروج]]>times[[#This Row],[ورود]],times[[#This Row],[خروج]]-times[[#This Row],[ورود]],0)","v":"00:00:00"}]
[null,null,null,null,null,{"$f":"IF(times[[#This Row],[كد]]>0,VLOOKUP(times[[#This Row],[كد]],personel[],2,FALSE)&\" / \"&VLOOKUP(times[[#This Row],[كد]],personel[],3,FALSE),0)","v":0},{"$f":"IF(times[[#This Row],[خروج]]>times[[#This Row],[ورود]],times[[#This Row],[خروج]]-times[[#This Row],[ورود]],0)","v":"00:00:00"}]
[null,null,null,null,null,{"$f":"IF(times[[#This Row],[كد]]>0,VLOOKUP(times[[#This Row],[كد]],personel[],2,FALSE)&\" / \"&VLOOKUP(times[[#This Row],[كد]],personel[],3,FALSE),0)","v":0},{"$f":"IF(times[[#This Row],[خروج]]>times[[#This Row],[ورود]],times[[#This Row],[خروج]]-times[[#This Row],[ورود]],0)","v":"00:00:00"}]
[null,null,null,null,null,{"$f":"IF(times[[#This Row],[كد]]>0,VLOOKUP(times[[#This Row],[كد]],personel[],2,FALSE)&\" / \"&VLOOKUP(times[[#This Row],[كد]],personel[],3,FALSE),0)","v":0},{"$f":"IF(times[[#This Row],[خروج]]>times[[#This Row],[ورود]],times[[#This Row],[خروج]]-times[[#This Row],[ورود]],0)","v":"00:00:00"}]
[null,null,null,null,null,{"$f":"IF(times[[#This Row],[كد]]>0,VLOOKUP(times[[#This Row],[كد]],personel[],2,FALSE)&\" / \"&VLOOKUP(times[[#This Row],[كد]],personel[],3,FALSE),0)","v":0},{"$f":"IF(times[[#This Row],[خروج]]>times[[#This Row],[ورود]],times[[#This Row],[خروج]]-times[[#This Row],[ورود]],0)","v":"00:00:00"}]
[null,null,null,null,null,{"$f":"IF(times[[#This Row],[كد]]>0,VLOOKUP(times[[#This Row],[كد]],personel[],2,FALSE)&\" / \"&VLOOKUP(times[[#This Row],[كد]],personel[],3,FALSE),0)","v":0},{"$f":"IF(times[[#This Row],[خروج]]>times[[#This Row],[ورود]],times[[#This Row],[خروج]]-times[[#This Row],[ورود]],0)","v":"00:00:00"}]
[null,null,null,null,null,{"$f":"IF(times[[#This Row],[كد]]>0,VLOOKUP(times[[#This Row],[كد]],personel[],2,FALSE)&\" / \"&VLOOKUP(times[[#This Row],[كد]],personel[],3,FALSE),0)","v":0},{"$f":"IF(times[[#This Row],[خروج]]>times[[#This Row],[ورود]],times[[#This Row],[خروج]]-times[[#This Row],[ورود]],0)","v":"00:00:00"}]
[null,null,null,null,null,{"$f":"IF(times[[#This Row],[كد]]>0,VLOOKUP(times[[#This Row],[كد]],personel[],2,FALSE)&\" / \"&VLOOKUP(times[[#This Row],[كد]],personel[],3,FALSE),0)","v":0},{"$f":"IF(times[[#This Row],[خروج]]>times[[#This Row],[ورود]],times[[#This Row],[خروج]]-times[[#This Row],[ورود]],0)","v":"00:00:00"}]
[null,null,null,null,null,{"$f":"IF(times[[#This Row],[كد]]>0,VLOOKUP(times[[#This Row],[كد]],personel[],2,FALSE)&\" / \"&VLOOKUP(times[[#This Row],[كد]],personel[],3,FALSE),0)","v":0},{"$f":"IF(times[[#This Row],[خروج]]>times[[#This Row],[ورود]],times[[#This Row],[خروج]]-times[[#This Row],[ورود]],0)","v":"00:00:00"}]
[null,null,null,null,null,{"$f":"IF(times[[#This Row],[كد]]>0,VLOOKUP(times[[#This Row],[كد]],personel[],2,FALSE)&\" / \"&VLOOKUP(times[[#This Row],[كد]],personel[],3,FALSE),0)","v":0},{"$f":"IF(times[[#This Row],[خروج]]>times[[#This Row],[ورود]],times[[#This Row],[خروج]]-times[[#This Row],[ورود]],0)","v":"00:00:00"}]
[null,null,null,null,null,{"$f":"IF(times[[#This Row],[كد]]>0,VLOOKUP(times[[#This Row],[كد]],personel[],2,FALSE)&\" / \"&VLOOKUP(times[[#This Row],[كد]],personel[],3,FALSE),0)","v":0},{"$f":"IF(times[[#This Row],[خروج]]>times[[#This Row],[ورود]],times[[#This Row],[خروج]]-times[[#This Row],[ورود]],0)","v":"00:00:00"}]
[null,null,null,null,null,{"$f":"IF(times[[#This Row],[كد]]>0,VLOOKUP(times[[#This Row],[كد]],personel[],2,FALSE)&\" / \"&VLOOKUP(times[[#This Row],[كد]],personel[],3,FALSE),0)","v":0},{"$f":"IF(times[[#This Row],[خروج]]>times[[#This Row],[ورود]],times[[#This Row],[خروج]]-times[[#This Row],[ورود]],0)","v":"00:00:00"}]
[null,null,null,null,null,{"$f":"IF(times[[#This Row],[كد]]>0,VLOOKUP(times[[#This Row],[كد]],personel[],2,FALSE)&\" / \"&VLOOKUP(times[[#This Row],[كد]],personel[],3,FALSE),0)","v":0},{"$f":"IF(times[[#This Row],[خروج]]>times[[#This Row],[ورود]],times[[#This Row],[خروج]]-times[[#This Row],[ورود]],0)","v":"00:00:00"}]
[null,null,null,null,null,{"$f":"IF(times[[#This Row],[كد]]>0,VLOOKUP(times[[#This Row],[كد]],personel[],2,FALSE)&\" / \"&VLOOKUP(times[[#This Row],[كد]],personel[],3,FALSE),0)","v":0},{"$f":"IF(times[[#This Row],[خروج]]>times[[#This Row],[ورود]],times[[#This Row],[خروج]]-times[[#This Row],[ورود]],0)","v":"00:00:00"}]
[null,null,null,null,null,{"$f":"IF(times[[#This Row],[كد]]>0,VLOOKUP(times[[#This Row],[كد]],personel[],2,FALSE)&\" / \"&VLOOKUP(times[[#This Row],[كد]],personel[],3,FALSE),0)","v":0},{"$f":"IF(times[[#This Row],[خروج]]>times[[#This Row],[ورود]],times[[#This Row],[خروج]]-times[[#This Row],[ورود]],0)","v":"00:00:00"}]
[null,null,null,null,null,{"$f":"IF(times[[#This Row],[كد]]>0,VLOOKUP(times[[#This Row],[كد]],personel[],2,FALSE)&\" / \"&VLOOKUP(times[[#This Row],[كد]],personel[],3,FALSE),0)","v":0},{"$f":"IF(times[[#This Row],[خروج]]>times[[#This Row],[ورود]],times[[#This Row],[خروج]]-times[[#This Row],[ورود]],0)","v":"00:00:00"}]
[null,null,null,null,null,{"$f":"IF(times[[#This Row],[كد]]>0,VLOOKUP(times[[#This Row],[كد]],personel[],2,FALSE)&\" / \"&VLOOKUP(times[[#This Row],[كد]],personel[],3,FALSE),0)","v":0},{"$f":"IF(times[[#This Row],[خروج]]>times[[#This Row],[ورود]],times[[#This Row],[خروج]]-times[[#This Row],[ورود]],0)","v":"00:00:00"}]
[null,null,null,null,null,{"$f":"IF(times[[#This Row],[كد]]>0,VLOOKUP(times[[#This Row],[كد]],personel[],2,FALSE)&\" / \"&VLOOKUP(times[[#This Row],[كد]],personel[],3,FALSE),0)","v":0},{"$f":"IF(times[[#This Row],[خروج]]>times[[#This Row],[ورود]],times[[#This Row],[خروج]]-times[[#This Row],[ورود]],0)","v":"00:00:00"}]
[null,null,null,null,null,{"$f":"IF(times[[#This Row],[كد]]>0,VLOOKUP(times[[#This Row],[كد]],personel[],2,FALSE)&\" / \"&VLOOKUP(times[[#This Row],[كد]],personel[],3,FALSE),0)","v":0},{"$f":"IF(times[[#This Row],[خروج]]>times[[#This Row],[ورود]],times[[#This Row],[خروج]]-times[[#This Row],[ورود]],0)","v":"00:00:00"}]
[null,null,null,null,null,{"$f":"IF(times[[#This Row],[كد]]>0,VLOOKUP(times[[#This Row],[كد]],personel[],2,FALSE)&\" / \"&VLOOKUP(times[[#This Row],[كد]],personel[],3,FALSE),0)","v":0},{"$f":"IF(times[[#This Row],[خروج]]>times[[#This Row],[ورود]],times[[#This Row],[خروج]]-times[[#This Row],[ورود]],0)","v":"00:00:00"}]
[null,null,null,null,null,{"$f":"IF(times[[#This Row],[كد]]>0,VLOOKUP(times[[#This Row],[كد]],personel[],2,FALSE)&\" / \"&VLOOKUP(times[[#This Row],[كد]],personel[],3,FALSE),0)","v":0},{"$f":"IF(times[[#This Row],[خروج]]>times[[#This Row],[ورود]],times[[#This Row],[خروج]]-times[[#This Row],[ورود]],0)","v":"00:00:00"}]
[null,null,null,null,null,{"$f":"IF(times[[#This Row],[كد]]>0,VLOOKUP(times[[#This Row],[كد]],personel[],2,FALSE)&\" / \"&VLOOKUP(times[[#This Row],[كد]],personel[],3,FALSE),0)","v":0},{"$f":"IF(times[[#This Row],[خروج]]>times[[#This Row],[ورود]],times[[#This Row],[خروج]]-times[[#This Row],[ورود]],0)","v":"00:00:00"}]
[null,null,null,null,null,{"$f":"IF(times[[#This Row],[كد]]>0,VLOOKUP(times[[#This Row],[كد]],personel[],2,FALSE)&\" / \"&VLOOKUP(times[[#This Row],[كد]],personel[],3,FALSE),0)","v":0},{"$f":"IF(times[[#This Row],[خروج]]>times[[#This Row],[ورود]],times[[#This Row],[خروج]]-times[[#This Row],[ورود]],0)","v":"00:00:00"}]
[null,null,null,null,null,{"$f":"IF(times[[#This Row],[كد]]>0,VLOOKUP(times[[#This Row],[كد]],personel[],2,FALSE)&\" / \"&VLOOKUP(times[[#This Row],[كد]],personel[],3,FALSE),0)","v":0},{"$f":"IF(times[[#This Row],[خروج]]>times[[#This Row],[ورود]],times[[#This Row],[خروج]]-times[[#This Row],[ورود]],0)","v":"00:00:00"}]
[null,null,null,null,null,{"$f":"IF(times[[#This Row],[كد]]>0,VLOOKUP(times[[#This Row],[كد]],personel[],2,FALSE)&\" / \"&VLOOKUP(times[[#This Row],[كد]],personel[],3,FALSE),0)","v":0},{"$f":"IF(times[[#This Row],[خروج]]>times[[#This Row],[ورود]],times[[#This Row],[خروج]]-times[[#This Row],[ورود]],0)","v":"00:00:00"}]
[null,null,null,null,null,{"$f":"IF(times[[#This Row],[كد]]>0,VLOOKUP(times[[#This Row],[كد]],personel[],2,FALSE)&\" / \"&VLOOKUP(times[[#This Row],[كد]],personel[],3,FALSE),0)","v":0},{"$f":"IF(times[[#This Row],[خروج]]>times[[#This Row],[ورود]],times[[#This Row],[خروج]]-times[[#This Row],[ورود]],0)","v":"00:00:00"}]
[null,null,null,null,null,{"$f":"IF(times[[#This Row],[كد]]>0,VLOOKUP(times[[#This Row],[كد]],personel[],2,FALSE)&\" / \"&VLOOKUP(times[[#This Row],[كد]],personel[],3,FALSE),0)","v":0},{"$f":"IF(times[[#This Row],[خروج]]>times[[#This Row],[ورود]],times[[#This Row],[خروج]]-times[[#This Row],[ورود]],0)","v":"00:00:00"}]
[null,null,null,null,null,{"$f":"IF(times[[#This Row],[كد]]>0,VLOOKUP(times[[#This Row],[كد]],personel[],2,FALSE)&\" / \"&VLOOKUP(times[[#This Row],[كد]],personel[],3,FALSE),0)","v":0},{"$f":"IF(times[[#This Row],[خروج]]>times[[#This Row],[ورود]],times[[#This Row],[خروج]]-times[[#This Row],[ورود]],0)","v":"00:00:00"}]
[null,null,null,null,null,{"$f":"IF(times[[#This Row],[كد]]>0,VLOOKUP(times[[#This Row],[كد]],personel[],2,FALSE)&\" / \"&VLOOKUP(times[[#This Row],[كد]],personel[],3,FALSE),0)","v":0},{"$f":"IF(times[[#This Row],[خروج]]>times[[#This Row],[ورود]],times[[#This Row],[خروج]]-times[[#This Row],[ورود]],0)","v":"00:00:00"}]
[null,null,null,null,null,{"$f":"IF(times[[#This Row],[كد]]>0,VLOOKUP(times[[#This Row],[كد]],personel[],2,FALSE)&\" / \"&VLOOKUP(times[[#This Row],[كد]],personel[],3,FALSE),0)","v":0},{"$f":"IF(times[[#This Row],[خروج]]>times[[#This Row],[ورود]],times[[#This Row],[خروج]]-times[[#This Row],[ورود]],0)","v":"00:00:00"}]
[null,null,null,null,null,{"$f":"IF(times[[#This Row],[كد]]>0,VLOOKUP(times[[#This Row],[كد]],personel[],2,FALSE)&\" / \"&VLOOKUP(times[[#This Row],[كد]],personel[],3,FALSE),0)","v":0},{"$f":"IF(times[[#This Row],[خروج]]>times[[#This Row],[ورود]],times[[#This Row],[خروج]]-times[[#This Row],[ورود]],0)","v":"00:00:00"}]
[null,null,null,null,null,{"$f":"IF(times[[#This Row],[كد]]>0,VLOOKUP(times[[#This Row],[كد]],personel[],2,FALSE)&\" / \"&VLOOKUP(times[[#This Row],[كد]],personel[],3,FALSE),0)","v":0},{"$f":"IF(times[[#This Row],[خروج]]>times[[#This Row],[ورود]],times[[#This Row],[خروج]]-times[[#This Row],[ورود]],0)","v":"00:00:00"}]
[null,null,null,null,null,{"$f":"IF(times[[#This Row],[كد]]>0,VLOOKUP(times[[#This Row],[كد]],personel[],2,FALSE)&\" / \"&VLOOKUP(times[[#This Row],[كد]],personel[],3,FALSE),0)","v":0},{"$f":"IF(times[[#This Row],[خروج]]>times[[#This Row],[ورود]],times[[#This Row],[خروج]]-times[[#This Row],[ورود]],0)","v":"00:00:00"}]
[null,null,null,null,null,{"$f":"IF(times[[#This Row],[كد]]>0,VLOOKUP(times[[#This Row],[كد]],personel[],2,FALSE)&\" / \"&VLOOKUP(times[[#This Row],[كد]],personel[],3,FALSE),0)","v":0},{"$f":"IF(times[[#This Row],[خروج]]>times[[#This Row],[ورود]],times[[#This Row],[خروج]]-times[[#This Row],[ورود]],0)","v":"00:00:00"}]
[null,null,null,null,null,{"$f":"IF(times[[#This Row],[كد]]>0,VLOOKUP(times[[#This Row],[كد]],personel[],2,FALSE)&\" / \"&VLOOKUP(times[[#This Row],[كد]],personel[],3,FALSE),0)","v":0},{"$f":"IF(times[[#This Row],[خروج]]>times[[#This Row],[ورود]],times[[#This Row],[خروج]]-times[[#This Row],[ورود]],0)","v":"00:00:00"}]
[null,null,null,null,null,{"$f":"IF(times[[#This Row],[كد]]>0,VLOOKUP(times[[#This Row],[كد]],personel[],2,FALSE)&\" / \"&VLOOKUP(times[[#This Row],[كد]],personel[],3,FALSE),0)","v":0},{"$f":"IF(times[[#This Row],[خروج]]>times[[#This Row],[ورود]],times[[#This Row],[خروج]]-times[[#This Row],[ورود]],0)","v":"00:00:00"}]
[null,null,null,null,null,{"$f":"IF(times[[#This Row],[كد]]>0,VLOOKUP(times[[#This Row],[كد]],personel[],2,FALSE)&\" / \"&VLOOKUP(times[[#This Row],[كد]],personel[],3,FALSE),0)","v":0},{"$f":"IF(times[[#This Row],[خروج]]>times[[#This Row],[ورود]],times[[#This Row],[خروج]]-times[[#This Row],[ورود]],0)","v":"00:00:00"}]
[null,null,null,null,null,{"$f":"IF(times[[#This Row],[كد]]>0,VLOOKUP(times[[#This Row],[كد]],personel[],2,FALSE)&\" / \"&VLOOKUP(times[[#This Row],[كد]],personel[],3,FALSE),0)","v":0},{"$f":"IF(times[[#This Row],[خروج]]>times[[#This Row],[ورود]],times[[#This Row],[خروج]]-times[[#This Row],[ورود]],0)","v":"00:00:00"}]
[null,null,null,null,null,{"$f":"IF(times[[#This Row],[كد]]>0,VLOOKUP(times[[#This Row],[كد]],personel[],2,FALSE)&\" / \"&VLOOKUP(times[[#This Row],[كد]],personel[],3,FALSE),0)","v":0},{"$f":"IF(times[[#This Row],[خروج]]>times[[#This Row],[ورود]],times[[#This Row],[خروج]]-times[[#This Row],[ورود]],0)","v":"00:00:00"}]
[null,null,null,null,null,{"$f":"IF(times[[#This Row],[كد]]>0,VLOOKUP(times[[#This Row],[كد]],personel[],2,FALSE)&\" / \"&VLOOKUP(times[[#This Row],[كد]],personel[],3,FALSE),0)","v":0},{"$f":"IF(times[[#This Row],[خروج]]>times[[#This Row],[ورود]],times[[#This Row],[خروج]]-times[[#This Row],[ورود]],0)","v":"00:00:00"}]
[null,null,null,null,null,{"$f":"IF(times[[#This Row],[كد]]>0,VLOOKUP(times[[#This Row],[كد]],personel[],2,FALSE)&\" / \"&VLOOKUP(times[[#This Row],[كد]],personel[],3,FALSE),0)","v":0},{"$f":"IF(times[[#This Row],[خروج]]>times[[#This Row],[ورود]],times[[#This Row],[خروج]]-times[[#This Row],[ورود]],0)","v":"00:00:00"}]
[null,null,null,null,null,{"$f":"IF(times[[#This Row],[كد]]>0,VLOOKUP(times[[#This Row],[كد]],personel[],2,FALSE)&\" / \"&VLOOKUP(times[[#This Row],[كد]],personel[],3,FALSE),0)","v":0},{"$f":"IF(times[[#This Row],[خروج]]>times[[#This Row],[ورود]],times[[#This Row],[خروج]]-times[[#This Row],[ورود]],0)","v":"00:00:00"}]
[null,null,null,null,null,{"$f":"IF(times[[#This Row],[كد]]>0,VLOOKUP(times[[#This Row],[كد]],personel[],2,FALSE)&\" / \"&VLOOKUP(times[[#This Row],[كد]],personel[],3,FALSE),0)","v":0},{"$f":"IF(times[[#This Row],[خروج]]>times[[#This Row],[ورود]],times[[#This Row],[خروج]]-times[[#This Row],[ورود]],0)","v":"00:00:00"}]
[null,null,null,null,null,{"$f":"IF(times[[#This Row],[كد]]>0,VLOOKUP(times[[#This Row],[كد]],personel[],2,FALSE)&\" / \"&VLOOKUP(times[[#This Row],[كد]],personel[],3,FALSE),0)","v":0},{"$f":"IF(times[[#This Row],[خروج]]>times[[#This Row],[ورود]],times[[#This Row],[خروج]]-times[[#This Row],[ورود]],0)","v":"00:00:00"}]
[null,null,null,null,null,{"$f":"IF(times[[#This Row],[كد]]>0,VLOOKUP(times[[#This Row],[كد]],personel[],2,FALSE)&\" / \"&VLOOKUP(times[[#This Row],[كد]],personel[],3,FALSE),0)","v":0},{"$f":"IF(times[[#This Row],[خروج]]>times[[#This Row],[ورود]],times[[#This Row],[خروج]]-times[[#This Row],[ورود]],0)","v":"00:00:00"}]

{"sheet":"pay","index":2,"n_rows":5,"n_cols":6,"rows_kept":5,"cut":false,"hidden":false,"merged":[]}
[]
[]
[]
[null,{"$f":"COUNTA(pay[روز])+6","v":6},"صثق",{"$f":"IF(COUNTIF(personel[كد],C4)>0,VLOOKUP(C4,personel[],2,FALSE)&\" / \"&VLOOKUP(C4,personel[],3,FALSE),\"\")","v":""}]
[null,"روز","کد","شخص","مبلغ","توضیحات"]

{"sheet":"report","index":3,"n_rows":26,"n_cols":9,"rows_kept":26,"cut":false,"hidden":false,"merged":[[2,1,2,2],[3,1,3,2],[2,5,2,6],[3,5,3,6],[2,7,2,8],[3,7,3,8]]}
[]
[]
[null,"بازه زماني مورد نظرتان را براي",null,"از روز :",1,"ساعات کاری روز :",null,"08:00:00"]
[null,"مشاهده گزارش را تعيين كنيد",null,"تا روز :",31,"حقوق پایه روزانه :",null,25000]
[]
[null,"كد","نام شخص","ساعت حضور","روز حضور","دستمزد","دریافت کرده","مانده قبلی","مانده حساب"]
[null,1,{"$f":"VLOOKUP(report[[#This Row],[كد]],personel[],2,FALSE)&\" / \"&VLOOKUP(report[[#This Row],[كد]],personel[],3,FALSE)","v":"علي كمالي / رضا"},{"$f":"SUMIFS(times[ميزان حضور],times[روز],\">=\"&E$3,times[روز],\"<=\"&E$4,times[كد],B7)","v":"00:00:00"},{"$f":"report[[#This Row],[ساعت حضور]]/H$3","v":0},{"$f":"VLOOKUP(report[[#This Row],[كد]],personel[],6,FALSE)*H$4*report[[#This Row],[روز حضور]]","v":0},{"$f":"SUMIFS(pay[مبلغ],pay[کد],report[[#This Row],[كد]])","v":0},{"$f":"sett!I5","v":0},{"$f":"report[[#This Row],[مانده قبلی]]-report[[#This Row],[دریافت کرده]]+report[[#This Row],[دستمزد]]","v":0}]
[null,2,{"$f":"VLOOKUP(report[[#This Row],[كد]],personel[],2,FALSE)&\" / \"&VLOOKUP(report[[#This Row],[كد]],personel[],3,FALSE)","v":" / "},{"$f":"SUMIFS(times[ميزان حضور],times[روز],\">=\"&E$3,times[روز],\"<=\"&E$4,times[كد],B8)","v":"00:00:00"},{"$f":"report[[#This Row],[ساعت حضور]]/H$3","v":0},{"$f":"VLOOKUP(report[[#This Row],[كد]],personel[],6,FALSE)*H$4*report[[#This Row],[روز حضور]]","v":0},{"$f":"SUMIFS(pay[مبلغ],pay[کد],report[[#This Row],[كد]])","v":0},{"$f":"sett!I6","v":0},{"$f":"report[[#This Row],[مانده قبلی]]-report[[#This Row],[دریافت کرده]]+report[[#This Row],[دستمزد]]","v":0}]
[null,3,{"$f":"VLOOKUP(report[[#This Row],[كد]],personel[],2,FALSE)&\" / \"&VLOOKUP(report[[#This Row],[كد]],personel[],3,FALSE)","v":" / "},{"$f":"SUMIFS(times[ميزان حضور],times[روز],\">=\"&E$3,times[روز],\"<=\"&E$4,times[كد],B9)","v":"00:00:00"},{"$f":"report[[#This Row],[ساعت حضور]]/H$3","v":0},{"$f":"VLOOKUP(report[[#This Row],[كد]],personel[],6,FALSE)*H$4*report[[#This Row],[روز حضور]]","v":0},{"$f":"SUMIFS(pay[مبلغ],pay[کد],report[[#This Row],[كد]])","v":0},{"$f":"sett!I7","v":0},{"$f":"report[[#This Row],[مانده قبلی]]-report[[#This Row],[دریافت کرده]]+report[[#This Row],[دستمزد]]","v":0}]
[null,4,{"$f":"VLOOKUP(report[[#This Row],[كد]],personel[],2,FALSE)&\" / \"&VLOOKUP(report[[#This Row],[كد]],personel[],3,FALSE)","v":" / "},{"$f":"SUMIFS(times[ميزان حضور],times[روز],\">=\"&E$3,times[روز],\"<=\"&E$4,times[كد],B10)","v":"00:00:00"},{"$f":"report[[#This Row],[ساعت حضور]]/H$3","v":0},{"$f":"VLOOKUP(report[[#This Row],[كد]],personel[],6,FALSE)*H$4*report[[#This Row],[روز حضور]]","v":0},{"$f":"SUMIFS(pay[مبلغ],pay[کد],report[[#This Row],[كد]])","v":0},{"$f":"sett!I8","v":0},{"$f":"report[[#This Row],[مانده قبلی]]-report[[#This Row],[دریافت کرده]]+report[[#This Row],[دستمزد]]","v":0}]
[null,5,{"$f":"VLOOKUP(report[[#This Row],[كد]],personel[],2,FALSE)&\" / \"&VLOOKUP(report[[#This Row],[كد]],personel[],3,FALSE)","v":" / "},{"$f":"SUMIFS(times[ميزان حضور],times[روز],\">=\"&E$3,times[روز],\"<=\"&E$4,times[كد],B11)","v":"00:00:00"},{"$f":"report[[#This Row],[ساعت حضور]]/H$3","v":0},{"$f":"VLOOKUP(report[[#This Row],[كد]],personel[],6,FALSE)*H$4*report[[#This Row],[روز حضور]]","v":0},{"$f":"SUMIFS(pay[مبلغ],pay[کد],report[[#This Row],[كد]])","v":0},{"$f":"sett!I9","v":0},{"$f":"report[[#This Row],[مانده قبلی]]-report[[#This Row],[دریافت کرده]]+report[[#This Row],[دستمزد]]","v":0}]
[null,6,{"$f":"VLOOKUP(report[[#This Row],[كد]],personel[],2,FALSE)&\" / \"&VLOOKUP(report[[#This Row],[كد]],personel[],3,FALSE)","v":" / "},{"$f":"SUMIFS(times[ميزان حضور],times[روز],\">=\"&E$3,times[روز],\"<=\"&E$4,times[كد],B12)","v":"00:00:00"},{"$f":"report[[#This Row],[ساعت حضور]]/H$3","v":0},{"$f":"VLOOKUP(report[[#This Row],[كد]],personel[],6,FALSE)*H$4*report[[#This Row],[روز حضور]]","v":0},{"$f":"SUMIFS(pay[مبلغ],pay[کد],report[[#This Row],[كد]])","v":0},{"$f":"sett!I10","v":0},{"$f":"report[[#This Row],[مانده قبلی]]-report[[#This Row],[دریافت کرده]]+report[[#This Row],[دستمزد]]","v":0}]
[null,7,{"$f":"VLOOKUP(report[[#This Row],[كد]],personel[],2,FALSE)&\" / \"&VLOOKUP(report[[#This Row],[كد]],personel[],3,FALSE)","v":" / "},{"$f":"SUMIFS(times[ميزان حضور],times[روز],\">=\"&E$3,times[روز],\"<=\"&E$4,times[كد],B13)","v":"00:00:00"},{"$f":"report[[#This Row],[ساعت حضور]]/H$3","v":0},{"$f":"VLOOKUP(report[[#This Row],[كد]],personel[],6,FALSE)*H$4*report[[#This Row],[روز حضور]]","v":0},{"$f":"SUMIFS(pay[مبلغ],pay[کد],report[[#This Row],[كد]])","v":0},{"$f":"sett!I11","v":0},{"$f":"report[[#This Row],[مانده قبلی]]-report[[#This Row],[دریافت کرده]]+report[[#This Row],[دستمزد]]","v":0}]
[null,8,{"$f":"VLOOKUP(report[[#This Row],[كد]],personel[],2,FALSE)&\" / \"&VLOOKUP(report[[#This Row],[كد]],personel[],3,FALSE)","v":" / "},{"$f":"SUMIFS(times[ميزان حضور],times[روز],\">=\"&E$3,times[روز],\"<=\"&E$4,times[كد],B14)","v":"00:00:00"},{"$f":"report[[#This Row],[ساعت حضور]]/H$3","v":0},{"$f":"VLOOKUP(report[[#This Row],[كد]],personel[],6,FALSE)*H$4*report[[#This Row],[روز حضور]]","v":0},{"$f":"SUMIFS(pay[مبلغ],pay[کد],report[[#This Row],[كد]])","v":0},{"$f":"sett!I12","v":0},{"$f":"report[[#This Row],[مانده قبلی]]-report[[#This Row],[دریافت کرده]]+report[[#This Row],[دستمزد]]","v":0}]
[null,9,{"$f":"VLOOKUP(report[[#This Row],[كد]],personel[],2,FALSE)&\" / \"&VLOOKUP(report[[#This Row],[كد]],personel[],3,FALSE)","v":" / "},{"$f":"SUMIFS(times[ميزان حضور],times[روز],\">=\"&E$3,times[روز],\"<=\"&E$4,times[كد],B15)","v":"00:00:00"},{"$f":"report[[#This Row],[ساعت حضور]]/H$3","v":0},{"$f":"VLOOKUP(report[[#This Row],[كد]],personel[],6,FALSE)*H$4*report[[#This Row],[روز حضور]]","v":0},{"$f":"SUMIFS(pay[مبلغ],pay[کد],report[[#This Row],[كد]])","v":0},{"$f":"sett!I13","v":0},{"$f":"report[[#This Row],[مانده قبلی]]-report[[#This Row],[دریافت کرده]]+report[[#This Row],[دستمزد]]","v":0}]
[null,10,{"$f":"VLOOKUP(report[[#This Row],[كد]],personel[],2,FALSE)&\" / \"&VLOOKUP(report[[#This Row],[كد]],personel[],3,FALSE)","v":" / "},{"$f":"SUMIFS(times[ميزان حضور],times[روز],\">=\"&E$3,times[روز],\"<=\"&E$4,times[كد],B16)","v":"00:00:00"},{"$f":"report[[#This Row],[ساعت حضور]]/H$3","v":0},{"$f":"VLOOKUP(report[[#This Row],[كد]],personel[],6,FALSE)*H$4*report[[#This Row],[روز حضور]]","v":0},{"$f":"SUMIFS(pay[مبلغ],pay[کد],report[[#This Row],[كد]])","v":0},{"$f":"sett!I14","v":0},{"$f":"report[[#This Row],[مانده قبلی]]-report[[#This Row],[دریافت کرده]]+report[[#This Row],[دستمزد]]","v":0}]
[null,11,{"$f":"VLOOKUP(report[[#This Row],[كد]],personel[],2,FALSE)&\" / \"&VLOOKUP(report[[#This Row],[كد]],personel[],3,FALSE)","v":" / "},{"$f":"SUMIFS(times[ميزان حضور],times[روز],\">=\"&E$3,times[روز],\"<=\"&E$4,times[كد],B17)","v":"00:00:00"},{"$f":"report[[#This Row],[ساعت حضور]]/H$3","v":0},{"$f":"VLOOKUP(report[[#This Row],[كد]],personel[],6,FALSE)*H$4*report[[#This Row],[روز حضور]]","v":0},{"$f":"SUMIFS(pay[مبلغ],pay[کد],report[[#This Row],[كد]])","v":0},{"$f":"sett!I15","v":0},{"$f":"report[[#This Row],[مانده قبلی]]-report[[#This Row],[دریافت کرده]]+report[[#This Row],[دستمزد]]","v":0}]
[null,12,{"$f":"VLOOKUP(report[[#This Row],[كد]],personel[],2,FALSE)&\" / \"&VLOOKUP(report[[#This Row],[كد]],personel[],3,FALSE)","v":" / "},{"$f":"SUMIFS(times[ميزان حضور],times[روز],\">=\"&E$3,times[روز],\"<=\"&E$4,times[كد],B18)","v":"00:00:00"},{"$f":"report[[#This Row],[ساعت حضور]]/H$3","v":0},{"$f":"VLOOKUP(report[[#This Row],[كد]],personel[],6,FALSE)*H$4*report[[#This Row],[روز حضور]]","v":0},{"$f":"SUMIFS(pay[مبلغ],pay[کد],report[[#This Row],[كد]])","v":0},{"$f":"sett!I16","v":0},{"$f":"report[[#This Row],[مانده قبلی]]-report[[#This Row],[دریافت کرده]]+report[[#This Row],[دستمزد]]","v":0}]
[null,13,{"$f":"VLOOKUP(report[[#This Row],[كد]],personel[],2,FALSE)&\" / \"&VLOOKUP(report[[#This Row],[كد]],personel[],3,FALSE)","v":" / "},{"$f":"SUMIFS(times[ميزان حضور],times[روز],\">=\"&E$3,times[روز],\"<=\"&E$4,times[كد],B19)","v":"00:00:00"},{"$f":"report[[#This Row],[ساعت حضور]]/H$3","v":0},{"$f":"VLOOKUP(report[[#This Row],[كد]],personel[],6,FALSE)*H$4*report[[#This Row],[روز حضور]]","v":0},{"$f":"SUMIFS(pay[مبلغ],pay[کد],report[[#This Row],[كد]])","v":0},{"$f":"sett!I17","v":0},{"$f":"report[[#This Row],[مانده قبلی]]-report[[#This Row],[دریافت کرده]]+report[[#This Row],[دستمزد]]","v":0}]
[null,14,{"$f":"VLOOKUP(report[[#This Row],[كد]],personel[],2,FALSE)&\" / \"&VLOOKUP(report[[#This Row],[كد]],personel[],3,FALSE)","v":" / "},{"$f":"SUMIFS(times[ميزان حضور],times[روز],\">=\"&E$3,times[روز],\"<=\"&E$4,times[كد],B20)","v":"00:00:00"},{"$f":"report[[#This Row],[ساعت حضور]]/H$3","v":0},{"$f":"VLOOKUP(report[[#This Row],[كد]],personel[],6,FALSE)*H$4*report[[#This Row],[روز حضور]]","v":0},{"$f":"SUMIFS(pay[مبلغ],pay[کد],report[[#This Row],[كد]])","v":0},{"$f":"sett!I18","v":0},{"$f":"report[[#This Row],[مانده قبلی]]-report[[#This Row],[دریافت کرده]]+report[[#This Row],[دستمزد]]","v":0}]
[null,15,{"$f":"VLOOKUP(report[[#This Row],[كد]],personel[],2,FALSE)&\" / \"&VLOOKUP(report[[#This Row],[كد]],personel[],3,FALSE)","v":" / "},{"$f":"SUMIFS(times[ميزان حضور],times[روز],\">=\"&E$3,times[روز],\"<=\"&E$4,times[كد],B21)","v":"00:00:00"},{"$f":"report[[#This Row],[ساعت حضور]]/H$3","v":0},{"$f":"VLOOKUP(report[[#This Row],[كد]],personel[],6,FALSE)*H$4*report[[#This Row],[روز حضور]]","v":0},{"$f":"SUMIFS(pay[مبلغ],pay[کد],report[[#This Row],[كد]])","v":0},{"$f":"sett!I19","v":0},{"$f":"report[[#This Row],[مانده قبلی]]-report[[#This Row],[دریافت کرده]]+report[[#This Row],[دستمزد]]","v":0}]
[null,16,{"$f":"VLOOKUP(report[[#This Row],[كد]],personel[],2,FALSE)&\" / \"&VLOOKUP(report[[#This Row],[كد]],personel[],3,FALSE)","v":" / "},{"$f":"SUMIFS(times[ميزان حضور],times[روز],\">=\"&E$3,times[روز],\"<=\"&E$4,times[كد],B22)","v":"00:00:00"},{"$f":"report[[#This Row],[ساعت حضور]]/H$3","v":0},{"$f":"VLOOKUP(report[[#This Row],[كد]],personel[],6,FALSE)*H$4*report[[#This Row],[روز حضور]]","v":0},{"$f":"SUMIFS(pay[مبلغ],pay[کد],report[[#This Row],[كد]])","v":0},{"$f":"sett!I20","v":0},{"$f":"report[[#This Row],[مانده قبلی]]-report[[#This Row],[دریافت کرده]]+report[[#This Row],[دستمزد]]","v":0}]
[null,17,{"$f":"VLOOKUP(report[[#This Row],[كد]],personel[],2,FALSE)&\" / \"&VLOOKUP(report[[#This Row],[كد]],personel[],3,FALSE)","v":" / "},{"$f":"SUMIFS(times[ميزان حضور],times[روز],\">=\"&E$3,times[روز],\"<=\"&E$4,times[كد],B23)","v":"00:00:00"},{"$f":"report[[#This Row],[ساعت حضور]]/H$3","v":0},{"$f":"VLOOKUP(report[[#This Row],[كد]],personel[],6,FALSE)*H$4*report[[#This Row],[روز حضور]]","v":0},{"$f":"SUMIFS(pay[مبلغ],pay[کد],report[[#This Row],[كد]])","v":0},{"$f":"sett!I21","v":0},{"$f":"report[[#This Row],[مانده قبلی]]-report[[#This Row],[دریافت کرده]]+report[[#This Row],[دستمزد]]","v":0}]
[null,18,{"$f":"VLOOKUP(report[[#This Row],[كد]],personel[],2,FALSE)&\" / \"&VLOOKUP(report[[#This Row],[كد]],personel[],3,FALSE)","v":" / "},{"$f":"SUMIFS(times[ميزان حضور],times[روز],\">=\"&E$3,times[روز],\"<=\"&E$4,times[كد],B24)","v":"00:00:00"},{"$f":"report[[#This Row],[ساعت حضور]]/H$3","v":0},{"$f":"VLOOKUP(report[[#This Row],[كد]],personel[],6,FALSE)*H$4*report[[#This Row],[روز حضور]]","v":0},{"$f":"SUMIFS(pay[مبلغ],pay[کد],report[[#This Row],[كد]])","v":0},{"$f":"sett!I22","v":0},{"$f":"report[[#This Row],[مانده قبلی]]-report[[#This Row],[دریافت کرده]]+report[[#This Row],[دستمزد]]","v":0}]
[null,19,{"$f":"VLOOKUP(report[[#This Row],[كد]],personel[],2,FALSE)&\" / \"&VLOOKUP(report[[#This Row],[كد]],personel[],3,FALSE)","v":" / "},{"$f":"SUMIFS(times[ميزان حضور],times[روز],\">=\"&E$3,times[روز],\"<=\"&E$4,times[كد],B25)","v":"00:00:00"},{"$f":"report[[#This Row],[ساعت حضور]]/H$3","v":0},{"$f":"VLOOKUP(report[[#This Row],[كد]],personel[],6,FALSE)*H$4*report[[#This Row],[روز حضور]]","v":0},{"$f":"SUMIFS(pay[مبلغ],pay[کد],report[[#This Row],[كد]])","v":0},{"$f":"sett!I23","v":0},{"$f":"report[[#This Row],[مانده قبلی]]-report[[#This Row],[دریافت کرده]]+report[[#This Row],[دستمزد]]","v":0}]
[null,20,{"$f":"VLOOKUP(report[[#This Row],[كد]],personel[],2,FALSE)&\" / \"&VLOOKUP(report[[#This Row],[كد]],personel[],3,FALSE)","v":" / "},{"$f":"SUMIFS(times[ميزان حضور],times[روز],\">=\"&E$3,times[روز],\"<=\"&E$4,times[كد],B26)","v":"00:00:00"},{"$f":"report[[#This Row],[ساعت حضور]]/H$3","v":0},{"$f":"VLOOKUP(report[[#This Row],[كد]],personel[],6,FALSE)*H$4*report[[#This Row],[روز حضور]]","v":0},{"$f":"SUMIFS(pay[مبلغ],pay[کد],report[[#This Row],[كد]])","v":0},{"$f":"sett!I24","v":0},{"$f":"report[[#This Row],[مانده قبلی]]-report[[#This Row],[دریافت کرده]]+report[[#This Row],[دستمزد]]","v":0}]

{"sheet":"sett","index":4,"n_rows":24,"n_cols":9,"rows_kept":24,"cut":false,"hidden":false,"merged":[[0,0,0,1],[2,2,2,8]]}
[]
[]
[null,null,"جدول تعريف پرسنل و همكاران"]
[null,null,"كد","نام و نام خانوادگي","نام پدر","ش ملي","سمت","ضریب حقوق"," مانده مطالبات"]
[null,null,1,"علي كمالي","رضا",1234567890,"کارشناس",1,0]
[null,null,2]
[null,null,3]
[null,null,4]
[null,null,5]
[null,null,6]
[null,null,7]
[null,null,8]
[null,null,9]
[null,null,10]
[null,null,11]
[null,null,12]
[null,null,13]
[null,null,14]
[null,null,15]
[null,null,16]
[null,null,17]
[null,null,18]
[null,null,19]
[null,null,20]